Workbook

Sheet Einstellung
B3: Futterberechnung zur Fütterung der Milchkühe, Zuchtrinder, Mastrinder, Schafe und Ziegen - GfE 2001
B4: Gruber Tabelle, 48. Auflage / November 2024 www.LfL.bayern.de Update vom 11.05.2026
C5: Tierhaltungsschule | F5: Triesdorf
C6: Markgrafenstraße 1 | F6: 09 000 000 0000
C7: 91746 | E7: Weidenbach
C8: Futterberechnung mit Gruber Tabelle | G8: ths@triesdorf.de
C9: Freie Software, keinerlei Gewährleistung
C11: Daten für die Berechnung von Erhaltungsbedarf :
C12: Lebendmasse | E12: nxP | F12: NEL MJ
C13: kg LM | D13: 700 | E13: 470 | F13: 39.9
C14: Milchinhaltstoffe | E14: =IF(D15=0,"Trockensteher","") -> 
C15: Fett % | D15: 4 | F15: =IF(D15>=3,(D15-3.5)*0.4+3.1,0) -> 3.3
C16: Eiweiß % | D16: 3.5 | E16: =IF(D16>=2.5,(D16-3.2)*(20)+81,0) -> 87
C17: geschätzte TM Aufnahme kg | E17: GF | F17: GF+KF
E18: 14 | F18: 21
B20: Erhaltungsbedarf | D20: Ca | E20: P | F20: Mg | G20: Na | H20: K | I20: Cl | J20: S | K20: Empfehlung zur Versorgung mit Mengenelementen Gruber Tabelle Seite 34 | M20: www.triesdorf.de
B22: in g pro kg TM - Aufn. | D22: 2 | E22: 1.43 | F22: 0.8 | G22: 0.6 | H22: 8.8 | I22: 1.5 | J22: 1.5
B23: für Leistung g/kg Milch | D23: 2.5 | E23: 1.43 | F23: 0.8 | G23: 0.64 | H23: 1.6 | I23: 1.4 | J23: 0.6

Sheet Ration
A2: Bitte Gruppe auswählen! | F2: Nähr- und Mineralstoffgehalte in 1000 g Trockenmasse | Z2: Spurenelemente in mg / kg TM
A3: Nr | B3: Futterart | C3: TM % | D3: TM g | E3: FM kg | F3: TM kg | G3: aNDFom | H3: CP g | I3: nxP | J3: UDP % | K3: RNB | L3: NEL MJ | M3: ME MJ | N3: ST+ZU | O3: bST | P3: CL | Q3: Ca | R3: P | S3: Mg | T3: Na | U3: K | V3: Cl | W3: S | X3: Preis / dt | Y3: Typ | Z3: Fe | AA3: Cu | AB3: Zn | AC3: Mn | AD3: Co | AE3: J | AF3: Se
B4: =IFERROR(VLOOKUP(A4,'Gruber Tabelle'!$A$6:$W$359,2,0),0) -> 0 | C4: =IFERROR(VLOOKUP(A4,'Gruber Tabelle'!$A$6:$W$359,3,0),0)/1000 -> 0 | D4: =IFERROR(VLOOKUP(A4,'Gruber Tabelle'!$A$6:$W$359,3,0),0) -> 0 | E4: =IFERROR(F15/C15,0) -> 0 | G4: =IFERROR(VLOOKUP(A4,'Gruber Tabelle'!$A$6:$W$359,5,0),0) -> 0 | H4: =IFERROR(VLOOKUP(A4,'Gruber Tabelle'!$A$6:$W$359,7,0),0) -> 0 | I4: =IFERROR(VLOOKUP(A4,'Gruber Tabelle'!$A$6:$W$359,8,0),0) -> 0 | J4: =IFERROR(VLOOKUP(A4,'Gruber Tabelle'!$A$6:$W$359,9,0)/100,0) -> 0 | K4: =IFERROR(VLOOKUP(A4,'Gruber Tabelle'!$A$6:$W$359,10,0),0) -> 0 | L4: =IFERROR(VLOOKUP(A4,'Gruber Tabelle'!$A$6:$W$359,11,0),0) -> 0 | M4: =IFERROR(VLOOKUP(A4,'Gruber Tabelle'!$A$6:$W$359,12,0),0) -> 0 | N4: =IFERROR(VLOOKUP(A4,'Gruber Tabelle'!$A$6:$W$359,13,0),0) -> 0 | O4: =IFERROR(VLOOKUP(A4,'Gruber Tabelle'!$A$6:$W$359,14,0),0) -> 0 | P4: =IFERROR(VLOOKUP(A4,'Gruber Tabelle'!$A$6:$W$359,15,0),0) -> 0 | Q4: =IFERROR(VLOOKUP(A4,'Gruber Tabelle'!$A$6:$W$359,16,0),0) -> 0 | R4: =IFERROR(VLOOKUP(A4,'Gruber Tabelle'!$A$6:$W$359,17,0),0) -> 0 | S4: =IFERROR(VLOOKUP(A4,'Gruber Tabelle'!$A$6:$W$359,18,0),0) -> 0 | T4: =IFERROR(VLOOKUP(A4,'Gruber Tabelle'!$A$6:$W$359,19,0),0) -> 0 | U4: =IFERROR(VLOOKUP(A4,'Gruber Tabelle'!$A$6:$W$359,20,0),0) -> 0 | V4: =IFERROR(VLOOKUP(A4,'Gruber Tabelle'!$A$6:$W$359,21,0),0) -> 0 | W4: =IFERROR(VLOOKUP(A4,'Gruber Tabelle'!$A$6:$W$359,22,0),0) -> 0 | X4: =IFERROR(VLOOKUP(A4,'Gruber Tabelle'!$A$6:$W$359,23,0),0) -> 0 | Y4: =IFERROR(VLOOKUP(A4,'Gruber Tabelle'!$A$6:$X$359,24,0),0) -> 0 | Z4: =IFERROR(VLOOKUP(A4,'Gruber Tabelle'!$A$6:$AE$359,25,0),0) -> 0 | AA4: =IFERROR(VLOOKUP(A4,'Gruber Tabelle'!$A$6:$AE$359,26,0),0) -> 0 | AB4: =IFERROR(VLOOKUP(A4,'Gruber Tabelle'!$A$6:$AE$359,27,0),0) -> 0 | AC4: =IFERROR(VLOOKUP(A4,'Gruber Tabelle'!$A$6:$AE$359,28,0),0) -> 0 | AD4: =IFERROR(VLOOKUP(A4,'Gruber Tabelle'!$A$6:$AE$359,29,0),0) -> 0 | AE4: =IFERROR(VLOOKUP(A4,'Gruber Tabelle'!$A$6:$AE$359,30,0),0) -> 0 | AF4: =IFERROR(VLOOKUP(A4,'Gruber Tabelle'!$A$6:$AE$359,31,0),0) -> 0
B5: =IFERROR(VLOOKUP(A5,'Gruber Tabelle'!$A$6:$W$359,2,0),0) -> 0 | C5: =IFERROR(VLOOKUP(A5,'Gruber Tabelle'!$A$6:$W$359,3,0),0)/1000 -> 0 | D5: =IFERROR(VLOOKUP(A5,'Gruber Tabelle'!$A$6:$W$359,3,0),0) -> 0 | E5: =IFERROR(F16/C16,0) -> 0 | G5: =IFERROR(VLOOKUP(A5,'Gruber Tabelle'!$A$6:$W$359,5,0),0) -> 0 | H5: =IFERROR(VLOOKUP(A5,'Gruber Tabelle'!$A$6:$W$359,7,0),0) -> 0 | I5: =IFERROR(VLOOKUP(A5,'Gruber Tabelle'!$A$6:$W$359,8,0),0) -> 0 | J5: =IFERROR(VLOOKUP(A5,'Gruber Tabelle'!$A$6:$W$359,9,0)/100,0) -> 0 | K5: =IFERROR(VLOOKUP(A5,'Gruber Tabelle'!$A$6:$W$359,10,0),0) -> 0 | L5: =IFERROR(VLOOKUP(A5,'Gruber Tabelle'!$A$6:$W$359,11,0),0) -> 0 | M5: =IFERROR(VLOOKUP(A5,'Gruber Tabelle'!$A$6:$W$359,12,0),0) -> 0 | N5: =IFERROR(VLOOKUP(A5,'Gruber Tabelle'!$A$6:$W$359,13,0),0) -> 0 | O5: =IFERROR(VLOOKUP(A5,'Gruber Tabelle'!$A$6:$W$359,14,0),0) -> 0 | P5: =IFERROR(VLOOKUP(A5,'Gruber Tabelle'!$A$6:$W$359,15,0),0) -> 0 | Q5: =IFERROR(VLOOKUP(A5,'Gruber Tabelle'!$A$6:$W$359,16,0),0) -> 0 | R5: =IFERROR(VLOOKUP(A5,'Gruber Tabelle'!$A$6:$W$359,17,0),0) -> 0 | S5: =IFERROR(VLOOKUP(A5,'Gruber Tabelle'!$A$6:$W$359,18,0),0) -> 0 | T5: =IFERROR(VLOOKUP(A5,'Gruber Tabelle'!$A$6:$W$359,19,0),0) -> 0 | U5: =IFERROR(VLOOKUP(A5,'Gruber Tabelle'!$A$6:$W$359,20,0),0) -> 0 | V5: =IFERROR(VLOOKUP(A5,'Gruber Tabelle'!$A$6:$W$359,21,0),0) -> 0 | W5: =IFERROR(VLOOKUP(A5,'Gruber Tabelle'!$A$6:$W$359,22,0),0) -> 0 | X5: =IFERROR(VLOOKUP(A5,'Gruber Tabelle'!$A$6:$W$359,23,0),0) -> 0 | Y5: =IFERROR(VLOOKUP(A5,'Gruber Tabelle'!$A$6:$X$359,24,0),0) -> 0 | Z5: =IFERROR(VLOOKUP(A5,'Gruber Tabelle'!$A$6:$AE$359,25,0),0) -> 0 | AA5: =IFERROR(VLOOKUP(A5,'Gruber Tabelle'!$A$6:$AE$359,26,0),0) -> 0 | AB5: =IFERROR(VLOOKUP(A5,'Gruber Tabelle'!$A$6:$AE$359,27,0),0) -> 0 | AC5: =IFERROR(VLOOKUP(A5,'Gruber Tabelle'!$A$6:$AE$359,28,0),0) -> 0 | AD5: =IFERROR(VLOOKUP(A5,'Gruber Tabelle'!$A$6:$AE$359,29,0),0) -> 0 | AE5: =IFERROR(VLOOKUP(A5,'Gruber Tabelle'!$A$6:$AE$359,30,0),0) -> 0 | AF5: =IFERROR(VLOOKUP(A5,'Gruber Tabelle'!$A$6:$AE$359,31,0),0) -> 0
B6: =IFERROR(VLOOKUP(A6,'Gruber Tabelle'!$A$6:$W$359,2,0),0) -> 0 | C6: =IFERROR(VLOOKUP(A6,'Gruber Tabelle'!$A$6:$W$359,3,0),0)/1000 -> 0 | D6: =IFERROR(VLOOKUP(A6,'Gruber Tabelle'!$A$6:$W$359,3,0),0) -> 0 | E6: 0 | G6: =IFERROR(VLOOKUP(A6,'Gruber Tabelle'!$A$6:$W$359,5,0),0) -> 0 | H6: =IFERROR(VLOOKUP(A6,'Gruber Tabelle'!$A$6:$W$359,7,0),0) -> 0 | I6: =IFERROR(VLOOKUP(A6,'Gruber Tabelle'!$A$6:$W$359,8,0),0) -> 0 | J6: =IFERROR(VLOOKUP(A6,'Gruber Tabelle'!$A$6:$W$359,9,0)/100,0) -> 0 | K6: =IFERROR(VLOOKUP(A6,'Gruber Tabelle'!$A$6:$W$359,10,0),0) -> 0 | L6: =IFERROR(VLOOKUP(A6,'Gruber Tabelle'!$A$6:$W$359,11,0),0) -> 0 | M6: =IFERROR(VLOOKUP(A6,'Gruber Tabelle'!$A$6:$W$359,12,0),0) -> 0 | N6: =IFERROR(VLOOKUP(A6,'Gruber Tabelle'!$A$6:$W$359,13,0),0) -> 0 | O6: =IFERROR(VLOOKUP(A6,'Gruber Tabelle'!$A$6:$W$359,14,0),0) -> 0 | P6: =IFERROR(VLOOKUP(A6,'Gruber Tabelle'!$A$6:$W$359,15,0),0) -> 0 | Q6: =IFERROR(VLOOKUP(A6,'Gruber Tabelle'!$A$6:$W$359,16,0),0) -> 0 | R6: =IFERROR(VLOOKUP(A6,'Gruber Tabelle'!$A$6:$W$359,17,0),0) -> 0 | S6: =IFERROR(VLOOKUP(A6,'Gruber Tabelle'!$A$6:$W$359,18,0),0) -> 0 | T6: =IFERROR(VLOOKUP(A6,'Gruber Tabelle'!$A$6:$W$359,19,0),0) -> 0 | U6: =IFERROR(VLOOKUP(A6,'Gruber Tabelle'!$A$6:$W$359,20,0),0) -> 0 | V6: =IFERROR(VLOOKUP(A6,'Gruber Tabelle'!$A$6:$W$359,21,0),0) -> 0 | W6: =IFERROR(VLOOKUP(A6,'Gruber Tabelle'!$A$6:$W$359,22,0),0) -> 0 | X6: =IFERROR(VLOOKUP(A6,'Gruber Tabelle'!$A$6:$W$359,23,0),0) -> 0 | Y6: =IFERROR(VLOOKUP(A6,'Gruber Tabelle'!$A$6:$X$359,24,0),0) -> 0 | Z6: =IFERROR(VLOOKUP(A6,'Gruber Tabelle'!$A$6:$AE$359,25,0),0) -> 0 | AA6: =IFERROR(VLOOKUP(A6,'Gruber Tabelle'!$A$6:$AE$359,26,0),0) -> 0 | AB6: =IFERROR(VLOOKUP(A6,'Gruber Tabelle'!$A$6:$AE$359,27,0),0) -> 0 | AC6: =IFERROR(VLOOKUP(A6,'Gruber Tabelle'!$A$6:$AE$359,28,0),0) -> 0 | AD6: =IFERROR(VLOOKUP(A6,'Gruber Tabelle'!$A$6:$AE$359,29,0),0) -> 0 | AE6: =IFERROR(VLOOKUP(A6,'Gruber Tabelle'!$A$6:$AE$359,30,0),0) -> 0 | AF6: =IFERROR(VLOOKUP(A6,'Gruber Tabelle'!$A$6:$AE$359,31,0),0) -> 0
B7: =IFERROR(VLOOKUP(A7,'Gruber Tabelle'!$A$6:$W$359,2,0),0) -> 0 | C7: =IFERROR(VLOOKUP(A7,'Gruber Tabelle'!$A$6:$W$359,3,0),0)/1000 -> 0 | D7: =IFERROR(VLOOKUP(A7,'Gruber Tabelle'!$A$6:$W$359,3,0),0) -> 0 | E7: 0 | G7: =IFERROR(VLOOKUP(A7,'Gruber Tabelle'!$A$6:$W$359,5,0),0) -> 0 | H7: =IFERROR(VLOOKUP(A7,'Gruber Tabelle'!$A$6:$W$359,7,0),0) -> 0 | I7: =IFERROR(VLOOKUP(A7,'Gruber Tabelle'!$A$6:$W$359,8,0),0) -> 0 | J7: =IFERROR(VLOOKUP(A7,'Gruber Tabelle'!$A$6:$W$359,9,0)/100,0) -> 0 | K7: =IFERROR(VLOOKUP(A7,'Gruber Tabelle'!$A$6:$W$359,10,0),0) -> 0 | L7: =IFERROR(VLOOKUP(A7,'Gruber Tabelle'!$A$6:$W$359,11,0),0) -> 0 | M7: =IFERROR(VLOOKUP(A7,'Gruber Tabelle'!$A$6:$W$359,12,0),0) -> 0 | N7: =IFERROR(VLOOKUP(A7,'Gruber Tabelle'!$A$6:$W$359,13,0),0) -> 0 | O7: =IFERROR(VLOOKUP(A7,'Gruber Tabelle'!$A$6:$W$359,14,0),0) -> 0 | P7: =IFERROR(VLOOKUP(A7,'Gruber Tabelle'!$A$6:$W$359,15,0),0) -> 0 | Q7: =IFERROR(VLOOKUP(A7,'Gruber Tabelle'!$A$6:$W$359,16,0),0) -> 0 | R7: =IFERROR(VLOOKUP(A7,'Gruber Tabelle'!$A$6:$W$359,17,0),0) -> 0 | S7: =IFERROR(VLOOKUP(A7,'Gruber Tabelle'!$A$6:$W$359,18,0),0) -> 0 | T7: =IFERROR(VLOOKUP(A7,'Gruber Tabelle'!$A$6:$W$359,19,0),0) -> 0 | U7: =IFERROR(VLOOKUP(A7,'Gruber Tabelle'!$A$6:$W$359,20,0),0) -> 0 | V7: =IFERROR(VLOOKUP(A7,'Gruber Tabelle'!$A$6:$W$359,21,0),0) -> 0 | W7: =IFERROR(VLOOKUP(A7,'Gruber Tabelle'!$A$6:$W$359,22,0),0) -> 0 | X7: =IFERROR(VLOOKUP(A7,'Gruber Tabelle'!$A$6:$W$359,23,0),0) -> 0 | Y7: =IFERROR(VLOOKUP(A7,'Gruber Tabelle'!$A$6:$X$359,24,0),0) -> 0 | Z7: =IFERROR(VLOOKUP(A7,'Gruber Tabelle'!$A$6:$AE$359,25,0),0) -> 0 | AA7: =IFERROR(VLOOKUP(A7,'Gruber Tabelle'!$A$6:$AE$359,26,0),0) -> 0 | AB7: =IFERROR(VLOOKUP(A7,'Gruber Tabelle'!$A$6:$AE$359,27,0),0) -> 0 | AC7: =IFERROR(VLOOKUP(A7,'Gruber Tabelle'!$A$6:$AE$359,28,0),0) -> 0 | AD7: =IFERROR(VLOOKUP(A7,'Gruber Tabelle'!$A$6:$AE$359,29,0),0) -> 0 | AE7: =IFERROR(VLOOKUP(A7,'Gruber Tabelle'!$A$6:$AE$359,30,0),0) -> 0 | AF7: =IFERROR(VLOOKUP(A7,'Gruber Tabelle'!$A$6:$AE$359,31,0),0) -> 0
B8: =IFERROR(VLOOKUP(A8,'Gruber Tabelle'!$A$6:$W$359,2,0),0) -> 0 | C8: =IFERROR(VLOOKUP(A8,'Gruber Tabelle'!$A$6:$W$359,3,0),0)/1000 -> 0 | D8: =IFERROR(VLOOKUP(A8,'Gruber Tabelle'!$A$6:$W$359,3,0),0) -> 0 | E8: 0 | G8: =IFERROR(VLOOKUP(A8,'Gruber Tabelle'!$A$6:$W$359,5,0),0) -> 0 | H8: =IFERROR(VLOOKUP(A8,'Gruber Tabelle'!$A$6:$W$359,7,0),0) -> 0 | I8: =IFERROR(VLOOKUP(A8,'Gruber Tabelle'!$A$6:$W$359,8,0),0) -> 0 | J8: =IFERROR(VLOOKUP(A8,'Gruber Tabelle'!$A$6:$W$359,9,0)/100,0) -> 0 | K8: =IFERROR(VLOOKUP(A8,'Gruber Tabelle'!$A$6:$W$359,10,0),0) -> 0 | L8: =IFERROR(VLOOKUP(A8,'Gruber Tabelle'!$A$6:$W$359,11,0),0) -> 0 | M8: =IFERROR(VLOOKUP(A8,'Gruber Tabelle'!$A$6:$W$359,12,0),0) -> 0 | N8: =IFERROR(VLOOKUP(A8,'Gruber Tabelle'!$A$6:$W$359,13,0),0) -> 0 | O8: =IFERROR(VLOOKUP(A8,'Gruber Tabelle'!$A$6:$W$359,14,0),0) -> 0 | P8: =IFERROR(VLOOKUP(A8,'Gruber Tabelle'!$A$6:$W$359,15,0),0) -> 0 | Q8: =IFERROR(VLOOKUP(A8,'Gruber Tabelle'!$A$6:$W$359,16,0),0) -> 0 | R8: =IFERROR(VLOOKUP(A8,'Gruber Tabelle'!$A$6:$W$359,17,0),0) -> 0 | S8: =IFERROR(VLOOKUP(A8,'Gruber Tabelle'!$A$6:$W$359,18,0),0) -> 0 | T8: =IFERROR(VLOOKUP(A8,'Gruber Tabelle'!$A$6:$W$359,19,0),0) -> 0 | U8: =IFERROR(VLOOKUP(A8,'Gruber Tabelle'!$A$6:$W$359,20,0),0) -> 0 | V8: =IFERROR(VLOOKUP(A8,'Gruber Tabelle'!$A$6:$W$359,21,0),0) -> 0 | W8: =IFERROR(VLOOKUP(A8,'Gruber Tabelle'!$A$6:$W$359,22,0),0) -> 0 | X8: =IFERROR(VLOOKUP(A8,'Gruber Tabelle'!$A$6:$W$359,23,0),0) -> 0 | Y8: =IFERROR(VLOOKUP(A8,'Gruber Tabelle'!$A$6:$X$359,24,0),0) -> 0 | Z8: =IFERROR(VLOOKUP(A8,'Gruber Tabelle'!$A$6:$AE$359,25,0),0) -> 0 | AA8: =IFERROR(VLOOKUP(A8,'Gruber Tabelle'!$A$6:$AE$359,26,0),0) -> 0 | AB8: =IFERROR(VLOOKUP(A8,'Gruber Tabelle'!$A$6:$AE$359,27,0),0) -> 0 | AC8: =IFERROR(VLOOKUP(A8,'Gruber Tabelle'!$A$6:$AE$359,28,0),0) -> 0 | AD8: =IFERROR(VLOOKUP(A8,'Gruber Tabelle'!$A$6:$AE$359,29,0),0) -> 0 | AE8: =IFERROR(VLOOKUP(A8,'Gruber Tabelle'!$A$6:$AE$359,30,0),0) -> 0 | AF8: =IFERROR(VLOOKUP(A8,'Gruber Tabelle'!$A$6:$AE$359,31,0),0) -> 0
B9: =IFERROR(VLOOKUP(A9,'Gruber Tabelle'!$A$6:$W$359,2,0),0) -> 0 | C9: =IFERROR(VLOOKUP(A9,'Gruber Tabelle'!$A$6:$W$359,3,0),0)/1000 -> 0 | D9: =IFERROR(VLOOKUP(A9,'Gruber Tabelle'!$A$6:$W$359,3,0),0) -> 0 | E9: 0 | G9: =IFERROR(VLOOKUP(A9,'Gruber Tabelle'!$A$6:$W$359,5,0),0) -> 0 | H9: =IFERROR(VLOOKUP(A9,'Gruber Tabelle'!$A$6:$W$359,7,0),0) -> 0 | I9: =IFERROR(VLOOKUP(A9,'Gruber Tabelle'!$A$6:$W$359,8,0),0) -> 0 | J9: =IFERROR(VLOOKUP(A9,'Gruber Tabelle'!$A$6:$W$359,9,0)/100,0) -> 0 | K9: =IFERROR(VLOOKUP(A9,'Gruber Tabelle'!$A$6:$W$359,10,0),0) -> 0 | L9: =IFERROR(VLOOKUP(A9,'Gruber Tabelle'!$A$6:$W$359,11,0),0) -> 0 | M9: =IFERROR(VLOOKUP(A9,'Gruber Tabelle'!$A$6:$W$359,12,0),0) -> 0 | N9: =IFERROR(VLOOKUP(A9,'Gruber Tabelle'!$A$6:$W$359,13,0),0) -> 0 | O9: =IFERROR(VLOOKUP(A9,'Gruber Tabelle'!$A$6:$W$359,14,0),0) -> 0 | P9: =IFERROR(VLOOKUP(A9,'Gruber Tabelle'!$A$6:$W$359,15,0),0) -> 0 | Q9: =IFERROR(VLOOKUP(A9,'Gruber Tabelle'!$A$6:$W$359,16,0),0) -> 0 | R9: =IFERROR(VLOOKUP(A9,'Gruber Tabelle'!$A$6:$W$359,17,0),0) -> 0 | S9: =IFERROR(VLOOKUP(A9,'Gruber Tabelle'!$A$6:$W$359,18,0),0) -> 0 | T9: =IFERROR(VLOOKUP(A9,'Gruber Tabelle'!$A$6:$W$359,19,0),0) -> 0 | U9: =IFERROR(VLOOKUP(A9,'Gruber Tabelle'!$A$6:$W$359,20,0),0) -> 0 | V9: =IFERROR(VLOOKUP(A9,'Gruber Tabelle'!$A$6:$W$359,21,0),0) -> 0 | W9: =IFERROR(VLOOKUP(A9,'Gruber Tabelle'!$A$6:$W$359,22,0),0) -> 0 | X9: =IFERROR(VLOOKUP(A9,'Gruber Tabelle'!$A$6:$W$359,23,0),0) -> 0 | Y9: =IFERROR(VLOOKUP(A9,'Gruber Tabelle'!$A$6:$X$359,24,0),0) -> 0 | Z9: =IFERROR(VLOOKUP(A9,'Gruber Tabelle'!$A$6:$AE$359,25,0),0) -> 0 | AA9: =IFERROR(VLOOKUP(A9,'Gruber Tabelle'!$A$6:$AE$359,26,0),0) -> 0 | AB9: =IFERROR(VLOOKUP(A9,'Gruber Tabelle'!$A$6:$AE$359,27,0),0) -> 0 | AC9: =IFERROR(VLOOKUP(A9,'Gruber Tabelle'!$A$6:$AE$359,28,0),0) -> 0 | AD9: =IFERROR(VLOOKUP(A9,'Gruber Tabelle'!$A$6:$AE$359,29,0),0) -> 0 | AE9: =IFERROR(VLOOKUP(A9,'Gruber Tabelle'!$A$6:$AE$359,30,0),0) -> 0 | AF9: =IFERROR(VLOOKUP(A9,'Gruber Tabelle'!$A$6:$AE$359,31,0),0) -> 0
B10: =IFERROR(VLOOKUP(A10,'Gruber Tabelle'!$A$6:$W$359,2,0),0) -> 0 | C10: =IFERROR(VLOOKUP(A10,'Gruber Tabelle'!$A$6:$W$359,3,0),0)/1000 -> 0 | D10: =IFERROR(VLOOKUP(A10,'Gruber Tabelle'!$A$6:$W$359,3,0),0) -> 0 | E10: 0 | G10: =IFERROR(VLOOKUP(A10,'Gruber Tabelle'!$A$6:$W$359,5,0),0) -> 0 | H10: =IFERROR(VLOOKUP(A10,'Gruber Tabelle'!$A$6:$W$359,7,0),0) -> 0 | I10: =IFERROR(VLOOKUP(A10,'Gruber Tabelle'!$A$6:$W$359,8,0),0) -> 0 | J10: =IFERROR(VLOOKUP(A10,'Gruber Tabelle'!$A$6:$W$359,9,0)/100,0) -> 0 | K10: =IFERROR(VLOOKUP(A10,'Gruber Tabelle'!$A$6:$W$359,10,0),0) -> 0 | L10: =IFERROR(VLOOKUP(A10,'Gruber Tabelle'!$A$6:$W$359,11,0),0) -> 0 | M10: =IFERROR(VLOOKUP(A10,'Gruber Tabelle'!$A$6:$W$359,12,0),0) -> 0 | N10: =IFERROR(VLOOKUP(A10,'Gruber Tabelle'!$A$6:$W$359,13,0),0) -> 0 | O10: =IFERROR(VLOOKUP(A10,'Gruber Tabelle'!$A$6:$W$359,14,0),0) -> 0 | P10: =IFERROR(VLOOKUP(A10,'Gruber Tabelle'!$A$6:$W$359,15,0),0) -> 0 | Q10: =IFERROR(VLOOKUP(A10,'Gruber Tabelle'!$A$6:$W$359,16,0),0) -> 0 | R10: =IFERROR(VLOOKUP(A10,'Gruber Tabelle'!$A$6:$W$359,17,0),0) -> 0 | S10: =IFERROR(VLOOKUP(A10,'Gruber Tabelle'!$A$6:$W$359,18,0),0) -> 0 | T10: =IFERROR(VLOOKUP(A10,'Gruber Tabelle'!$A$6:$W$359,19,0),0) -> 0 | U10: =IFERROR(VLOOKUP(A10,'Gruber Tabelle'!$A$6:$W$359,20,0),0) -> 0 | V10: =IFERROR(VLOOKUP(A10,'Gruber Tabelle'!$A$6:$W$359,21,0),0) -> 0 | W10: =IFERROR(VLOOKUP(A10,'Gruber Tabelle'!$A$6:$W$359,22,0),0) -> 0 | X10: =IFERROR(VLOOKUP(A10,'Gruber Tabelle'!$A$6:$W$359,23,0),0) -> 0 | Y10: =IFERROR(VLOOKUP(A10,'Gruber Tabelle'!$A$6:$X$359,24,0),0) -> 0 | Z10: =IFERROR(VLOOKUP(A10,'Gruber Tabelle'!$A$6:$AE$359,25,0),0) -> 0 | AA10: =IFERROR(VLOOKUP(A10,'Gruber Tabelle'!$A$6:$AE$359,26,0),0) -> 0 | AB10: =IFERROR(VLOOKUP(A10,'Gruber Tabelle'!$A$6:$AE$359,27,0),0) -> 0 | AC10: =IFERROR(VLOOKUP(A10,'Gruber Tabelle'!$A$6:$AE$359,28,0),0) -> 0 | AD10: =IFERROR(VLOOKUP(A10,'Gruber Tabelle'!$A$6:$AE$359,29,0),0) -> 0 | AE10: =IFERROR(VLOOKUP(A10,'Gruber Tabelle'!$A$6:$AE$359,30,0),0) -> 0 | AF10: =IFERROR(VLOOKUP(A10,'Gruber Tabelle'!$A$6:$AE$359,31,0),0) -> 0
B11: =IFERROR(VLOOKUP(A11,'Gruber Tabelle'!$A$6:$W$359,2,0),0) -> 0 | C11: =IFERROR(VLOOKUP(A11,'Gruber Tabelle'!$A$6:$W$359,3,0),0)/1000 -> 0 | D11: =IFERROR(VLOOKUP(A11,'Gruber Tabelle'!$A$6:$W$359,3,0),0) -> 0 | E11: 0 | G11: =IFERROR(VLOOKUP(A11,'Gruber Tabelle'!$A$6:$W$359,5,0),0) -> 0 | H11: =IFERROR(VLOOKUP(A11,'Gruber Tabelle'!$A$6:$W$359,7,0),0) -> 0 | I11: =IFERROR(VLOOKUP(A11,'Gruber Tabelle'!$A$6:$W$359,8,0),0) -> 0 | J11: =IFERROR(VLOOKUP(A11,'Gruber Tabelle'!$A$6:$W$359,9,0)/100,0) -> 0 | K11: =IFERROR(VLOOKUP(A11,'Gruber Tabelle'!$A$6:$W$359,10,0),0) -> 0 | L11: =IFERROR(VLOOKUP(A11,'Gruber Tabelle'!$A$6:$W$359,11,0),0) -> 0 | M11: =IFERROR(VLOOKUP(A11,'Gruber Tabelle'!$A$6:$W$359,12,0),0) -> 0 | N11: =IFERROR(VLOOKUP(A11,'Gruber Tabelle'!$A$6:$W$359,13,0),0) -> 0 | O11: =IFERROR(VLOOKUP(A11,'Gruber Tabelle'!$A$6:$W$359,14,0),0) -> 0 | P11: =IFERROR(VLOOKUP(A11,'Gruber Tabelle'!$A$6:$W$359,15,0),0) -> 0 | Q11: =IFERROR(VLOOKUP(A11,'Gruber Tabelle'!$A$6:$W$359,16,0),0) -> 0 | R11: =IFERROR(VLOOKUP(A11,'Gruber Tabelle'!$A$6:$W$359,17,0),0) -> 0 | S11: =IFERROR(VLOOKUP(A11,'Gruber Tabelle'!$A$6:$W$359,18,0),0) -> 0 | T11: =IFERROR(VLOOKUP(A11,'Gruber Tabelle'!$A$6:$W$359,19,0),0) -> 0 | U11: =IFERROR(VLOOKUP(A11,'Gruber Tabelle'!$A$6:$W$359,20,0),0) -> 0 | V11: =IFERROR(VLOOKUP(A11,'Gruber Tabelle'!$A$6:$W$359,21,0),0) -> 0 | W11: =IFERROR(VLOOKUP(A11,'Gruber Tabelle'!$A$6:$W$359,22,0),0) -> 0 | X11: =IFERROR(VLOOKUP(A11,'Gruber Tabelle'!$A$6:$W$359,23,0),0) -> 0 | Y11: =IFERROR(VLOOKUP(A11,'Gruber Tabelle'!$A$6:$X$359,24,0),0) -> 0 | Z11: =IFERROR(VLOOKUP(A11,'Gruber Tabelle'!$A$6:$AE$359,25,0),0) -> 0 | AA11: =IFERROR(VLOOKUP(A11,'Gruber Tabelle'!$A$6:$AE$359,26,0),0) -> 0 | AB11: =IFERROR(VLOOKUP(A11,'Gruber Tabelle'!$A$6:$AE$359,27,0),0) -> 0 | AC11: =IFERROR(VLOOKUP(A11,'Gruber Tabelle'!$A$6:$AE$359,28,0),0) -> 0 | AD11: =IFERROR(VLOOKUP(A11,'Gruber Tabelle'!$A$6:$AE$359,29,0),0) -> 0 | AE11: =IFERROR(VLOOKUP(A11,'Gruber Tabelle'!$A$6:$AE$359,30,0),0) -> 0 | AF11: =IFERROR(VLOOKUP(A11,'Gruber Tabelle'!$A$6:$AE$359,31,0),0) -> 0
B12: =IFERROR(VLOOKUP(A12,'Gruber Tabelle'!$A$6:$W$359,2,0),0) -> 0 | C12: =IFERROR(VLOOKUP(A12,'Gruber Tabelle'!$A$6:$W$359,3,0),0)/1000 -> 0 | D12: =IFERROR(VLOOKUP(A12,'Gruber Tabelle'!$A$6:$W$359,3,0),0) -> 0 | E12: 0 | G12: =IFERROR(VLOOKUP(A12,'Gruber Tabelle'!$A$6:$W$359,5,0),0) -> 0 | H12: =IFERROR(VLOOKUP(A12,'Gruber Tabelle'!$A$6:$W$359,7,0),0) -> 0 | I12: =IFERROR(VLOOKUP(A12,'Gruber Tabelle'!$A$6:$W$359,8,0),0) -> 0 | J12: =IFERROR(VLOOKUP(A12,'Gruber Tabelle'!$A$6:$W$359,9,0)/100,0) -> 0 | K12: =IFERROR(VLOOKUP(A12,'Gruber Tabelle'!$A$6:$W$359,10,0),0) -> 0 | L12: =IFERROR(VLOOKUP(A12,'Gruber Tabelle'!$A$6:$W$359,11,0),0) -> 0 | M12: =IFERROR(VLOOKUP(A12,'Gruber Tabelle'!$A$6:$W$359,12,0),0) -> 0 | N12: =IFERROR(VLOOKUP(A12,'Gruber Tabelle'!$A$6:$W$359,13,0),0) -> 0 | O12: =IFERROR(VLOOKUP(A12,'Gruber Tabelle'!$A$6:$W$359,14,0),0) -> 0 | P12: =IFERROR(VLOOKUP(A12,'Gruber Tabelle'!$A$6:$W$359,15,0),0) -> 0 | Q12: =IFERROR(VLOOKUP(A12,'Gruber Tabelle'!$A$6:$W$359,16,0),0) -> 0 | R12: =IFERROR(VLOOKUP(A12,'Gruber Tabelle'!$A$6:$W$359,17,0),0) -> 0 | S12: =IFERROR(VLOOKUP(A12,'Gruber Tabelle'!$A$6:$W$359,18,0),0) -> 0 | T12: =IFERROR(VLOOKUP(A12,'Gruber Tabelle'!$A$6:$W$359,19,0),0) -> 0 | U12: =IFERROR(VLOOKUP(A12,'Gruber Tabelle'!$A$6:$W$359,20,0),0) -> 0 | V12: =IFERROR(VLOOKUP(A12,'Gruber Tabelle'!$A$6:$W$359,21,0),0) -> 0 | W12: =IFERROR(VLOOKUP(A12,'Gruber Tabelle'!$A$6:$W$359,22,0),0) -> 0 | X12: =IFERROR(VLOOKUP(A12,'Gruber Tabelle'!$A$6:$W$359,23,0),0) -> 0 | Y12: =IFERROR(VLOOKUP(A12,'Gruber Tabelle'!$A$6:$X$359,24,0),0) -> 0 | Z12: =IFERROR(VLOOKUP(A12,'Gruber Tabelle'!$A$6:$AE$359,25,0),0) -> 0 | AA12: =IFERROR(VLOOKUP(A12,'Gruber Tabelle'!$A$6:$AE$359,26,0),0) -> 0 | AB12: =IFERROR(VLOOKUP(A12,'Gruber Tabelle'!$A$6:$AE$359,27,0),0) -> 0 | AC12: =IFERROR(VLOOKUP(A12,'Gruber Tabelle'!$A$6:$AE$359,28,0),0) -> 0 | AD12: =IFERROR(VLOOKUP(A12,'Gruber Tabelle'!$A$6:$AE$359,29,0),0) -> 0 | AE12: =IFERROR(VLOOKUP(A12,'Gruber Tabelle'!$A$6:$AE$359,30,0),0) -> 0 | AF12: =IFERROR(VLOOKUP(A12,'Gruber Tabelle'!$A$6:$AE$359,31,0),0) -> 0
B13: =IFERROR(VLOOKUP(A13,'Gruber Tabelle'!$A$6:$W$359,2,0),0) -> 0 | C13: =IFERROR(VLOOKUP(A13,'Gruber Tabelle'!$A$6:$W$359,3,0),0)/1000 -> 0 | D13: =IFERROR(VLOOKUP(A13,'Gruber Tabelle'!$A$6:$W$359,3,0),0) -> 0 | E13: 0 | G13: =IFERROR(VLOOKUP(A13,'Gruber Tabelle'!$A$6:$W$359,5,0),0) -> 0 | H13: =IFERROR(VLOOKUP(A13,'Gruber Tabelle'!$A$6:$W$359,7,0),0) -> 0 | I13: =IFERROR(VLOOKUP(A13,'Gruber Tabelle'!$A$6:$W$359,8,0),0) -> 0 | J13: =IFERROR(VLOOKUP(A13,'Gruber Tabelle'!$A$6:$W$359,9,0)/100,0) -> 0 | K13: =IFERROR(VLOOKUP(A13,'Gruber Tabelle'!$A$6:$W$359,10,0),0) -> 0 | L13: =IFERROR(VLOOKUP(A13,'Gruber Tabelle'!$A$6:$W$359,11,0),0) -> 0 | M13: =IFERROR(VLOOKUP(A13,'Gruber Tabelle'!$A$6:$W$359,12,0),0) -> 0 | N13: =IFERROR(VLOOKUP(A13,'Gruber Tabelle'!$A$6:$W$359,13,0),0) -> 0 | O13: =IFERROR(VLOOKUP(A13,'Gruber Tabelle'!$A$6:$W$359,14,0),0) -> 0 | P13: =IFERROR(VLOOKUP(A13,'Gruber Tabelle'!$A$6:$W$359,15,0),0) -> 0 | Q13: =IFERROR(VLOOKUP(A13,'Gruber Tabelle'!$A$6:$W$359,16,0),0) -> 0 | R13: =IFERROR(VLOOKUP(A13,'Gruber Tabelle'!$A$6:$W$359,17,0),0) -> 0 | S13: =IFERROR(VLOOKUP(A13,'Gruber Tabelle'!$A$6:$W$359,18,0),0) -> 0 | T13: =IFERROR(VLOOKUP(A13,'Gruber Tabelle'!$A$6:$W$359,19,0),0) -> 0 | U13: =IFERROR(VLOOKUP(A13,'Gruber Tabelle'!$A$6:$W$359,20,0),0) -> 0 | V13: =IFERROR(VLOOKUP(A13,'Gruber Tabelle'!$A$6:$W$359,21,0),0) -> 0 | W13: =IFERROR(VLOOKUP(A13,'Gruber Tabelle'!$A$6:$W$359,22,0),0) -> 0 | X13: =IFERROR(VLOOKUP(A13,'Gruber Tabelle'!$A$6:$W$359,23,0),0) -> 0 | Y13: =IFERROR(VLOOKUP(A13,'Gruber Tabelle'!$A$6:$X$359,24,0),0) -> 0 | Z13: =IFERROR(VLOOKUP(A13,'Gruber Tabelle'!$A$6:$AE$359,25,0),0) -> 0 | AA13: =IFERROR(VLOOKUP(A13,'Gruber Tabelle'!$A$6:$AE$359,26,0),0) -> 0 | AB13: =IFERROR(VLOOKUP(A13,'Gruber Tabelle'!$A$6:$AE$359,27,0),0) -> 0 | AC13: =IFERROR(VLOOKUP(A13,'Gruber Tabelle'!$A$6:$AE$359,28,0),0) -> 0 | AD13: =IFERROR(VLOOKUP(A13,'Gruber Tabelle'!$A$6:$AE$359,29,0),0) -> 0 | AE13: =IFERROR(VLOOKUP(A13,'Gruber Tabelle'!$A$6:$AE$359,30,0),0) -> 0 | AF13: =IFERROR(VLOOKUP(A13,'Gruber Tabelle'!$A$6:$AE$359,31,0),0) -> 0
A14: Nr | B14: Eingabe der Futtermengen | C14: TM % | D14: TM kg | E14: FM kg | F14: TM kg | G14: aNDFom | H14: CP g | I14: nxP | J14: UDP g | K14: RNB | L14: NEL MJ | M14: ME MJ | N14: ST+ZU | O14: bST | P14: CL | Q14: Ca | R14: P | S14: Mg | T14: Na | U14: K | V14: Cl | W14: S | X14: Preis | Y14: NDFomGF | Z14: Fe | AA14: Cu | AB14: Zn | AC14: Mn | AD14: Co | AE14: J | AF14: Se
A15: =A4 -> 0 | B15: 0 | F15: =IF(A15=0,0,IF(AND(D15>0,E15=0),D15,IF(AND(E15>0,D15=0),E15*C15,IF(AND(D15>=0,E15>=0),"TM o. FM?")))) -> 0 | G15: =IFERROR(G4*F15,0) -> 0 | H15: =IFERROR(H4*F15,0) -> 0 | I15: =IFERROR(I4*F15,0) -> 0 | J15: =IFERROR((H4*J4)*F15,0) -> 0 | K15: =IFERROR(K4*F15,0) -> 0 | L15: =IFERROR(L4*F15,0) -> 0 | M15: =IFERROR(M4*G15,0) -> 0 | N15: =IFERROR(N4*F15,0) -> 0 | O15: =IFERROR(O4*F15,0) -> 0 | P15: =IFERROR(P4*F15,0) -> 0 | Q15: =IFERROR(Q4*F15,0) -> 0 | R15: =IFERROR(R4*F15,0) -> 0 | S15: =IFERROR(S4*F15,0) -> 0 | T15: =IFERROR(T4*F15,0) -> 0 | U15: =IFERROR(U4*F15,0) -> 0 | V15: =IFERROR(V4*F15,0) -> 0 | W15: =IFERROR(W4*F15,0) -> 0 | X15: =IF(F15>0,X4*E4/100,0) -> 0 | Y15: =IFERROR(IF(Y4="GF",G4*F15,0),0) -> 0 | Z15: =IFERROR(Z4*F15,0) -> 0 | AA15: =IFERROR(AA4*F15,0) -> 0 | AB15: =IFERROR(AB4*F15,0) -> 0 | AC15: =IFERROR(AC4*F15,0) -> 0 | AD15: =IFERROR(AD4*F15,0) -> 0 | AE15: =IFERROR(AE4*F15,0) -> 0 | AF15: =IFERROR(AF4*F15,0) -> 0
A16: 0 | B16: 0 | F16: =IF(A16=0,0,IF(AND(D16>0,E16=0),D16,IF(AND(E16>0,D16=0),E16*C16,IF(AND(D16>=0,E16>=0),"TM o. FM?")))) -> 0 | G16: =IFERROR(G5*F16,0) -> 0 | H16: 0 | I16: 0 | J16: =IFERROR((H5*J5)*F16,0) -> 0 | K16: 0 | L16: =IFERROR(L5*F16,0) -> 0 | M16: =M5*D16 -> 0 | N16: 0 | O16: 0 | P16: 0 | Q16: 0 | R16: 0 | S16: 0 | T16: 0 | U16: 0 | V16: 0 | W16: 0 | X16: 0 | Y16: =IFERROR(IF(Y5="GF",G5*F16,0),0) -> 0 | Z16: =IFERROR(Z5*F16,0) -> 0 | AA16: =IFERROR(AA5*F16,0) -> 0 | AB16: =IFERROR(AB5*F16,0) -> 0 | AC16: =IFERROR(AC5*F16,0) -> 0 | AD16: =IFERROR(AD5*F16,0) -> 0 | AE16: =IFERROR(AE5*F16,0) -> 0 | AF16: =IFERROR(AF5*F16,0) -> 0
A17: 0 | B17: 0 | F17: 0 | G17: =IFERROR(G6*F17,0) -> 0 | H17: 0 | I17: 0 | J17: 0 | K17: 0 | L17: 0 | M17: 0 | N17: 0 | O17: 0 | P17: 0 | Q17: 0 | R17: 0 | S17: 0 | T17: 0 | U17: 0 | V17: 0 | W17: 0 | X17: 0 | Y17: 0 | Z17: 0 | AA17: 0 | AB17: 0 | AC17: 0 | AD17: 0 | AE17: 0 | AF17: 0
A18: 0 | B18: 0 | F18: 0 | G18: 0 | H18: 0 | I18: 0 | J18: 0 | K18: 0 | L18: 0 | M18: 0 | N18: 0 | O18: 0 | P18: 0 | Q18: 0 | R18: 0 | S18: 0 | T18: 0 | U18: 0 | V18: 0 | W18: 0 | X18: 0 | Y18: 0 | Z18: 0 | AA18: 0 | AB18: 0 | AC18: 0 | AD18: 0 | AE18: 0 | AF18: 0
A19: 0 | B19: 0 | F19: 0 | G19: 0 | H19: 0 | I19: 0 | J19: 0 | K19: 0 | L19: 0 | M19: 0 | N19: 0 | O19: 0 | P19: 0 | Q19: 0 | R19: 0 | S19: 0 | T19: 0 | U19: 0 | V19: 0 | W19: 0 | X19: 0 | Y19: 0 | Z19: 0 | AA19: 0 | AB19: 0 | AC19: 0 | AD19: 0 | AE19: 0 | AF19: 0
A20: 0 | B20: 0 | F20: 0 | G20: 0 | H20: 0 | I20: 0 | J20: 0 | K20: 0 | L20: 0 | M20: 0 | N20: 0 | O20: 0 | P20: 0 | Q20: 0 | R20: 0 | S20: 0 | T20: 0 | U20: 0 | V20: 0 | W20: 0 | X20: 0 | Y20: =IFERROR(IF(Y9="GF",G9*F20,0),0) -> 0 | Z20: 0 | AA20: 0 | AB20: 0 | AC20: 0 | AD20: 0 | AE20: 0 | AF20: 0
A21: 0 | B21: 0 | F21: 0 | G21: 0 | H21: 0 | I21: 0 | J21: 0 | K21: 0 | L21: 0 | M21: 0 | N21: 0 | O21: 0 | P21: 0 | Q21: 0 | R21: 0 | S21: 0 | T21: 0 | U21: 0 | V21: 0 | W21: 0 | X21: 0 | Y21: 0 | Z21: 0 | AA21: 0 | AB21: 0 | AC21: 0 | AD21: 0 | AE21: 0 | AF21: 0
A22: 0 | B22: 0 | F22: 0 | G22: 0 | H22: 0 | I22: 0 | J22: 0 | K22: 0 | L22: 0 | M22: 0 | N22: 0 | O22: 0 | P22: 0 | Q22: 0 | R22: 0 | S22: 0 | T22: 0 | U22: 0 | V22: 0 | W22: 0 | X22: 0 | Y22: 0 | Z22: 0 | AA22: 0 | AB22: 0 | AC22: 0 | AD22: 0 | AE22: 0 | AF22: 0
A23: 0 | B23: 0 | F23: 0 | G23: 0 | H23: 0 | I23: 0 | J23: 0 | K23: 0 | L23: 0 | M23: 0 | N23: 0 | O23: 0 | P23: 0 | Q23: 0 | R23: 0 | S23: 0 | T23: 0 | U23: 0 | V23: 0 | W23: 0 | X23: 0 | Y23: 0 | Z23: 0 | AA23: 0 | AB23: 0 | AC23: 0 | AD23: 0 | AE23: 0 | AF23: 0
A24: 0 | B24: 0 | F24: 0 | G24: 0 | H24: 0 | I24: 0 | J24: 0 | K24: 0 | L24: 0 | M24: 0 | N24: 0 | O24: 0 | P24: 0 | Q24: 0 | R24: 0 | S24: 0 | T24: 0 | U24: 0 | V24: 0 | W24: 0 | X24: 0 | Y24: 0 | Z24: 0 | AA24: 0 | AB24: 0 | AC24: 0 | AD24: 0 | AE24: 0 | AF24: 0
A25: Summen FM, TM und Gehaltswerte: | E25: =SUM(E4:E13) -> 0 | F25: =SUM(F15:F24) -> 0 | G25: =SUM(G15:G24) -> 0 | H25: =SUM(H15:H24) -> 0 | I25: 0 | J25: 0 | K25: =SUM(H25-I25)/6.25 -> 0 | L25: 0 | M25: 0 | N25: 0 | O25: 0 | P25: 0 | Q25: 0 | R25: 0 | S25: 0 | T25: 0 | U25: 0 | V25: 0 | W25: 0 | X25: 0 | Y25: 0 | Z25: =SUM(Z15:Z24) -> 0 | AA25: =SUM(AA15:AA24) -> 0 | AB25: 0 | AC25: 0 | AD25: 0 | AE25: 0 | AF25: 0
A26: Basisration + Kraftfutter + Wasser
A27: Zugabe von KF-Mischung 1 in kg: | F27: =IF(E27,SUM('Mischung 1'!E25*Ration!E27),0) -> 0 | G27: =IF($E$27>0,'Mischung 1'!H25*Ration!$E$27,0) -> 0 | H27: =IF($E$27>0,'Mischung 1'!I25*Ration!$E$27,0) -> 0 | I27: =IF($E$27>0,'Mischung 1'!J25*Ration!$E$27,0) -> 0 | J27: =IF($E$27>0,'Mischung 1'!K25*Ration!$E$27,0) -> 0 | K27: =IF($E$27>0,'Mischung 1'!L25*Ration!$E$27,0) -> 0 | L27: =IF($E$27>0,'Mischung 1'!M25*Ration!$E$27,0) -> 0 | M27: =IF($E$27>0,'Mischung 1'!N25*Ration!$E$27,0) -> 0 | N27: =IF($E$27>0,'Mischung 1'!O25*Ration!$E$27,0) -> 0 | O27: =IF($E$27>0,'Mischung 1'!P25*Ration!$E$27,0) -> 0 | P27: =IF($E$27>0,'Mischung 1'!Q25*Ration!$E$27,0) -> 0 | Q27: =IF($E$27>0,'Mischung 1'!R25*Ration!$E$27,0) -> 0 | R27: =IF($E$27>0,'Mischung 1'!S25*Ration!$E$27,0) -> 0 | S27: =IF($E$27>0,'Mischung 1'!T25*Ration!$E$27,0) -> 0 | T27: =IF($E$27>0,'Mischung 1'!U25*Ration!$E$27,0) -> 0 | U27: =IF($E$27>0,'Mischung 1'!V25*Ration!$E$27,0) -> 0 | V27: =IF($E$27>0,'Mischung 1'!W25*Ration!$E$27,0) -> 0 | W27: =IF($E$27>0,'Mischung 1'!X25*Ration!$E$27,0) -> 0 | X27: =IF($E$27>0,'Mischung 1'!Y25*Ration!$E$27,0) -> 0 | Z27: =IF($E$27>0,'Mischung 1'!Z25*Ration!$E$27,0) -> 0 | AA27: =IF($E$27>0,'Mischung 1'!AA25*Ration!$E$27,0) -> 0 | AB27: =IF($E$27>0,'Mischung 1'!AB25*Ration!$E$27,0) -> 0 | AC27: =IF($E$27>0,'Mischung 1'!AC25*Ration!$E$27,0) -> 0 | AD27: =IF($E$27>0,'Mischung 1'!AD25*Ration!$E$27,0) -> 0 | AE27: =IF($E$27>0,'Mischung 1'!AE25*Ration!$E$27,0) -> 0 | AF27: =IF($E$27>0,'Mischung 1'!AF25*Ration!$E$27,0) -> 0
A28: Zugabe von KF-Mischung 2 in kg: | F28: =IF(E28,SUM('Mischung 2'!E25*Ration!E28),0) -> 0 | G28: =IF($E$28>0,'Mischung 2'!H25*Ration!$E$28,0) -> 0 | H28: =IF($E$28>0,'Mischung 2'!I25*Ration!$E$28,0) -> 0 | I28: =IF($E$28>0,'Mischung 2'!J25*Ration!$E$28,0) -> 0 | J28: =IF($E$28>0,'Mischung 2'!K25*Ration!$E$28,0) -> 0 | K28: =IF($E$28>0,'Mischung 2'!L25*Ration!$E$28,0) -> 0 | L28: =IF($E$28>0,'Mischung 2'!M25*Ration!$E$28,0) -> 0 | M28: =IF($E$28>0,'Mischung 2'!N25*Ration!$E$28,0) -> 0 | N28: =IF($E$28>0,'Mischung 2'!O25*Ration!$E$28,0) -> 0 | O28: =IF($E$28>0,'Mischung 2'!P25*Ration!$E$28,0) -> 0 | P28: =IF($E$28>0,'Mischung 2'!Q25*Ration!$E$28,0) -> 0 | Q28: =IF($E$28>0,'Mischung 2'!R25*Ration!$E$28,0) -> 0 | R28: =IF($E$28>0,'Mischung 2'!S25*Ration!$E$28,0) -> 0 | S28: =IF($E$28>0,'Mischung 2'!T25*Ration!$E$28,0) -> 0 | T28: =IF($E$28>0,'Mischung 2'!U25*Ration!$E$28,0) -> 0 | U28: =IF($E$28>0,'Mischung 2'!V25*Ration!$E$28,0) -> 0 | V28: =IF($E$28>0,'Mischung 2'!W25*Ration!$E$28,0) -> 0 | W28: =IF($E$28>0,'Mischung 2'!X25*Ration!$E$28,0) -> 0 | X28: =IF($E$28>0,'Mischung 2'!Y25*Ration!$E$28,0) -> 0 | Z28: =IF($E$28>0,'Mischung 2'!Z25*Ration!$E$28,0) -> 0 | AA28: =IF($E$28>0,'Mischung 2'!AA25*Ration!$E$28,0) -> 0 | AB28: =IF($E$28>0,'Mischung 2'!AB25*Ration!$E$28,0) -> 0 | AC28: =IF($E$28>0,'Mischung 2'!AC25*Ration!$E$28,0) -> 0 | AD28: =IF($E$28>0,'Mischung 2'!AD25*Ration!$E$28,0) -> 0 | AE28: =IF($E$28>0,'Mischung 2'!AE25*Ration!$E$28,0) -> 0 | AF28: =IF($E$28>0,'Mischung 2'!AF25*Ration!$E$28,0) -> 0
A29: Zugabe von Wasser (Liter o. kg):
A30: Summe Gesamt-Ration Inhaltsw.: | E30: =SUM(E25+E27+E28+E29) -> 0 | F30: =SUM(F25+F27+F28) -> 0 | G30: =SUM(G25+G27+G28) -> 0 | H30: =SUM(H25+H27+H28) -> 0 | I30: =SUM(I25+I27+I28) -> 0 | J30: =SUM(J25+J27+J28) -> 0 | L30: =SUM(L25+L27+L28) -> 0 | M30: 0 | N30: 0 | O30: 0 | P30: 0 | Q30: 0 | R30: 0 | S30: 0 | T30: 0 | U30: 0 | V30: 0 | W30: 0 | X30: 0 | Z30: =SUM(Z25+Z27+Z28) -> 0 | AA30: =SUM(AA25+AA27+AA28) -> 0 | AB30: 0 | AC30: 0 | AD30: 0 | AE30: 0 | AF30: 0
A31: Gehaltswerte in g je kg TM oder Anteile in % | F31: =IF(F30,F30/E30,0) -> 0 | G31: =IF(Y25>0,Y25/F30/1000,0) -> 0 | H31: =IF(H30>0,SUM(H30/F30)/1000,0) -> 0 | I31: =IF(I30>0,SUM(I30/F30/1000),0) -> 0 | J31: =IF(J30>0,SUM(J30/H30),0) -> 0 | K31: =IF(H30>0,(H30-I30)/6.25,0) -> 0 | L31: =IF(L30>0,L30/F30,0) -> 0 | M31: =IF(M30>0,M30/D30,0) -> 0 | N31: =IF(N30>0,N30/F30/1000,0) -> 0 | O31: =IF(O30>0,O30/F30/1000,0) -> 0 | P31: =IF(P30>0,P30/F30/1000,0) -> 0 | Q31: =IF(Q30,Q30/F30,0) -> 0 | R31: =IF(R30,R30/F30,0) -> 0 | S31: =IF(S30,S30/F30,0) -> 0 | T31: =IF(T30,T30/F30,0) -> 0 | U31: =IF(U30,U30/F30,0) -> 0 | V31: =IF(V30,V30/F30,0) -> 0 | W31: =IF(W30,W30/F30,0) -> 0 | Z31: =IF(Z30,Z30/F30,0) -> 0 | AA31: =IF(AA30,AA30/F30,0) -> 0 | AB31: =IF(AB30,AB30/F30,0) -> 0 | AC31: =IF(AC30,AC30/F30,0) -> 0 | AD31: =IF(AD30,AD30/F30,0) -> 0 | AE31: =IF(AE30,AE30/F30,0) -> 0 | AF31: =IF(AF30,AF30/F30,0) -> 0
A32: Kennzahlen Gesamtration | F32: SI : | G32: =IF(K32>100,100,K32) -> 0 | K32: =IF(Y25>0,Y25/(Y25+(P32-2.8)/0.36)*100,0) -> 0 | L32: pab KHkg : | P32: =IF(N30,(N30-O30),0) -> 0 | Q32: =IF(F30>0,SUM(P32/1000)/F30,0) -> 0 | T32: DCAB (mEq/kg) : | V32: =IF(F30>0,((43.5*T30)+(25.6*U30)-(28.2*V30)-(62.4*W30))/F30,0) -> 0
A34: Milcherzeugungswert (MEW) in kg: | H34: =IF(Einstellung!D16,SUM(H30-Einstellung!E13)/Einstellung!E16,"TS") -> -5.402298851 | I34: =IF(Einstellung!D16,SUM(I30-Einstellung!E13)/Einstellung!E16,"TS") -> -5.402298851 | L34: =IF(Einstellung!D15,SUM(L30-Einstellung!F13)/Einstellung!F15,"TS") -> -12.09090909 | Q34: =IF(Einstellung!F15,(Q30-(Einstellung!D22*F30))/Einstellung!D23,"TS") -> 0 | R34: =IF(Einstellung!F15,(R30-(Einstellung!E22*F30))/Einstellung!E23,"TS") -> 0 | T34: =IF(Einstellung!F15,(T30-(Einstellung!G22*F30))/Einstellung!G23,"TS") -> 0 | X34: =IF(Einstellung!F15,X30/L34,0) -> 0
A36: Ziel- | B36: =A2 -> Bitte Gruppe auswählen! | F36: TM | G36: aNDFom | H36: CP | I36: nxP | K36: RNB | L36: NEL MJ | N36: ST+ZU | O36: bST | P36: CL | Q36: Ca | R36: P | S36: Mg | T36: Na | U36: K | X36: DCAB | Z36: Fe | AA36: Cu | AB36: Zn | AC36: Mn | AD36: Co | AE36: J | AF36: Se
A37: Werte: | F37: kg | G37: %/TM | H37: %/kgTM | I37: %/kgTM | K37: g | L37: MJ/kg TM | N37: %/kgTM | O37: %/kgTM | P37: %/kgTM | Q37: g/kg TM | R37: g/kg TM | S37: g/kg TM | T37: g/kg TM | U37: g/kg TM | X37: mEq/kg TM | Z37: mg/kg TM | AA37: mg/kg TM | AB37: mg/kg TM | AC37: mg/kg TM | AD37: mg/kg TM | AE37: mg/kg TM | AF37: mg/kg TM
A38: Die Werte stehen in der Tabelle 'Zielwerte'. Damit können die Ergebnisse der Berechnung bewertet werden. Abweichungen von mehr als +/- 4% sind farblich gekennzeichnet. | E38: min | F38: =IFERROR(VLOOKUP($A$2,Zielwerte!$A$6:$AJ$15,3,0),0) -> 0 | G38: =IFERROR(VLOOKUP($A$2,Zielwerte!$A$6:$AJ$15,7,0),0)/100 -> 0 | H38: =IFERROR(VLOOKUP($A$2,Zielwerte!$A$6:$AJ$15,11,0),0)/100 -> 0 | I38: =IFERROR(VLOOKUP($A$2,Zielwerte!$A$6:$AJ$15,13,0),0)/100 -> 0 | K38: =IFERROR(VLOOKUP($A$2,Zielwerte!$A$6:$AJ$15,15,0),0) -> 0 | L38: =IFERROR(VLOOKUP($A$2,Zielwerte!$A$6:$AJ$15,17,0),0) -> 0 | N38: =IFERROR(VLOOKUP($A$2,Zielwerte!$A$6:$AJ$15,19,0),0)/100 -> 0 | O38: =IFERROR(VLOOKUP($A$2,Zielwerte!$A$6:$AJ$15,21,0),0)/100 -> 0 | P38: =IFERROR(VLOOKUP($A$2,Zielwerte!$A$6:$AJ$15,23,0),0)/100 -> 0 | Q38: =IFERROR(VLOOKUP($A$2,Zielwerte!$A$6:$AJ$15,25,0),0) -> 0 | R38: =IFERROR(VLOOKUP($A$2,Zielwerte!$A$6:$AJ$15,27,0),0) -> 0 | S38: =IFERROR(VLOOKUP($A$2,Zielwerte!$A$6:$AJ$15,29,0),0) -> 0 | T38: =IFERROR(VLOOKUP($A$2,Zielwerte!$A$6:$AJ$15,31,0),0) -> 0 | U38: =IFERROR(VLOOKUP($A$2,Zielwerte!$A$6:$AJ$15,33,0),0) -> 0 | X38: =IFERROR(VLOOKUP($A$2,Zielwerte!$A$6:$AJ$15,35,0),0) -> 0 | Z38: =IFERROR(VLOOKUP($A$2,Zielwerte!$A$6:$AX$15,37,0),0) -> 0 | AA38: =IFERROR(VLOOKUP($A$2,Zielwerte!$A$6:$AX$15,39,0),0) -> 0 | AB38: =IFERROR(VLOOKUP($A$2,Zielwerte!$A$6:$AX$15,41,0),0) -> 0 | AC38: =IFERROR(VLOOKUP($A$2,Zielwerte!$A$6:$AX$15,43,0),0) -> 0 | AD38: =IFERROR(VLOOKUP($A$2,Zielwerte!$A$6:$AX$15,45,0),0) -> 0 | AE38: =IFERROR(VLOOKUP($A$2,Zielwerte!$A$6:$AX$15,47,0),0) -> 0 | AF38: =IFERROR(VLOOKUP($A$2,Zielwerte!$A$6:$AX$15,49,0),0) -> 0
E39: max | F39: =IFERROR(VLOOKUP($A$2,Zielwerte!$A$6:$AJ$15,4,0),0) -> 0 | G39: =IFERROR(VLOOKUP($A$2,Zielwerte!$A$6:$AJ$15,8,0),0)/100 -> 0 | H39: =IFERROR(VLOOKUP($A$2,Zielwerte!$A$6:$AJ$15,12,0),0)/100 -> 0 | I39: =IFERROR(VLOOKUP($A$2,Zielwerte!$A$6:$AJ$15,14,0),0)/100 -> 0 | K39: =IFERROR(VLOOKUP($A$2,Zielwerte!$A$6:$AJ$15,16,0),0) -> 0 | L39: =IFERROR(VLOOKUP($A$2,Zielwerte!$A$6:$AJ$15,18,0),0) -> 0 | N39: =IFERROR(VLOOKUP($A$2,Zielwerte!$A$6:$AJ$15,20,0),0)/100 -> 0 | O39: =IFERROR(VLOOKUP($A$2,Zielwerte!$A$6:$AJ$15,22,0),0)/100 -> 0 | P39: =IFERROR(VLOOKUP($A$2,Zielwerte!$A$6:$AJ$15,24,0),0)/100 -> 0 | Q39: =IFERROR(VLOOKUP($A$2,Zielwerte!$A$6:$AJ$15,26,0),0) -> 0 | R39: =IFERROR(VLOOKUP($A$2,Zielwerte!$A$6:$AJ$15,28,0),0) -> 0 | S39: =IFERROR(VLOOKUP($A$2,Zielwerte!$A$6:$AJ$15,30,0),0) -> 0 | T39: =IFERROR(VLOOKUP($A$2,Zielwerte!$A$6:$AJ$15,32,0),0) -> 0 | U39: =IFERROR(VLOOKUP($A$2,Zielwerte!$A$6:$AJ$15,34,0),0) -> 0 | X39: =IFERROR(VLOOKUP($A$2,Zielwerte!$A$6:$AJ$15,36,0),0) -> 0 | Z39: =IFERROR(VLOOKUP($A$2,Zielwerte!$A$6:$AX$15,38,0),0) -> 0 | AA39: =IFERROR(VLOOKUP($A$2,Zielwerte!$A$6:$AX$15,40,0),0) -> 0 | AB39: =IFERROR(VLOOKUP($A$2,Zielwerte!$A$6:$AX$15,42,0),0) -> 0 | AC39: =IFERROR(VLOOKUP($A$2,Zielwerte!$A$6:$AX$15,44,0),0) -> 0 | AD39: =IFERROR(VLOOKUP($A$2,Zielwerte!$A$6:$AX$15,46,0),0) -> 0 | AE39: =IFERROR(VLOOKUP($A$2,Zielwerte!$A$6:$AX$15,48,0),0) -> 0 | AF39: =IFERROR(VLOOKUP($A$2,Zielwerte!$A$6:$AX$15,50,0),0) -> 0

Sheet Mischung 1
A2: KF – Berechnung 1 | G2: Nähr- und Mineralstoffgehalte je kg TM | Z2: Spurenelemente mg / kg TM
A3: Nr | B3: Futterart | G3: XF g | H3: aNDFom | I3: CP g | J3: nxP g | K3: UDP % | L3: RNB | M3: NEL MJ | N3: ME MJ | O3: ST+ZU | P3: bST | Q3: CL | R3: Ca | S3: P | T3: Mg | U3: Na | V3: K | W3: Cl | X3: S | Y3: Preis / dt | Z3: Fe | AA3: Cu | AB3: Zn | AC3: Mn | AD3: Co | AE3: J | AF3: Se
B4: =IFERROR(VLOOKUP(A4,'Gruber Tabelle'!$A$6:$W$359,2,0),0) -> 0 | G4: =IFERROR(VLOOKUP(A4,'Gruber Tabelle'!$A$6:$W$359,4,0),0) -> 0 | H4: =IFERROR(VLOOKUP(A4,'Gruber Tabelle'!$A$6:$W$359,5,0),0) -> 0 | I4: =IFERROR(VLOOKUP(A4,'Gruber Tabelle'!$A$6:$W$359,7,0),0) -> 0 | J4: =IFERROR(VLOOKUP(A4,'Gruber Tabelle'!$A$6:$W$359,8,0),0) -> 0 | K4: =IFERROR(VLOOKUP(A4,'Gruber Tabelle'!$A$6:$W$359,9,0)/100,0) -> 0 | L4: =IFERROR(VLOOKUP(A4,'Gruber Tabelle'!$A$6:$W$359,10,0),0) -> 0 | M4: =IFERROR(VLOOKUP(A4,'Gruber Tabelle'!$A$6:$W$359,11,0),0) -> 0 | N4: =IFERROR(VLOOKUP(A4,'Gruber Tabelle'!$A$6:$W$359,12,0),0) -> 0 | O4: =IFERROR(VLOOKUP(A4,'Gruber Tabelle'!$A$6:$W$359,13,0),0) -> 0 | P4: =IFERROR(VLOOKUP(A4,'Gruber Tabelle'!$A$6:$W$359,14,0),0) -> 0 | Q4: =IFERROR(VLOOKUP(A4,'Gruber Tabelle'!$A$6:$W$359,15,0),0) -> 0 | R4: =IFERROR(VLOOKUP(A4,'Gruber Tabelle'!$A$6:$W$359,16,0),0) -> 0 | S4: =IFERROR(VLOOKUP(A4,'Gruber Tabelle'!$A$6:$W$359,17,0),0) -> 0 | T4: =IFERROR(VLOOKUP(A4,'Gruber Tabelle'!$A$6:$W$359,18,0),0) -> 0 | U4: =IFERROR(VLOOKUP(A4,'Gruber Tabelle'!$A$6:$W$359,19,0),0) -> 0 | V4: =IFERROR(VLOOKUP(A4,'Gruber Tabelle'!$A$6:$W$359,20,0),0) -> 0 | W4: =IFERROR(VLOOKUP(A4,'Gruber Tabelle'!$A$6:$W$359,21,0),0) -> 0 | X4: =IFERROR(VLOOKUP(A4,'Gruber Tabelle'!$A$6:$W$359,22,0),0) -> 0 | Y4: =IFERROR(VLOOKUP(A4,'Gruber Tabelle'!$A$6:$W$359,23,0),0) -> 0 | Z4: =IFERROR(VLOOKUP(A4,'Gruber Tabelle'!$A$6:$AE$359,25,0),0) -> 0 | AA4: =IFERROR(VLOOKUP(A4,'Gruber Tabelle'!$A$6:$AE$359,26,0),0) -> 0 | AB4: =IFERROR(VLOOKUP(A4,'Gruber Tabelle'!$A$6:$AE$359,27,0),0) -> 0 | AC4: =IFERROR(VLOOKUP(A4,'Gruber Tabelle'!$A$6:$AE$359,28,0),0) -> 0 | AD4: =IFERROR(VLOOKUP(A4,'Gruber Tabelle'!$A$6:$AE$359,29,0),0) -> 0 | AE4: =IFERROR(VLOOKUP(A4,'Gruber Tabelle'!$A$6:$AE$359,30,0),0) -> 0 | AF4: =IFERROR(VLOOKUP(A4,'Gruber Tabelle'!$A$6:$AE$359,31,0),0) -> 0
B5: =IFERROR(VLOOKUP(A5,'Gruber Tabelle'!$A$6:$W$359,2,0),0) -> 0 | G5: =IFERROR(VLOOKUP(A5,'Gruber Tabelle'!$A$6:$W$359,4,0),0) -> 0 | H5: =IFERROR(VLOOKUP(A5,'Gruber Tabelle'!$A$6:$W$359,5,0),0) -> 0 | I5: =IFERROR(VLOOKUP(A5,'Gruber Tabelle'!$A$6:$W$359,7,0),0) -> 0 | J5: =IFERROR(VLOOKUP(A5,'Gruber Tabelle'!$A$6:$W$359,8,0),0) -> 0 | K5: =IFERROR(VLOOKUP(A5,'Gruber Tabelle'!$A$6:$W$359,9,0)/100,0) -> 0 | L5: =IFERROR(VLOOKUP(A5,'Gruber Tabelle'!$A$6:$W$359,10,0),0) -> 0 | M5: =IFERROR(VLOOKUP(A5,'Gruber Tabelle'!$A$6:$W$359,11,0),0) -> 0 | N5: =IFERROR(VLOOKUP(A5,'Gruber Tabelle'!$A$6:$W$359,12,0),0) -> 0 | O5: =IFERROR(VLOOKUP(A5,'Gruber Tabelle'!$A$6:$W$359,13,0),0) -> 0 | P5: =IFERROR(VLOOKUP(A5,'Gruber Tabelle'!$A$6:$W$359,14,0),0) -> 0 | Q5: =IFERROR(VLOOKUP(A5,'Gruber Tabelle'!$A$6:$W$359,15,0),0) -> 0 | R5: =IFERROR(VLOOKUP(A5,'Gruber Tabelle'!$A$6:$W$359,16,0),0) -> 0 | S5: =IFERROR(VLOOKUP(A5,'Gruber Tabelle'!$A$6:$W$359,17,0),0) -> 0 | T5: =IFERROR(VLOOKUP(A5,'Gruber Tabelle'!$A$6:$W$359,18,0),0) -> 0 | U5: =IFERROR(VLOOKUP(A5,'Gruber Tabelle'!$A$6:$W$359,19,0),0) -> 0 | V5: =IFERROR(VLOOKUP(A5,'Gruber Tabelle'!$A$6:$W$359,20,0),0) -> 0 | W5: =IFERROR(VLOOKUP(A5,'Gruber Tabelle'!$A$6:$W$359,21,0),0) -> 0 | X5: =IFERROR(VLOOKUP(A5,'Gruber Tabelle'!$A$6:$W$359,22,0),0) -> 0 | Y5: =IFERROR(VLOOKUP(A5,'Gruber Tabelle'!$A$6:$W$359,23,0),0) -> 0 | Z5: =IFERROR(VLOOKUP(A5,'Gruber Tabelle'!$A$6:$AE$359,25,0),0) -> 0 | AA5: =IFERROR(VLOOKUP(A5,'Gruber Tabelle'!$A$6:$AE$359,26,0),0) -> 0 | AB5: =IFERROR(VLOOKUP(A5,'Gruber Tabelle'!$A$6:$AE$359,27,0),0) -> 0 | AC5: =IFERROR(VLOOKUP(A5,'Gruber Tabelle'!$A$6:$AE$359,28,0),0) -> 0 | AD5: =IFERROR(VLOOKUP(A5,'Gruber Tabelle'!$A$6:$AE$359,29,0),0) -> 0 | AE5: =IFERROR(VLOOKUP(A5,'Gruber Tabelle'!$A$6:$AE$359,30,0),0) -> 0 | AF5: =IFERROR(VLOOKUP(A5,'Gruber Tabelle'!$A$6:$AE$359,31,0),0) -> 0
B6: =IFERROR(VLOOKUP(A6,'Gruber Tabelle'!$A$6:$W$359,2,0),0) -> 0 | G6: =IFERROR(VLOOKUP(A6,'Gruber Tabelle'!$A$6:$W$359,4,0),0) -> 0 | H6: =IFERROR(VLOOKUP(A6,'Gruber Tabelle'!$A$6:$W$359,5,0),0) -> 0 | I6: =IFERROR(VLOOKUP(A6,'Gruber Tabelle'!$A$6:$W$359,7,0),0) -> 0 | J6: =IFERROR(VLOOKUP(A6,'Gruber Tabelle'!$A$6:$W$359,8,0),0) -> 0 | K6: =IFERROR(VLOOKUP(A6,'Gruber Tabelle'!$A$6:$W$359,9,0)/100,0) -> 0 | L6: =IFERROR(VLOOKUP(A6,'Gruber Tabelle'!$A$6:$W$359,10,0),0) -> 0 | M6: =IFERROR(VLOOKUP(A6,'Gruber Tabelle'!$A$6:$W$359,11,0),0) -> 0 | N6: =IFERROR(VLOOKUP(A6,'Gruber Tabelle'!$A$6:$W$359,12,0),0) -> 0 | O6: =IFERROR(VLOOKUP(A6,'Gruber Tabelle'!$A$6:$W$359,13,0),0) -> 0 | P6: =IFERROR(VLOOKUP(A6,'Gruber Tabelle'!$A$6:$W$359,14,0),0) -> 0 | Q6: =IFERROR(VLOOKUP(A6,'Gruber Tabelle'!$A$6:$W$359,15,0),0) -> 0 | R6: =IFERROR(VLOOKUP(A6,'Gruber Tabelle'!$A$6:$W$359,16,0),0) -> 0 | S6: =IFERROR(VLOOKUP(A6,'Gruber Tabelle'!$A$6:$W$359,17,0),0) -> 0 | T6: =IFERROR(VLOOKUP(A6,'Gruber Tabelle'!$A$6:$W$359,18,0),0) -> 0 | U6: =IFERROR(VLOOKUP(A6,'Gruber Tabelle'!$A$6:$W$359,19,0),0) -> 0 | V6: =IFERROR(VLOOKUP(A6,'Gruber Tabelle'!$A$6:$W$359,20,0),0) -> 0 | W6: =IFERROR(VLOOKUP(A6,'Gruber Tabelle'!$A$6:$W$359,21,0),0) -> 0 | X6: =IFERROR(VLOOKUP(A6,'Gruber Tabelle'!$A$6:$W$359,22,0),0) -> 0 | Y6: =IFERROR(VLOOKUP(A6,'Gruber Tabelle'!$A$6:$W$359,23,0),0) -> 0 | Z6: =IFERROR(VLOOKUP(A6,'Gruber Tabelle'!$A$6:$AE$359,25,0),0) -> 0 | AA6: =IFERROR(VLOOKUP(A6,'Gruber Tabelle'!$A$6:$AE$359,26,0),0) -> 0 | AB6: =IFERROR(VLOOKUP(A6,'Gruber Tabelle'!$A$6:$AE$359,27,0),0) -> 0 | AC6: =IFERROR(VLOOKUP(A6,'Gruber Tabelle'!$A$6:$AE$359,28,0),0) -> 0 | AD6: =IFERROR(VLOOKUP(A6,'Gruber Tabelle'!$A$6:$AE$359,29,0),0) -> 0 | AE6: =IFERROR(VLOOKUP(A6,'Gruber Tabelle'!$A$6:$AE$359,30,0),0) -> 0 | AF6: =IFERROR(VLOOKUP(A6,'Gruber Tabelle'!$A$6:$AE$359,31,0),0) -> 0
B7: =IFERROR(VLOOKUP(A7,'Gruber Tabelle'!$A$6:$W$359,2,0),0) -> 0 | G7: =IFERROR(VLOOKUP(A7,'Gruber Tabelle'!$A$6:$W$359,4,0),0) -> 0 | H7: =IFERROR(VLOOKUP(A7,'Gruber Tabelle'!$A$6:$W$359,5,0),0) -> 0 | I7: =IFERROR(VLOOKUP(A7,'Gruber Tabelle'!$A$6:$W$359,7,0),0) -> 0 | J7: =IFERROR(VLOOKUP(A7,'Gruber Tabelle'!$A$6:$W$359,8,0),0) -> 0 | K7: =IFERROR(VLOOKUP(A7,'Gruber Tabelle'!$A$6:$W$359,9,0)/100,0) -> 0 | L7: =IFERROR(VLOOKUP(A7,'Gruber Tabelle'!$A$6:$W$359,10,0),0) -> 0 | M7: =IFERROR(VLOOKUP(A7,'Gruber Tabelle'!$A$6:$W$359,11,0),0) -> 0 | N7: =IFERROR(VLOOKUP(A7,'Gruber Tabelle'!$A$6:$W$359,12,0),0) -> 0 | O7: =IFERROR(VLOOKUP(A7,'Gruber Tabelle'!$A$6:$W$359,13,0),0) -> 0 | P7: =IFERROR(VLOOKUP(A7,'Gruber Tabelle'!$A$6:$W$359,14,0),0) -> 0 | Q7: =IFERROR(VLOOKUP(A7,'Gruber Tabelle'!$A$6:$W$359,15,0),0) -> 0 | R7: =IFERROR(VLOOKUP(A7,'Gruber Tabelle'!$A$6:$W$359,16,0),0) -> 0 | S7: =IFERROR(VLOOKUP(A7,'Gruber Tabelle'!$A$6:$W$359,17,0),0) -> 0 | T7: =IFERROR(VLOOKUP(A7,'Gruber Tabelle'!$A$6:$W$359,18,0),0) -> 0 | U7: =IFERROR(VLOOKUP(A7,'Gruber Tabelle'!$A$6:$W$359,19,0),0) -> 0 | V7: =IFERROR(VLOOKUP(A7,'Gruber Tabelle'!$A$6:$W$359,20,0),0) -> 0 | W7: =IFERROR(VLOOKUP(A7,'Gruber Tabelle'!$A$6:$W$359,21,0),0) -> 0 | X7: =IFERROR(VLOOKUP(A7,'Gruber Tabelle'!$A$6:$W$359,22,0),0) -> 0 | Y7: =IFERROR(VLOOKUP(A7,'Gruber Tabelle'!$A$6:$W$359,23,0),0) -> 0 | Z7: =IFERROR(VLOOKUP(A7,'Gruber Tabelle'!$A$6:$AE$359,25,0),0) -> 0 | AA7: =IFERROR(VLOOKUP(A7,'Gruber Tabelle'!$A$6:$AE$359,26,0),0) -> 0 | AB7: =IFERROR(VLOOKUP(A7,'Gruber Tabelle'!$A$6:$AE$359,27,0),0) -> 0 | AC7: =IFERROR(VLOOKUP(A7,'Gruber Tabelle'!$A$6:$AE$359,28,0),0) -> 0 | AD7: =IFERROR(VLOOKUP(A7,'Gruber Tabelle'!$A$6:$AE$359,29,0),0) -> 0 | AE7: =IFERROR(VLOOKUP(A7,'Gruber Tabelle'!$A$6:$AE$359,30,0),0) -> 0 | AF7: =IFERROR(VLOOKUP(A7,'Gruber Tabelle'!$A$6:$AE$359,31,0),0) -> 0
B8: =IFERROR(VLOOKUP(A8,'Gruber Tabelle'!$A$6:$W$359,2,0),0) -> 0 | G8: =IFERROR(VLOOKUP(A8,'Gruber Tabelle'!$A$6:$W$359,4,0),0) -> 0 | H8: =IFERROR(VLOOKUP(A8,'Gruber Tabelle'!$A$6:$W$359,5,0),0) -> 0 | I8: =IFERROR(VLOOKUP(A8,'Gruber Tabelle'!$A$6:$W$359,7,0),0) -> 0 | J8: =IFERROR(VLOOKUP(A8,'Gruber Tabelle'!$A$6:$W$359,8,0),0) -> 0 | K8: =IFERROR(VLOOKUP(A8,'Gruber Tabelle'!$A$6:$W$359,9,0)/100,0) -> 0 | L8: =IFERROR(VLOOKUP(A8,'Gruber Tabelle'!$A$6:$W$359,10,0),0) -> 0 | M8: =IFERROR(VLOOKUP(A8,'Gruber Tabelle'!$A$6:$W$359,11,0),0) -> 0 | N8: =IFERROR(VLOOKUP(A8,'Gruber Tabelle'!$A$6:$W$359,12,0),0) -> 0 | O8: =IFERROR(VLOOKUP(A8,'Gruber Tabelle'!$A$6:$W$359,13,0),0) -> 0 | P8: =IFERROR(VLOOKUP(A8,'Gruber Tabelle'!$A$6:$W$359,14,0),0) -> 0 | Q8: =IFERROR(VLOOKUP(A8,'Gruber Tabelle'!$A$6:$W$359,15,0),0) -> 0 | R8: =IFERROR(VLOOKUP(A8,'Gruber Tabelle'!$A$6:$W$359,16,0),0) -> 0 | S8: =IFERROR(VLOOKUP(A8,'Gruber Tabelle'!$A$6:$W$359,17,0),0) -> 0 | T8: =IFERROR(VLOOKUP(A8,'Gruber Tabelle'!$A$6:$W$359,18,0),0) -> 0 | U8: =IFERROR(VLOOKUP(A8,'Gruber Tabelle'!$A$6:$W$359,19,0),0) -> 0 | V8: =IFERROR(VLOOKUP(A8,'Gruber Tabelle'!$A$6:$W$359,20,0),0) -> 0 | W8: =IFERROR(VLOOKUP(A8,'Gruber Tabelle'!$A$6:$W$359,21,0),0) -> 0 | X8: =IFERROR(VLOOKUP(A8,'Gruber Tabelle'!$A$6:$W$359,22,0),0) -> 0 | Y8: =IFERROR(VLOOKUP(A8,'Gruber Tabelle'!$A$6:$W$359,23,0),0) -> 0 | Z8: =IFERROR(VLOOKUP(A8,'Gruber Tabelle'!$A$6:$AE$359,25,0),0) -> 0 | AA8: =IFERROR(VLOOKUP(A8,'Gruber Tabelle'!$A$6:$AE$359,26,0),0) -> 0 | AB8: =IFERROR(VLOOKUP(A8,'Gruber Tabelle'!$A$6:$AE$359,27,0),0) -> 0 | AC8: =IFERROR(VLOOKUP(A8,'Gruber Tabelle'!$A$6:$AE$359,28,0),0) -> 0 | AD8: =IFERROR(VLOOKUP(A8,'Gruber Tabelle'!$A$6:$AE$359,29,0),0) -> 0 | AE8: =IFERROR(VLOOKUP(A8,'Gruber Tabelle'!$A$6:$AE$359,30,0),0) -> 0 | AF8: =IFERROR(VLOOKUP(A8,'Gruber Tabelle'!$A$6:$AE$359,31,0),0) -> 0
B9: =IFERROR(VLOOKUP(A9,'Gruber Tabelle'!$A$6:$W$359,2,0),0) -> 0 | G9: =IFERROR(VLOOKUP(A9,'Gruber Tabelle'!$A$6:$W$359,4,0),0) -> 0 | H9: =IFERROR(VLOOKUP(A9,'Gruber Tabelle'!$A$6:$W$359,5,0),0) -> 0 | I9: =IFERROR(VLOOKUP(A9,'Gruber Tabelle'!$A$6:$W$359,7,0),0) -> 0 | J9: =IFERROR(VLOOKUP(A9,'Gruber Tabelle'!$A$6:$W$359,8,0),0) -> 0 | K9: =IFERROR(VLOOKUP(A9,'Gruber Tabelle'!$A$6:$W$359,9,0)/100,0) -> 0 | L9: =IFERROR(VLOOKUP(A9,'Gruber Tabelle'!$A$6:$W$359,10,0),0) -> 0 | M9: =IFERROR(VLOOKUP(A9,'Gruber Tabelle'!$A$6:$W$359,11,0),0) -> 0 | N9: =IFERROR(VLOOKUP(A9,'Gruber Tabelle'!$A$6:$W$359,12,0),0) -> 0 | O9: =IFERROR(VLOOKUP(A9,'Gruber Tabelle'!$A$6:$W$359,13,0),0) -> 0 | P9: =IFERROR(VLOOKUP(A9,'Gruber Tabelle'!$A$6:$W$359,14,0),0) -> 0 | Q9: =IFERROR(VLOOKUP(A9,'Gruber Tabelle'!$A$6:$W$359,15,0),0) -> 0 | R9: =IFERROR(VLOOKUP(A9,'Gruber Tabelle'!$A$6:$W$359,16,0),0) -> 0 | S9: =IFERROR(VLOOKUP(A9,'Gruber Tabelle'!$A$6:$W$359,17,0),0) -> 0 | T9: =IFERROR(VLOOKUP(A9,'Gruber Tabelle'!$A$6:$W$359,18,0),0) -> 0 | U9: =IFERROR(VLOOKUP(A9,'Gruber Tabelle'!$A$6:$W$359,19,0),0) -> 0 | V9: =IFERROR(VLOOKUP(A9,'Gruber Tabelle'!$A$6:$W$359,20,0),0) -> 0 | W9: =IFERROR(VLOOKUP(A9,'Gruber Tabelle'!$A$6:$W$359,21,0),0) -> 0 | X9: =IFERROR(VLOOKUP(A9,'Gruber Tabelle'!$A$6:$W$359,22,0),0) -> 0 | Y9: =IFERROR(VLOOKUP(A9,'Gruber Tabelle'!$A$6:$W$359,23,0),0) -> 0 | Z9: =IFERROR(VLOOKUP(A9,'Gruber Tabelle'!$A$6:$AE$359,25,0),0) -> 0 | AA9: =IFERROR(VLOOKUP(A9,'Gruber Tabelle'!$A$6:$AE$359,26,0),0) -> 0 | AB9: =IFERROR(VLOOKUP(A9,'Gruber Tabelle'!$A$6:$AE$359,27,0),0) -> 0 | AC9: =IFERROR(VLOOKUP(A9,'Gruber Tabelle'!$A$6:$AE$359,28,0),0) -> 0 | AD9: =IFERROR(VLOOKUP(A9,'Gruber Tabelle'!$A$6:$AE$359,29,0),0) -> 0 | AE9: =IFERROR(VLOOKUP(A9,'Gruber Tabelle'!$A$6:$AE$359,30,0),0) -> 0 | AF9: =IFERROR(VLOOKUP(A9,'Gruber Tabelle'!$A$6:$AE$359,31,0),0) -> 0
B10: =IFERROR(VLOOKUP(A10,'Gruber Tabelle'!$A$6:$W$359,2,0),0) -> 0 | G10: =IFERROR(VLOOKUP(A10,'Gruber Tabelle'!$A$6:$W$359,4,0),0) -> 0 | H10: =IFERROR(VLOOKUP(A10,'Gruber Tabelle'!$A$6:$W$359,5,0),0) -> 0 | I10: =IFERROR(VLOOKUP(A10,'Gruber Tabelle'!$A$6:$W$359,7,0),0) -> 0 | J10: =IFERROR(VLOOKUP(A10,'Gruber Tabelle'!$A$6:$W$359,8,0),0) -> 0 | K10: =IFERROR(VLOOKUP(A10,'Gruber Tabelle'!$A$6:$W$359,9,0)/100,0) -> 0 | L10: =IFERROR(VLOOKUP(A10,'Gruber Tabelle'!$A$6:$W$359,10,0),0) -> 0 | M10: =IFERROR(VLOOKUP(A10,'Gruber Tabelle'!$A$6:$W$359,11,0),0) -> 0 | N10: =IFERROR(VLOOKUP(A10,'Gruber Tabelle'!$A$6:$W$359,12,0),0) -> 0 | O10: =IFERROR(VLOOKUP(A10,'Gruber Tabelle'!$A$6:$W$359,13,0),0) -> 0 | P10: =IFERROR(VLOOKUP(A10,'Gruber Tabelle'!$A$6:$W$359,14,0),0) -> 0 | Q10: =IFERROR(VLOOKUP(A10,'Gruber Tabelle'!$A$6:$W$359,15,0),0) -> 0 | R10: =IFERROR(VLOOKUP(A10,'Gruber Tabelle'!$A$6:$W$359,16,0),0) -> 0 | S10: =IFERROR(VLOOKUP(A10,'Gruber Tabelle'!$A$6:$W$359,17,0),0) -> 0 | T10: =IFERROR(VLOOKUP(A10,'Gruber Tabelle'!$A$6:$W$359,18,0),0) -> 0 | U10: =IFERROR(VLOOKUP(A10,'Gruber Tabelle'!$A$6:$W$359,19,0),0) -> 0 | V10: =IFERROR(VLOOKUP(A10,'Gruber Tabelle'!$A$6:$W$359,20,0),0) -> 0 | W10: =IFERROR(VLOOKUP(A10,'Gruber Tabelle'!$A$6:$W$359,21,0),0) -> 0 | X10: =IFERROR(VLOOKUP(A10,'Gruber Tabelle'!$A$6:$W$359,22,0),0) -> 0 | Y10: =IFERROR(VLOOKUP(A10,'Gruber Tabelle'!$A$6:$W$359,23,0),0) -> 0 | Z10: =IFERROR(VLOOKUP(A10,'Gruber Tabelle'!$A$6:$AE$359,25,0),0) -> 0 | AA10: =IFERROR(VLOOKUP(A10,'Gruber Tabelle'!$A$6:$AE$359,26,0),0) -> 0 | AB10: =IFERROR(VLOOKUP(A10,'Gruber Tabelle'!$A$6:$AE$359,27,0),0) -> 0 | AC10: =IFERROR(VLOOKUP(A10,'Gruber Tabelle'!$A$6:$AE$359,28,0),0) -> 0 | AD10: =IFERROR(VLOOKUP(A10,'Gruber Tabelle'!$A$6:$AE$359,29,0),0) -> 0 | AE10: =IFERROR(VLOOKUP(A10,'Gruber Tabelle'!$A$6:$AE$359,30,0),0) -> 0 | AF10: =IFERROR(VLOOKUP(A10,'Gruber Tabelle'!$A$6:$AE$359,31,0),0) -> 0
B11: =IFERROR(VLOOKUP(A11,'Gruber Tabelle'!$A$6:$W$359,2,0),0) -> 0 | G11: =IFERROR(VLOOKUP(A11,'Gruber Tabelle'!$A$6:$W$359,4,0),0) -> 0 | H11: =IFERROR(VLOOKUP(A11,'Gruber Tabelle'!$A$6:$W$359,5,0),0) -> 0 | I11: =IFERROR(VLOOKUP(A11,'Gruber Tabelle'!$A$6:$W$359,7,0),0) -> 0 | J11: =IFERROR(VLOOKUP(A11,'Gruber Tabelle'!$A$6:$W$359,8,0),0) -> 0 | K11: =IFERROR(VLOOKUP(A11,'Gruber Tabelle'!$A$6:$W$359,9,0)/100,0) -> 0 | L11: =IFERROR(VLOOKUP(A11,'Gruber Tabelle'!$A$6:$W$359,10,0),0) -> 0 | M11: =IFERROR(VLOOKUP(A11,'Gruber Tabelle'!$A$6:$W$359,11,0),0) -> 0 | N11: =IFERROR(VLOOKUP(A11,'Gruber Tabelle'!$A$6:$W$359,12,0),0) -> 0 | O11: =IFERROR(VLOOKUP(A11,'Gruber Tabelle'!$A$6:$W$359,13,0),0) -> 0 | P11: =IFERROR(VLOOKUP(A11,'Gruber Tabelle'!$A$6:$W$359,14,0),0) -> 0 | Q11: =IFERROR(VLOOKUP(A11,'Gruber Tabelle'!$A$6:$W$359,15,0),0) -> 0 | R11: =IFERROR(VLOOKUP(A11,'Gruber Tabelle'!$A$6:$W$359,16,0),0) -> 0 | S11: =IFERROR(VLOOKUP(A11,'Gruber Tabelle'!$A$6:$W$359,17,0),0) -> 0 | T11: =IFERROR(VLOOKUP(A11,'Gruber Tabelle'!$A$6:$W$359,18,0),0) -> 0 | U11: =IFERROR(VLOOKUP(A11,'Gruber Tabelle'!$A$6:$W$359,19,0),0) -> 0 | V11: =IFERROR(VLOOKUP(A11,'Gruber Tabelle'!$A$6:$W$359,20,0),0) -> 0 | W11: =IFERROR(VLOOKUP(A11,'Gruber Tabelle'!$A$6:$W$359,21,0),0) -> 0 | X11: =IFERROR(VLOOKUP(A11,'Gruber Tabelle'!$A$6:$W$359,22,0),0) -> 0 | Y11: =IFERROR(VLOOKUP(A11,'Gruber Tabelle'!$A$6:$W$359,23,0),0) -> 0 | Z11: =IFERROR(VLOOKUP(A11,'Gruber Tabelle'!$A$6:$AE$359,25,0),0) -> 0 | AA11: =IFERROR(VLOOKUP(A11,'Gruber Tabelle'!$A$6:$AE$359,26,0),0) -> 0 | AB11: =IFERROR(VLOOKUP(A11,'Gruber Tabelle'!$A$6:$AE$359,27,0),0) -> 0 | AC11: =IFERROR(VLOOKUP(A11,'Gruber Tabelle'!$A$6:$AE$359,28,0),0) -> 0 | AD11: =IFERROR(VLOOKUP(A11,'Gruber Tabelle'!$A$6:$AE$359,29,0),0) -> 0 | AE11: =IFERROR(VLOOKUP(A11,'Gruber Tabelle'!$A$6:$AE$359,30,0),0) -> 0 | AF11: =IFERROR(VLOOKUP(A11,'Gruber Tabelle'!$A$6:$AE$359,31,0),0) -> 0
B12: =IFERROR(VLOOKUP(A12,'Gruber Tabelle'!$A$6:$W$359,2,0),0) -> 0 | G12: =IFERROR(VLOOKUP(A12,'Gruber Tabelle'!$A$6:$W$359,4,0),0) -> 0 | H12: =IFERROR(VLOOKUP(A12,'Gruber Tabelle'!$A$6:$W$359,5,0),0) -> 0 | I12: =IFERROR(VLOOKUP(A12,'Gruber Tabelle'!$A$6:$W$359,7,0),0) -> 0 | J12: =IFERROR(VLOOKUP(A12,'Gruber Tabelle'!$A$6:$W$359,8,0),0) -> 0 | K12: =IFERROR(VLOOKUP(A12,'Gruber Tabelle'!$A$6:$W$359,9,0)/100,0) -> 0 | L12: =IFERROR(VLOOKUP(A12,'Gruber Tabelle'!$A$6:$W$359,10,0),0) -> 0 | M12: =IFERROR(VLOOKUP(A12,'Gruber Tabelle'!$A$6:$W$359,11,0),0) -> 0 | N12: =IFERROR(VLOOKUP(A12,'Gruber Tabelle'!$A$6:$W$359,12,0),0) -> 0 | O12: =IFERROR(VLOOKUP(A12,'Gruber Tabelle'!$A$6:$W$359,13,0),0) -> 0 | P12: =IFERROR(VLOOKUP(A12,'Gruber Tabelle'!$A$6:$W$359,14,0),0) -> 0 | Q12: =IFERROR(VLOOKUP(A12,'Gruber Tabelle'!$A$6:$W$359,15,0),0) -> 0 | R12: =IFERROR(VLOOKUP(A12,'Gruber Tabelle'!$A$6:$W$359,16,0),0) -> 0 | S12: =IFERROR(VLOOKUP(A12,'Gruber Tabelle'!$A$6:$W$359,17,0),0) -> 0 | T12: =IFERROR(VLOOKUP(A12,'Gruber Tabelle'!$A$6:$W$359,18,0),0) -> 0 | U12: =IFERROR(VLOOKUP(A12,'Gruber Tabelle'!$A$6:$W$359,19,0),0) -> 0 | V12: =IFERROR(VLOOKUP(A12,'Gruber Tabelle'!$A$6:$W$359,20,0),0) -> 0 | W12: =IFERROR(VLOOKUP(A12,'Gruber Tabelle'!$A$6:$W$359,21,0),0) -> 0 | X12: =IFERROR(VLOOKUP(A12,'Gruber Tabelle'!$A$6:$W$359,22,0),0) -> 0 | Y12: =IFERROR(VLOOKUP(A12,'Gruber Tabelle'!$A$6:$W$359,23,0),0) -> 0 | Z12: =IFERROR(VLOOKUP(A12,'Gruber Tabelle'!$A$6:$AE$359,25,0),0) -> 0 | AA12: =IFERROR(VLOOKUP(A12,'Gruber Tabelle'!$A$6:$AE$359,26,0),0) -> 0 | AB12: =IFERROR(VLOOKUP(A12,'Gruber Tabelle'!$A$6:$AE$359,27,0),0) -> 0 | AC12: =IFERROR(VLOOKUP(A12,'Gruber Tabelle'!$A$6:$AE$359,28,0),0) -> 0 | AD12: =IFERROR(VLOOKUP(A12,'Gruber Tabelle'!$A$6:$AE$359,29,0),0) -> 0 | AE12: =IFERROR(VLOOKUP(A12,'Gruber Tabelle'!$A$6:$AE$359,30,0),0) -> 0 | AF12: =IFERROR(VLOOKUP(A12,'Gruber Tabelle'!$A$6:$AE$359,31,0),0) -> 0
B13: =IFERROR(VLOOKUP(A13,'Gruber Tabelle'!$A$6:$W$359,2,0),0) -> 0 | G13: =IFERROR(VLOOKUP(A13,'Gruber Tabelle'!$A$6:$W$359,4,0),0) -> 0 | H13: =IFERROR(VLOOKUP(A13,'Gruber Tabelle'!$A$6:$W$359,5,0),0) -> 0 | I13: =IFERROR(VLOOKUP(A13,'Gruber Tabelle'!$A$6:$W$359,7,0),0) -> 0 | J13: =IFERROR(VLOOKUP(A13,'Gruber Tabelle'!$A$6:$W$359,8,0),0) -> 0 | K13: =IFERROR(VLOOKUP(A13,'Gruber Tabelle'!$A$6:$W$359,9,0)/100,0) -> 0 | L13: =IFERROR(VLOOKUP(A13,'Gruber Tabelle'!$A$6:$W$359,10,0),0) -> 0 | M13: =IFERROR(VLOOKUP(A13,'Gruber Tabelle'!$A$6:$W$359,11,0),0) -> 0 | N13: =IFERROR(VLOOKUP(A13,'Gruber Tabelle'!$A$6:$W$359,12,0),0) -> 0 | O13: =IFERROR(VLOOKUP(A13,'Gruber Tabelle'!$A$6:$W$359,13,0),0) -> 0 | P13: =IFERROR(VLOOKUP(A13,'Gruber Tabelle'!$A$6:$W$359,14,0),0) -> 0 | Q13: =IFERROR(VLOOKUP(A13,'Gruber Tabelle'!$A$6:$W$359,15,0),0) -> 0 | R13: =IFERROR(VLOOKUP(A13,'Gruber Tabelle'!$A$6:$W$359,16,0),0) -> 0 | S13: =IFERROR(VLOOKUP(A13,'Gruber Tabelle'!$A$6:$W$359,17,0),0) -> 0 | T13: =IFERROR(VLOOKUP(A13,'Gruber Tabelle'!$A$6:$W$359,18,0),0) -> 0 | U13: =IFERROR(VLOOKUP(A13,'Gruber Tabelle'!$A$6:$W$359,19,0),0) -> 0 | V13: =IFERROR(VLOOKUP(A13,'Gruber Tabelle'!$A$6:$W$359,20,0),0) -> 0 | W13: =IFERROR(VLOOKUP(A13,'Gruber Tabelle'!$A$6:$W$359,21,0),0) -> 0 | X13: =IFERROR(VLOOKUP(A13,'Gruber Tabelle'!$A$6:$W$359,22,0),0) -> 0 | Y13: =IFERROR(VLOOKUP(A13,'Gruber Tabelle'!$A$6:$W$359,23,0),0) -> 0 | Z13: =IFERROR(VLOOKUP(A13,'Gruber Tabelle'!$A$6:$AE$359,25,0),0) -> 0 | AA13: =IFERROR(VLOOKUP(A13,'Gruber Tabelle'!$A$6:$AE$359,26,0),0) -> 0 | AB13: =IFERROR(VLOOKUP(A13,'Gruber Tabelle'!$A$6:$AE$359,27,0),0) -> 0 | AC13: =IFERROR(VLOOKUP(A13,'Gruber Tabelle'!$A$6:$AE$359,28,0),0) -> 0 | AD13: =IFERROR(VLOOKUP(A13,'Gruber Tabelle'!$A$6:$AE$359,29,0),0) -> 0 | AE13: =IFERROR(VLOOKUP(A13,'Gruber Tabelle'!$A$6:$AE$359,30,0),0) -> 0 | AF13: =IFERROR(VLOOKUP(A13,'Gruber Tabelle'!$A$6:$AE$359,31,0),0) -> 0
A14: Nr | B14: Futterart | C14: Anteil in % | D14: TM % | E14: TM kg | F14: FM kg | G14: XF g | H14: aNDFom | I14: CP g | J14: nxP g | K14: UDP g | L14: RNB | M14: NEL MJ | N14: ME MJ | O14: ST+ZU | P14: bST | Q14: CL | R14: Ca | S14: P | T14: Mg | U14: Na | V14: K | W14: Cl | X14: S | Y14: Preis | Z14: Fe | AA14: Cu | AB14: Zn | AC14: Mn | AD14: Co | AE14: J | AF14: Se
A15: =A4 -> 0 | B15: =B4 -> 0 | D15: =IFERROR(VLOOKUP(A4,'Gruber Tabelle'!$A$6:$W$359,3,0)/1000,0) -> 0 | E15: =IF(F15>0,F15*D15,0) -> 0 | F15: =IF(C15>0,(1*C15),0) -> 0 | G15: =IF(G4>0,(G4*C15)*D15,0) -> 0 | H15: =IF(H4>0,(H4*C15)*D15,0) -> 0 | I15: =IF(I4>0,(I4*C15)*D15,0) -> 0 | J15: =IF(J4>0,(J4*C15)*D15,0) -> 0 | K15: =IF(K4>0,(I4*K4)*E15,0) -> 0 | L15: =IFERROR(SUM((I15-J15)/6.25),0) -> 0 | M15: =IF(M4>0,(M4*C15)*D15,0) -> 0 | N15: =IF(N4>0,(N4*C15)*D15,0) -> 0 | O15: =IF(O4>0,(O4*C15)*D15,0) -> 0 | P15: =IF(P4>0,(P4*C15)*D15,0) -> 0 | Q15: =IF(Q4>0,(Q4*C15)*D15,0) -> 0 | R15: =IF(R4>0,(R4*C15)*D15,0) -> 0 | S15: =IF(S4>0,(S4*C15)*D15,0) -> 0 | T15: =IF(T4>0,(T4*C15)*D15,0) -> 0 | U15: =IF(U4>0,(U4*C15)*D15,0) -> 0 | V15: =IF(V4>0,(V4*C15)*D15,0) -> 0 | W15: =IF(W4>0,(W4*C15)*D15,0) -> 0 | X15: =IF(X4>0,(X4*C15)*D15,0) -> 0 | Y15: =IF(C15>0,Y4*F15/100,0) -> 0 | Z15: =IF(Z4>0,(Z4*C15)*D15,0) -> 0 | AA15: =IF(AA4>0,(AA4*C15)*D15,0) -> 0 | AB15: =IF(AB4>0,(AB4*C15)*D15,0) -> 0 | AC15: =IF(AC4>0,(AC4*C15)*D15,0) -> 0 | AD15: =IF(AD4>0,(AD4*C15)*D15,0) -> 0 | AE15: =IF(AE4>0,(AE4*C15)*D15,0) -> 0 | AF15: =IF(AF4>0,(AF4*C15)*D15,0) -> 0
A16: =A5 -> 0 | B16: 0 | D16: =IFERROR(VLOOKUP(A5,'Gruber Tabelle'!$A$6:$W$359,3,0)/1000,0) -> 0 | E16: =IF(F16>0,F16*D16,0) -> 0 | F16: =IF(C16>0,(1*C16),0) -> 0 | G16: =IF(G5>0,(G5*C16)*D16,0) -> 0 | H16: =IF(H5>0,(H5*C16)*D16,0) -> 0 | I16: =IF(I5>0,(I5*C16)*D16,0) -> 0 | J16: =IF(J5>0,(J5*C16)*D16,0) -> 0 | K16: =IF(K5>0,(I5*K5)*E16,0) -> 0 | L16: 0 | M16: =IF(M5>0,(M5*C16)*D16,0) -> 0 | N16: =IF(N5>0,(N5*C16)*D16,0) -> 0 | O16: =IF(O5>0,(O5*C16)*D16,0) -> 0 | P16: =IF(P5>0,(P5*C16)*D16,0) -> 0 | Q16: =IF(Q5>0,(Q5*C16)*D16,0) -> 0 | R16: =IF(R5>0,(R5*C16)*D16,0) -> 0 | S16: =IF(S5>0,(S5*C16)*D16,0) -> 0 | T16: =IF(T5>0,(T5*C16)*D16,0) -> 0 | U16: =IF(U5>0,(U5*C16)*D16,0) -> 0 | V16: =IF(V5>0,(V5*C16)*D16,0) -> 0 | W16: =IF(W5>0,(W5*C16)*D16,0) -> 0 | X16: =IF(X5>0,(X5*C16)*D16,0) -> 0 | Y16: 0 | Z16: =IF(Z5>0,(Z5*C16)*D16,0) -> 0 | AA16: =IF(AA5>0,(AA5*C16)*D16,0) -> 0 | AB16: =IF(AB5>0,(AB5*C16)*D16,0) -> 0 | AC16: =IF(AC5>0,(AC5*C16)*D16,0) -> 0 | AD16: =IF(AD5>0,(AD5*C16)*D16,0) -> 0 | AE16: =IF(AE5>0,(AE5*C16)*D16,0) -> 0 | AF16: =IF(AF5>0,(AF5*C16)*D16,0) -> 0
A17: 0 | B17: 0 | D17: =IFERROR(VLOOKUP(A6,'Gruber Tabelle'!$A$6:$W$359,3,0)/1000,0) -> 0 | E17: 0 | F17: 0 | G17: 0 | H17: 0 | I17: 0 | J17: 0 | K17: 0 | L17: 0 | M17: 0 | N17: 0 | O17: 0 | P17: 0 | Q17: 0 | R17: 0 | S17: 0 | T17: 0 | U17: 0 | V17: 0 | W17: 0 | X17: 0 | Y17: 0 | Z17: 0 | AA17: 0 | AB17: 0 | AC17: 0 | AD17: 0 | AE17: 0 | AF17: 0
A18: 0 | B18: 0 | D18: =IFERROR(VLOOKUP(A7,'Gruber Tabelle'!$A$6:$W$359,3,0)/1000,0) -> 0 | E18: 0 | F18: 0 | G18: 0 | H18: 0 | I18: 0 | J18: 0 | K18: 0 | L18: 0 | M18: 0 | N18: 0 | O18: 0 | P18: 0 | Q18: 0 | R18: 0 | S18: 0 | T18: 0 | U18: 0 | V18: 0 | W18: 0 | X18: 0 | Y18: 0 | Z18: 0 | AA18: 0 | AB18: 0 | AC18: 0 | AD18: 0 | AE18: 0 | AF18: 0
A19: 0 | B19: 0 | D19: =IFERROR(VLOOKUP(A8,'Gruber Tabelle'!$A$6:$W$359,3,0)/1000,0) -> 0 | E19: 0 | F19: 0 | G19: 0 | H19: 0 | I19: 0 | J19: 0 | K19: 0 | L19: 0 | M19: 0 | N19: 0 | O19: 0 | P19: 0 | Q19: 0 | R19: 0 | S19: 0 | T19: 0 | U19: 0 | V19: 0 | W19: 0 | X19: 0 | Y19: 0 | Z19: 0 | AA19: 0 | AB19: 0 | AC19: 0 | AD19: 0 | AE19: 0 | AF19: 0
A20: 0 | B20: 0 | D20: =IFERROR(VLOOKUP(A9,'Gruber Tabelle'!$A$6:$W$359,3,0)/1000,0) -> 0 | E20: 0 | F20: 0 | G20: 0 | H20: 0 | I20: 0 | J20: 0 | K20: 0 | L20: 0 | M20: 0 | N20: 0 | O20: 0 | P20: 0 | Q20: 0 | R20: 0 | S20: 0 | T20: 0 | U20: 0 | V20: 0 | W20: 0 | X20: 0 | Y20: 0 | Z20: 0 | AA20: 0 | AB20: 0 | AC20: 0 | AD20: 0 | AE20: 0 | AF20: 0
A21: 0 | B21: 0 | D21: =IFERROR(VLOOKUP(A10,'Gruber Tabelle'!$A$6:$W$359,3,0)/1000,0) -> 0 | E21: 0 | F21: 0 | G21: 0 | H21: 0 | I21: 0 | J21: 0 | K21: 0 | L21: 0 | M21: 0 | N21: 0 | O21: 0 | P21: 0 | Q21: 0 | R21: 0 | S21: 0 | T21: 0 | U21: 0 | V21: 0 | W21: 0 | X21: 0 | Y21: 0 | Z21: 0 | AA21: 0 | AB21: 0 | AC21: 0 | AD21: 0 | AE21: 0 | AF21: 0
A22: 0 | B22: 0 | D22: =IFERROR(VLOOKUP(A11,'Gruber Tabelle'!$A$6:$W$359,3,0)/1000,0) -> 0 | E22: 0 | F22: 0 | G22: 0 | H22: 0 | I22: 0 | J22: 0 | K22: 0 | L22: 0 | M22: 0 | N22: 0 | O22: 0 | P22: 0 | Q22: 0 | R22: 0 | S22: 0 | T22: 0 | U22: 0 | V22: 0 | W22: 0 | X22: 0 | Y22: 0 | Z22: 0 | AA22: 0 | AB22: 0 | AC22: 0 | AD22: 0 | AE22: 0 | AF22: 0
A23: 0 | B23: 0 | D23: =IFERROR(VLOOKUP(A12,'Gruber Tabelle'!$A$6:$W$359,3,0)/1000,0) -> 0 | E23: 0 | F23: 0 | G23: 0 | H23: 0 | I23: 0 | J23: 0 | K23: 0 | L23: 0 | M23: 0 | N23: 0 | O23: 0 | P23: 0 | Q23: 0 | R23: 0 | S23: 0 | T23: 0 | U23: 0 | V23: 0 | W23: 0 | X23: 0 | Y23: 0 | Z23: 0 | AA23: 0 | AB23: 0 | AC23: 0 | AD23: 0 | AE23: 0 | AF23: 0
A24: 0 | B24: 0 | D24: =IFERROR(VLOOKUP(A13,'Gruber Tabelle'!$A$6:$W$359,3,0)/1000,0) -> 0 | E24: 0 | F24: 0 | G24: 0 | H24: 0 | I24: 0 | J24: 0 | K24: 0 | L24: 0 | M24: 0 | N24: 0 | O24: 0 | P24: 0 | Q24: 0 | R24: 0 | S24: 0 | T24: 0 | U24: 0 | V24: 0 | W24: 0 | X24: 0 | Y24: 0 | Z24: 0 | AA24: 0 | AB24: 0 | AC24: 0 | AD24: 0 | AE24: 0 | AF24: 0
B25: Summe je kg FM : | C25: =SUM(C15:C24) -> 0 | E25: =SUM(E15:E24) -> 0 | F25: =SUM(F15:F24) -> 0 | G25: 0 | H25: 0 | I25: 0 | J25: 0 | K25: 0 | L25: =SUM(L15:L24) -> 0 | M25: 0 | N25: 0 | O25: 0 | P25: 0 | Q25: 0 | R25: 0 | S25: 0 | T25: 0 | U25: 0 | V25: 0 | W25: 0 | X25: 0 | Y25: 0 | Z25: =SUM(Z15:Z24) -> 0 | AA25: =SUM(AA15:AA24) -> 0 | AB25: 0 | AC25: 0 | AD25: 0 | AE25: 0 | AF25: =SUM(AF15:AF24) -> 0
A26: Milcherzeugungswerte / Kennzahlen | H26: =IF(C25=100%,H25/1000,0) -> 0 | I26: =IFERROR(I25/Einstellung!E16,0) -> 0 | J26: =IFERROR(J25/Einstellung!E16,0) -> 0 | K26: =IF(K25>0,K25/I25,0) -> 0 | L26: =SUM(I25-J25)/6.25 -> 0 | M26: =IFERROR(M25/Einstellung!F15,0) -> 0 | N26: Mengenelem. f. kg Milch : | R26: =IF(R25>0,(R25/Einstellung!D23),0) -> 0 | S26: =IF(S25>0,(S25/Einstellung!E23),0) -> 0 | T26: =IF(T25>0,(T25/Einstellung!F23),0) -> 0 | U26: =IF(U25>0,(U25/Einstellung!G23),0) -> 0 | Y26: =IFERROR(Y25/M26,0) -> 0

Sheet Mischung 2
A2: KF – Berechnung 2 | G2: Nähr- und Mineralstoffgehalte je kg TM | Z2: Spurenelemente mg / kg TM
A3: Nr | B3: Futterart | G3: XF g | H3: aNDFom | I3: CP g | J3: nxP g | K3: UDP % | L3: RNB | M3: Nel MJ | N3: ME MJ | O3: ST+ZU | P3: bST | Q3: CL | R3: Ca | S3: P | T3: Mg | U3: Na | V3: K | W3: Cl | X3: S | Y3: Preis / dt | Z3: Fe | AA3: Cu | AB3: Zn | AC3: Mn | AD3: Co | AE3: J | AF3: Se
B4: =IFERROR(VLOOKUP(A4,'Gruber Tabelle'!$A$6:$W$359,2,0),0) -> 0 | G4: =IFERROR(VLOOKUP(A4,'Gruber Tabelle'!$A$6:$W$359,4,0),0) -> 0 | H4: =IFERROR(VLOOKUP(A4,'Gruber Tabelle'!$A$6:$W$359,5,0),0) -> 0 | I4: =IFERROR(VLOOKUP(A4,'Gruber Tabelle'!$A$6:$W$359,7,0),0) -> 0 | J4: =IFERROR(VLOOKUP(A4,'Gruber Tabelle'!$A$6:$W$359,8,0),0) -> 0 | K4: =IFERROR(VLOOKUP(A4,'Gruber Tabelle'!$A$6:$W$359,9,0)/100,0) -> 0 | L4: =IFERROR(VLOOKUP(A4,'Gruber Tabelle'!$A$6:$W$359,10,0),0) -> 0 | M4: =IFERROR(VLOOKUP(A4,'Gruber Tabelle'!$A$6:$W$359,11,0),0) -> 0 | N4: =IFERROR(VLOOKUP(A4,'Gruber Tabelle'!$A$6:$W$359,12,0),0) -> 0 | O4: =IFERROR(VLOOKUP(A4,'Gruber Tabelle'!$A$6:$W$359,13,0),0) -> 0 | P4: =IFERROR(VLOOKUP(A4,'Gruber Tabelle'!$A$6:$W$359,14,0),0) -> 0 | Q4: =IFERROR(VLOOKUP(A4,'Gruber Tabelle'!$A$6:$W$359,15,0),0) -> 0 | R4: =IFERROR(VLOOKUP(A4,'Gruber Tabelle'!$A$6:$W$359,16,0),0) -> 0 | S4: =IFERROR(VLOOKUP(A4,'Gruber Tabelle'!$A$6:$W$359,17,0),0) -> 0 | T4: =IFERROR(VLOOKUP(A4,'Gruber Tabelle'!$A$6:$W$359,18,0),0) -> 0 | U4: =IFERROR(VLOOKUP(A4,'Gruber Tabelle'!$A$6:$W$359,19,0),0) -> 0 | V4: =IFERROR(VLOOKUP(A4,'Gruber Tabelle'!$A$6:$W$359,20,0),0) -> 0 | W4: =IFERROR(VLOOKUP(A4,'Gruber Tabelle'!$A$6:$W$359,21,0),0) -> 0 | X4: =IFERROR(VLOOKUP(A4,'Gruber Tabelle'!$A$6:$W$359,22,0),0) -> 0 | Y4: =IFERROR(VLOOKUP(A4,'Gruber Tabelle'!$A$6:$W$359,23,0),0) -> 0 | Z4: =IFERROR(VLOOKUP(A4,'Gruber Tabelle'!$A$6:$AE$359,25,0),0) -> 0 | AA4: =IFERROR(VLOOKUP(A4,'Gruber Tabelle'!$A$6:$AE$359,26,0),0) -> 0 | AB4: =IFERROR(VLOOKUP(A4,'Gruber Tabelle'!$A$6:$AE$359,27,0),0) -> 0 | AC4: =IFERROR(VLOOKUP(A4,'Gruber Tabelle'!$A$6:$AE$359,28,0),0) -> 0 | AD4: =IFERROR(VLOOKUP(A4,'Gruber Tabelle'!$A$6:$AE$359,29,0),0) -> 0 | AE4: =IFERROR(VLOOKUP(A4,'Gruber Tabelle'!$A$6:$AE$359,30,0),0) -> 0 | AF4: =IFERROR(VLOOKUP(A4,'Gruber Tabelle'!$A$6:$AE$359,31,0),0) -> 0
B5: =IFERROR(VLOOKUP(A5,'Gruber Tabelle'!$A$6:$W$359,2,0),0) -> 0 | G5: =IFERROR(VLOOKUP(A5,'Gruber Tabelle'!$A$6:$W$359,4,0),0) -> 0 | H5: =IFERROR(VLOOKUP(A5,'Gruber Tabelle'!$A$6:$W$359,5,0),0) -> 0 | I5: =IFERROR(VLOOKUP(A5,'Gruber Tabelle'!$A$6:$W$359,7,0),0) -> 0 | J5: =IFERROR(VLOOKUP(A5,'Gruber Tabelle'!$A$6:$W$359,8,0),0) -> 0 | K5: =IFERROR(VLOOKUP(A5,'Gruber Tabelle'!$A$6:$W$359,9,0)/100,0) -> 0 | L5: =IFERROR(VLOOKUP(A5,'Gruber Tabelle'!$A$6:$W$359,10,0),0) -> 0 | M5: =IFERROR(VLOOKUP(A5,'Gruber Tabelle'!$A$6:$W$359,11,0),0) -> 0 | N5: =IFERROR(VLOOKUP(A5,'Gruber Tabelle'!$A$6:$W$359,12,0),0) -> 0 | O5: =IFERROR(VLOOKUP(A5,'Gruber Tabelle'!$A$6:$W$359,13,0),0) -> 0 | P5: =IFERROR(VLOOKUP(A5,'Gruber Tabelle'!$A$6:$W$359,14,0),0) -> 0 | Q5: =IFERROR(VLOOKUP(A5,'Gruber Tabelle'!$A$6:$W$359,15,0),0) -> 0 | R5: =IFERROR(VLOOKUP(A5,'Gruber Tabelle'!$A$6:$W$359,16,0),0) -> 0 | S5: =IFERROR(VLOOKUP(A5,'Gruber Tabelle'!$A$6:$W$359,17,0),0) -> 0 | T5: =IFERROR(VLOOKUP(A5,'Gruber Tabelle'!$A$6:$W$359,18,0),0) -> 0 | U5: =IFERROR(VLOOKUP(A5,'Gruber Tabelle'!$A$6:$W$359,19,0),0) -> 0 | V5: =IFERROR(VLOOKUP(A5,'Gruber Tabelle'!$A$6:$W$359,20,0),0) -> 0 | W5: =IFERROR(VLOOKUP(A5,'Gruber Tabelle'!$A$6:$W$359,21,0),0) -> 0 | X5: =IFERROR(VLOOKUP(A5,'Gruber Tabelle'!$A$6:$W$359,22,0),0) -> 0 | Y5: =IFERROR(VLOOKUP(A5,'Gruber Tabelle'!$A$6:$W$359,23,0),0) -> 0 | Z5: =IFERROR(VLOOKUP(A5,'Gruber Tabelle'!$A$6:$AE$359,25,0),0) -> 0 | AA5: =IFERROR(VLOOKUP(A5,'Gruber Tabelle'!$A$6:$AE$359,26,0),0) -> 0 | AB5: =IFERROR(VLOOKUP(A5,'Gruber Tabelle'!$A$6:$AE$359,27,0),0) -> 0 | AC5: =IFERROR(VLOOKUP(A5,'Gruber Tabelle'!$A$6:$AE$359,28,0),0) -> 0 | AD5: =IFERROR(VLOOKUP(A5,'Gruber Tabelle'!$A$6:$AE$359,29,0),0) -> 0 | AE5: =IFERROR(VLOOKUP(A5,'Gruber Tabelle'!$A$6:$AE$359,30,0),0) -> 0 | AF5: =IFERROR(VLOOKUP(A5,'Gruber Tabelle'!$A$6:$AE$359,31,0),0) -> 0
B6: =IFERROR(VLOOKUP(A6,'Gruber Tabelle'!$A$6:$W$359,2,0),0) -> 0 | G6: =IFERROR(VLOOKUP(A6,'Gruber Tabelle'!$A$6:$W$359,4,0),0) -> 0 | H6: =IFERROR(VLOOKUP(A6,'Gruber Tabelle'!$A$6:$W$359,5,0),0) -> 0 | I6: =IFERROR(VLOOKUP(A6,'Gruber Tabelle'!$A$6:$W$359,7,0),0) -> 0 | J6: =IFERROR(VLOOKUP(A6,'Gruber Tabelle'!$A$6:$W$359,8,0),0) -> 0 | K6: =IFERROR(VLOOKUP(A6,'Gruber Tabelle'!$A$6:$W$359,9,0)/100,0) -> 0 | L6: =IFERROR(VLOOKUP(A6,'Gruber Tabelle'!$A$6:$W$359,10,0),0) -> 0 | M6: =IFERROR(VLOOKUP(A6,'Gruber Tabelle'!$A$6:$W$359,11,0),0) -> 0 | N6: =IFERROR(VLOOKUP(A6,'Gruber Tabelle'!$A$6:$W$359,12,0),0) -> 0 | O6: =IFERROR(VLOOKUP(A6,'Gruber Tabelle'!$A$6:$W$359,13,0),0) -> 0 | P6: =IFERROR(VLOOKUP(A6,'Gruber Tabelle'!$A$6:$W$359,14,0),0) -> 0 | Q6: =IFERROR(VLOOKUP(A6,'Gruber Tabelle'!$A$6:$W$359,15,0),0) -> 0 | R6: =IFERROR(VLOOKUP(A6,'Gruber Tabelle'!$A$6:$W$359,16,0),0) -> 0 | S6: =IFERROR(VLOOKUP(A6,'Gruber Tabelle'!$A$6:$W$359,17,0),0) -> 0 | T6: =IFERROR(VLOOKUP(A6,'Gruber Tabelle'!$A$6:$W$359,18,0),0) -> 0 | U6: =IFERROR(VLOOKUP(A6,'Gruber Tabelle'!$A$6:$W$359,19,0),0) -> 0 | V6: =IFERROR(VLOOKUP(A6,'Gruber Tabelle'!$A$6:$W$359,20,0),0) -> 0 | W6: =IFERROR(VLOOKUP(A6,'Gruber Tabelle'!$A$6:$W$359,21,0),0) -> 0 | X6: =IFERROR(VLOOKUP(A6,'Gruber Tabelle'!$A$6:$W$359,22,0),0) -> 0 | Y6: =IFERROR(VLOOKUP(A6,'Gruber Tabelle'!$A$6:$W$359,23,0),0) -> 0 | Z6: =IFERROR(VLOOKUP(A6,'Gruber Tabelle'!$A$6:$AE$359,25,0),0) -> 0 | AA6: =IFERROR(VLOOKUP(A6,'Gruber Tabelle'!$A$6:$AE$359,26,0),0) -> 0 | AB6: =IFERROR(VLOOKUP(A6,'Gruber Tabelle'!$A$6:$AE$359,27,0),0) -> 0 | AC6: =IFERROR(VLOOKUP(A6,'Gruber Tabelle'!$A$6:$AE$359,28,0),0) -> 0 | AD6: =IFERROR(VLOOKUP(A6,'Gruber Tabelle'!$A$6:$AE$359,29,0),0) -> 0 | AE6: =IFERROR(VLOOKUP(A6,'Gruber Tabelle'!$A$6:$AE$359,30,0),0) -> 0 | AF6: =IFERROR(VLOOKUP(A6,'Gruber Tabelle'!$A$6:$AE$359,31,0),0) -> 0
B7: =IFERROR(VLOOKUP(A7,'Gruber Tabelle'!$A$6:$W$359,2,0),0) -> 0 | G7: =IFERROR(VLOOKUP(A7,'Gruber Tabelle'!$A$6:$W$359,4,0),0) -> 0 | H7: =IFERROR(VLOOKUP(A7,'Gruber Tabelle'!$A$6:$W$359,5,0),0) -> 0 | I7: =IFERROR(VLOOKUP(A7,'Gruber Tabelle'!$A$6:$W$359,7,0),0) -> 0 | J7: =IFERROR(VLOOKUP(A7,'Gruber Tabelle'!$A$6:$W$359,8,0),0) -> 0 | K7: =IFERROR(VLOOKUP(A7,'Gruber Tabelle'!$A$6:$W$359,9,0)/100,0) -> 0 | L7: =IFERROR(VLOOKUP(A7,'Gruber Tabelle'!$A$6:$W$359,10,0),0) -> 0 | M7: =IFERROR(VLOOKUP(A7,'Gruber Tabelle'!$A$6:$W$359,11,0),0) -> 0 | N7: =IFERROR(VLOOKUP(A7,'Gruber Tabelle'!$A$6:$W$359,12,0),0) -> 0 | O7: =IFERROR(VLOOKUP(A7,'Gruber Tabelle'!$A$6:$W$359,13,0),0) -> 0 | P7: =IFERROR(VLOOKUP(A7,'Gruber Tabelle'!$A$6:$W$359,14,0),0) -> 0 | Q7: =IFERROR(VLOOKUP(A7,'Gruber Tabelle'!$A$6:$W$359,15,0),0) -> 0 | R7: =IFERROR(VLOOKUP(A7,'Gruber Tabelle'!$A$6:$W$359,16,0),0) -> 0 | S7: =IFERROR(VLOOKUP(A7,'Gruber Tabelle'!$A$6:$W$359,17,0),0) -> 0 | T7: =IFERROR(VLOOKUP(A7,'Gruber Tabelle'!$A$6:$W$359,18,0),0) -> 0 | U7: =IFERROR(VLOOKUP(A7,'Gruber Tabelle'!$A$6:$W$359,19,0),0) -> 0 | V7: =IFERROR(VLOOKUP(A7,'Gruber Tabelle'!$A$6:$W$359,20,0),0) -> 0 | W7: =IFERROR(VLOOKUP(A7,'Gruber Tabelle'!$A$6:$W$359,21,0),0) -> 0 | X7: =IFERROR(VLOOKUP(A7,'Gruber Tabelle'!$A$6:$W$359,22,0),0) -> 0 | Y7: =IFERROR(VLOOKUP(A7,'Gruber Tabelle'!$A$6:$W$359,23,0),0) -> 0 | Z7: =IFERROR(VLOOKUP(A7,'Gruber Tabelle'!$A$6:$AE$359,25,0),0) -> 0 | AA7: =IFERROR(VLOOKUP(A7,'Gruber Tabelle'!$A$6:$AE$359,26,0),0) -> 0 | AB7: =IFERROR(VLOOKUP(A7,'Gruber Tabelle'!$A$6:$AE$359,27,0),0) -> 0 | AC7: =IFERROR(VLOOKUP(A7,'Gruber Tabelle'!$A$6:$AE$359,28,0),0) -> 0 | AD7: =IFERROR(VLOOKUP(A7,'Gruber Tabelle'!$A$6:$AE$359,29,0),0) -> 0 | AE7: =IFERROR(VLOOKUP(A7,'Gruber Tabelle'!$A$6:$AE$359,30,0),0) -> 0 | AF7: =IFERROR(VLOOKUP(A7,'Gruber Tabelle'!$A$6:$AE$359,31,0),0) -> 0
B8: =IFERROR(VLOOKUP(A8,'Gruber Tabelle'!$A$6:$W$359,2,0),0) -> 0 | G8: =IFERROR(VLOOKUP(A8,'Gruber Tabelle'!$A$6:$W$359,4,0),0) -> 0 | H8: =IFERROR(VLOOKUP(A8,'Gruber Tabelle'!$A$6:$W$359,5,0),0) -> 0 | I8: =IFERROR(VLOOKUP(A8,'Gruber Tabelle'!$A$6:$W$359,7,0),0) -> 0 | J8: =IFERROR(VLOOKUP(A8,'Gruber Tabelle'!$A$6:$W$359,8,0),0) -> 0 | K8: =IFERROR(VLOOKUP(A8,'Gruber Tabelle'!$A$6:$W$359,9,0)/100,0) -> 0 | L8: =IFERROR(VLOOKUP(A8,'Gruber Tabelle'!$A$6:$W$359,10,0),0) -> 0 | M8: =IFERROR(VLOOKUP(A8,'Gruber Tabelle'!$A$6:$W$359,11,0),0) -> 0 | N8: =IFERROR(VLOOKUP(A8,'Gruber Tabelle'!$A$6:$W$359,12,0),0) -> 0 | O8: =IFERROR(VLOOKUP(A8,'Gruber Tabelle'!$A$6:$W$359,13,0),0) -> 0 | P8: =IFERROR(VLOOKUP(A8,'Gruber Tabelle'!$A$6:$W$359,14,0),0) -> 0 | Q8: =IFERROR(VLOOKUP(A8,'Gruber Tabelle'!$A$6:$W$359,15,0),0) -> 0 | R8: =IFERROR(VLOOKUP(A8,'Gruber Tabelle'!$A$6:$W$359,16,0),0) -> 0 | S8: =IFERROR(VLOOKUP(A8,'Gruber Tabelle'!$A$6:$W$359,17,0),0) -> 0 | T8: =IFERROR(VLOOKUP(A8,'Gruber Tabelle'!$A$6:$W$359,18,0),0) -> 0 | U8: =IFERROR(VLOOKUP(A8,'Gruber Tabelle'!$A$6:$W$359,19,0),0) -> 0 | V8: =IFERROR(VLOOKUP(A8,'Gruber Tabelle'!$A$6:$W$359,20,0),0) -> 0 | W8: =IFERROR(VLOOKUP(A8,'Gruber Tabelle'!$A$6:$W$359,21,0),0) -> 0 | X8: =IFERROR(VLOOKUP(A8,'Gruber Tabelle'!$A$6:$W$359,22,0),0) -> 0 | Y8: =IFERROR(VLOOKUP(A8,'Gruber Tabelle'!$A$6:$W$359,23,0),0) -> 0 | Z8: =IFERROR(VLOOKUP(A8,'Gruber Tabelle'!$A$6:$AE$359,25,0),0) -> 0 | AA8: =IFERROR(VLOOKUP(A8,'Gruber Tabelle'!$A$6:$AE$359,26,0),0) -> 0 | AB8: =IFERROR(VLOOKUP(A8,'Gruber Tabelle'!$A$6:$AE$359,27,0),0) -> 0 | AC8: =IFERROR(VLOOKUP(A8,'Gruber Tabelle'!$A$6:$AE$359,28,0),0) -> 0 | AD8: =IFERROR(VLOOKUP(A8,'Gruber Tabelle'!$A$6:$AE$359,29,0),0) -> 0 | AE8: =IFERROR(VLOOKUP(A8,'Gruber Tabelle'!$A$6:$AE$359,30,0),0) -> 0 | AF8: =IFERROR(VLOOKUP(A8,'Gruber Tabelle'!$A$6:$AE$359,31,0),0) -> 0
B9: =IFERROR(VLOOKUP(A9,'Gruber Tabelle'!$A$6:$W$359,2,0),0) -> 0 | G9: =IFERROR(VLOOKUP(A9,'Gruber Tabelle'!$A$6:$W$359,4,0),0) -> 0 | H9: =IFERROR(VLOOKUP(A9,'Gruber Tabelle'!$A$6:$W$359,5,0),0) -> 0 | I9: =IFERROR(VLOOKUP(A9,'Gruber Tabelle'!$A$6:$W$359,7,0),0) -> 0 | J9: =IFERROR(VLOOKUP(A9,'Gruber Tabelle'!$A$6:$W$359,8,0),0) -> 0 | K9: =IFERROR(VLOOKUP(A9,'Gruber Tabelle'!$A$6:$W$359,9,0)/100,0) -> 0 | L9: =IFERROR(VLOOKUP(A9,'Gruber Tabelle'!$A$6:$W$359,10,0),0) -> 0 | M9: =IFERROR(VLOOKUP(A9,'Gruber Tabelle'!$A$6:$W$359,11,0),0) -> 0 | N9: =IFERROR(VLOOKUP(A9,'Gruber Tabelle'!$A$6:$W$359,12,0),0) -> 0 | O9: =IFERROR(VLOOKUP(A9,'Gruber Tabelle'!$A$6:$W$359,13,0),0) -> 0 | P9: =IFERROR(VLOOKUP(A9,'Gruber Tabelle'!$A$6:$W$359,14,0),0) -> 0 | Q9: =IFERROR(VLOOKUP(A9,'Gruber Tabelle'!$A$6:$W$359,15,0),0) -> 0 | R9: =IFERROR(VLOOKUP(A9,'Gruber Tabelle'!$A$6:$W$359,16,0),0) -> 0 | S9: =IFERROR(VLOOKUP(A9,'Gruber Tabelle'!$A$6:$W$359,17,0),0) -> 0 | T9: =IFERROR(VLOOKUP(A9,'Gruber Tabelle'!$A$6:$W$359,18,0),0) -> 0 | U9: =IFERROR(VLOOKUP(A9,'Gruber Tabelle'!$A$6:$W$359,19,0),0) -> 0 | V9: =IFERROR(VLOOKUP(A9,'Gruber Tabelle'!$A$6:$W$359,20,0),0) -> 0 | W9: =IFERROR(VLOOKUP(A9,'Gruber Tabelle'!$A$6:$W$359,21,0),0) -> 0 | X9: =IFERROR(VLOOKUP(A9,'Gruber Tabelle'!$A$6:$W$359,22,0),0) -> 0 | Y9: =IFERROR(VLOOKUP(A9,'Gruber Tabelle'!$A$6:$W$359,23,0),0) -> 0 | Z9: =IFERROR(VLOOKUP(A9,'Gruber Tabelle'!$A$6:$AE$359,25,0),0) -> 0 | AA9: =IFERROR(VLOOKUP(A9,'Gruber Tabelle'!$A$6:$AE$359,26,0),0) -> 0 | AB9: =IFERROR(VLOOKUP(A9,'Gruber Tabelle'!$A$6:$AE$359,27,0),0) -> 0 | AC9: =IFERROR(VLOOKUP(A9,'Gruber Tabelle'!$A$6:$AE$359,28,0),0) -> 0 | AD9: =IFERROR(VLOOKUP(A9,'Gruber Tabelle'!$A$6:$AE$359,29,0),0) -> 0 | AE9: =IFERROR(VLOOKUP(A9,'Gruber Tabelle'!$A$6:$AE$359,30,0),0) -> 0 | AF9: =IFERROR(VLOOKUP(A9,'Gruber Tabelle'!$A$6:$AE$359,31,0),0) -> 0
B10: =IFERROR(VLOOKUP(A10,'Gruber Tabelle'!$A$6:$W$359,2,0),0) -> 0 | G10: =IFERROR(VLOOKUP(A10,'Gruber Tabelle'!$A$6:$W$359,4,0),0) -> 0 | H10: =IFERROR(VLOOKUP(A10,'Gruber Tabelle'!$A$6:$W$359,5,0),0) -> 0 | I10: =IFERROR(VLOOKUP(A10,'Gruber Tabelle'!$A$6:$W$359,7,0),0) -> 0 | J10: =IFERROR(VLOOKUP(A10,'Gruber Tabelle'!$A$6:$W$359,8,0),0) -> 0 | K10: =IFERROR(VLOOKUP(A10,'Gruber Tabelle'!$A$6:$W$359,9,0)/100,0) -> 0 | L10: =IFERROR(VLOOKUP(A10,'Gruber Tabelle'!$A$6:$W$359,10,0),0) -> 0 | M10: =IFERROR(VLOOKUP(A10,'Gruber Tabelle'!$A$6:$W$359,11,0),0) -> 0 | N10: =IFERROR(VLOOKUP(A10,'Gruber Tabelle'!$A$6:$W$359,12,0),0) -> 0 | O10: =IFERROR(VLOOKUP(A10,'Gruber Tabelle'!$A$6:$W$359,13,0),0) -> 0 | P10: =IFERROR(VLOOKUP(A10,'Gruber Tabelle'!$A$6:$W$359,14,0),0) -> 0 | Q10: =IFERROR(VLOOKUP(A10,'Gruber Tabelle'!$A$6:$W$359,15,0),0) -> 0 | R10: =IFERROR(VLOOKUP(A10,'Gruber Tabelle'!$A$6:$W$359,16,0),0) -> 0 | S10: =IFERROR(VLOOKUP(A10,'Gruber Tabelle'!$A$6:$W$359,17,0),0) -> 0 | T10: =IFERROR(VLOOKUP(A10,'Gruber Tabelle'!$A$6:$W$359,18,0),0) -> 0 | U10: =IFERROR(VLOOKUP(A10,'Gruber Tabelle'!$A$6:$W$359,19,0),0) -> 0 | V10: =IFERROR(VLOOKUP(A10,'Gruber Tabelle'!$A$6:$W$359,20,0),0) -> 0 | W10: =IFERROR(VLOOKUP(A10,'Gruber Tabelle'!$A$6:$W$359,21,0),0) -> 0 | X10: =IFERROR(VLOOKUP(A10,'Gruber Tabelle'!$A$6:$W$359,22,0),0) -> 0 | Y10: =IFERROR(VLOOKUP(A10,'Gruber Tabelle'!$A$6:$W$359,23,0),0) -> 0 | Z10: =IFERROR(VLOOKUP(A10,'Gruber Tabelle'!$A$6:$AE$359,25,0),0) -> 0 | AA10: =IFERROR(VLOOKUP(A10,'Gruber Tabelle'!$A$6:$AE$359,26,0),0) -> 0 | AB10: =IFERROR(VLOOKUP(A10,'Gruber Tabelle'!$A$6:$AE$359,27,0),0) -> 0 | AC10: =IFERROR(VLOOKUP(A10,'Gruber Tabelle'!$A$6:$AE$359,28,0),0) -> 0 | AD10: =IFERROR(VLOOKUP(A10,'Gruber Tabelle'!$A$6:$AE$359,29,0),0) -> 0 | AE10: =IFERROR(VLOOKUP(A10,'Gruber Tabelle'!$A$6:$AE$359,30,0),0) -> 0 | AF10: =IFERROR(VLOOKUP(A10,'Gruber Tabelle'!$A$6:$AE$359,31,0),0) -> 0
B11: =IFERROR(VLOOKUP(A11,'Gruber Tabelle'!$A$6:$W$359,2,0),0) -> 0 | G11: =IFERROR(VLOOKUP(A11,'Gruber Tabelle'!$A$6:$W$359,4,0),0) -> 0 | H11: =IFERROR(VLOOKUP(A11,'Gruber Tabelle'!$A$6:$W$359,5,0),0) -> 0 | I11: =IFERROR(VLOOKUP(A11,'Gruber Tabelle'!$A$6:$W$359,7,0),0) -> 0 | J11: =IFERROR(VLOOKUP(A11,'Gruber Tabelle'!$A$6:$W$359,8,0),0) -> 0 | K11: =IFERROR(VLOOKUP(A11,'Gruber Tabelle'!$A$6:$W$359,9,0)/100,0) -> 0 | L11: =IFERROR(VLOOKUP(A11,'Gruber Tabelle'!$A$6:$W$359,10,0),0) -> 0 | M11: =IFERROR(VLOOKUP(A11,'Gruber Tabelle'!$A$6:$W$359,11,0),0) -> 0 | N11: =IFERROR(VLOOKUP(A11,'Gruber Tabelle'!$A$6:$W$359,12,0),0) -> 0 | O11: =IFERROR(VLOOKUP(A11,'Gruber Tabelle'!$A$6:$W$359,13,0),0) -> 0 | P11: =IFERROR(VLOOKUP(A11,'Gruber Tabelle'!$A$6:$W$359,14,0),0) -> 0 | Q11: =IFERROR(VLOOKUP(A11,'Gruber Tabelle'!$A$6:$W$359,15,0),0) -> 0 | R11: =IFERROR(VLOOKUP(A11,'Gruber Tabelle'!$A$6:$W$359,16,0),0) -> 0 | S11: =IFERROR(VLOOKUP(A11,'Gruber Tabelle'!$A$6:$W$359,17,0),0) -> 0 | T11: =IFERROR(VLOOKUP(A11,'Gruber Tabelle'!$A$6:$W$359,18,0),0) -> 0 | U11: =IFERROR(VLOOKUP(A11,'Gruber Tabelle'!$A$6:$W$359,19,0),0) -> 0 | V11: =IFERROR(VLOOKUP(A11,'Gruber Tabelle'!$A$6:$W$359,20,0),0) -> 0 | W11: =IFERROR(VLOOKUP(A11,'Gruber Tabelle'!$A$6:$W$359,21,0),0) -> 0 | X11: =IFERROR(VLOOKUP(A11,'Gruber Tabelle'!$A$6:$W$359,22,0),0) -> 0 | Y11: =IFERROR(VLOOKUP(A11,'Gruber Tabelle'!$A$6:$W$359,23,0),0) -> 0 | Z11: =IFERROR(VLOOKUP(A11,'Gruber Tabelle'!$A$6:$AE$359,25,0),0) -> 0 | AA11: =IFERROR(VLOOKUP(A11,'Gruber Tabelle'!$A$6:$AE$359,26,0),0) -> 0 | AB11: =IFERROR(VLOOKUP(A11,'Gruber Tabelle'!$A$6:$AE$359,27,0),0) -> 0 | AC11: =IFERROR(VLOOKUP(A11,'Gruber Tabelle'!$A$6:$AE$359,28,0),0) -> 0 | AD11: =IFERROR(VLOOKUP(A11,'Gruber Tabelle'!$A$6:$AE$359,29,0),0) -> 0 | AE11: =IFERROR(VLOOKUP(A11,'Gruber Tabelle'!$A$6:$AE$359,30,0),0) -> 0 | AF11: =IFERROR(VLOOKUP(A11,'Gruber Tabelle'!$A$6:$AE$359,31,0),0) -> 0
B12: =IFERROR(VLOOKUP(A12,'Gruber Tabelle'!$A$6:$W$359,2,0),0) -> 0 | G12: =IFERROR(VLOOKUP(A12,'Gruber Tabelle'!$A$6:$W$359,4,0),0) -> 0 | H12: =IFERROR(VLOOKUP(A12,'Gruber Tabelle'!$A$6:$W$359,5,0),0) -> 0 | I12: =IFERROR(VLOOKUP(A12,'Gruber Tabelle'!$A$6:$W$359,7,0),0) -> 0 | J12: =IFERROR(VLOOKUP(A12,'Gruber Tabelle'!$A$6:$W$359,8,0),0) -> 0 | K12: =IFERROR(VLOOKUP(A12,'Gruber Tabelle'!$A$6:$W$359,9,0)/100,0) -> 0 | L12: =IFERROR(VLOOKUP(A12,'Gruber Tabelle'!$A$6:$W$359,10,0),0) -> 0 | M12: =IFERROR(VLOOKUP(A12,'Gruber Tabelle'!$A$6:$W$359,11,0),0) -> 0 | N12: =IFERROR(VLOOKUP(A12,'Gruber Tabelle'!$A$6:$W$359,12,0),0) -> 0 | O12: =IFERROR(VLOOKUP(A12,'Gruber Tabelle'!$A$6:$W$359,13,0),0) -> 0 | P12: =IFERROR(VLOOKUP(A12,'Gruber Tabelle'!$A$6:$W$359,14,0),0) -> 0 | Q12: =IFERROR(VLOOKUP(A12,'Gruber Tabelle'!$A$6:$W$359,15,0),0) -> 0 | R12: =IFERROR(VLOOKUP(A12,'Gruber Tabelle'!$A$6:$W$359,16,0),0) -> 0 | S12: =IFERROR(VLOOKUP(A12,'Gruber Tabelle'!$A$6:$W$359,17,0),0) -> 0 | T12: =IFERROR(VLOOKUP(A12,'Gruber Tabelle'!$A$6:$W$359,18,0),0) -> 0 | U12: =IFERROR(VLOOKUP(A12,'Gruber Tabelle'!$A$6:$W$359,19,0),0) -> 0 | V12: =IFERROR(VLOOKUP(A12,'Gruber Tabelle'!$A$6:$W$359,20,0),0) -> 0 | W12: =IFERROR(VLOOKUP(A12,'Gruber Tabelle'!$A$6:$W$359,21,0),0) -> 0 | X12: =IFERROR(VLOOKUP(A12,'Gruber Tabelle'!$A$6:$W$359,22,0),0) -> 0 | Y12: =IFERROR(VLOOKUP(A12,'Gruber Tabelle'!$A$6:$W$359,23,0),0) -> 0 | Z12: =IFERROR(VLOOKUP(A12,'Gruber Tabelle'!$A$6:$AE$359,25,0),0) -> 0 | AA12: =IFERROR(VLOOKUP(A12,'Gruber Tabelle'!$A$6:$AE$359,26,0),0) -> 0 | AB12: =IFERROR(VLOOKUP(A12,'Gruber Tabelle'!$A$6:$AE$359,27,0),0) -> 0 | AC12: =IFERROR(VLOOKUP(A12,'Gruber Tabelle'!$A$6:$AE$359,28,0),0) -> 0 | AD12: =IFERROR(VLOOKUP(A12,'Gruber Tabelle'!$A$6:$AE$359,29,0),0) -> 0 | AE12: =IFERROR(VLOOKUP(A12,'Gruber Tabelle'!$A$6:$AE$359,30,0),0) -> 0 | AF12: =IFERROR(VLOOKUP(A12,'Gruber Tabelle'!$A$6:$AE$359,31,0),0) -> 0
B13: =IFERROR(VLOOKUP(A13,'Gruber Tabelle'!$A$6:$W$359,2,0),0) -> 0 | G13: =IFERROR(VLOOKUP(A13,'Gruber Tabelle'!$A$6:$W$359,4,0),0) -> 0 | H13: =IFERROR(VLOOKUP(A13,'Gruber Tabelle'!$A$6:$W$359,5,0),0) -> 0 | I13: =IFERROR(VLOOKUP(A13,'Gruber Tabelle'!$A$6:$W$359,7,0),0) -> 0 | J13: =IFERROR(VLOOKUP(A13,'Gruber Tabelle'!$A$6:$W$359,8,0),0) -> 0 | K13: =IFERROR(VLOOKUP(A13,'Gruber Tabelle'!$A$6:$W$359,9,0)/100,0) -> 0 | L13: =IFERROR(VLOOKUP(A13,'Gruber Tabelle'!$A$6:$W$359,10,0),0) -> 0 | M13: =IFERROR(VLOOKUP(A13,'Gruber Tabelle'!$A$6:$W$359,11,0),0) -> 0 | N13: =IFERROR(VLOOKUP(A13,'Gruber Tabelle'!$A$6:$W$359,12,0),0) -> 0 | O13: =IFERROR(VLOOKUP(A13,'Gruber Tabelle'!$A$6:$W$359,13,0),0) -> 0 | P13: =IFERROR(VLOOKUP(A13,'Gruber Tabelle'!$A$6:$W$359,14,0),0) -> 0 | Q13: =IFERROR(VLOOKUP(A13,'Gruber Tabelle'!$A$6:$W$359,15,0),0) -> 0 | R13: =IFERROR(VLOOKUP(A13,'Gruber Tabelle'!$A$6:$W$359,16,0),0) -> 0 | S13: =IFERROR(VLOOKUP(A13,'Gruber Tabelle'!$A$6:$W$359,17,0),0) -> 0 | T13: =IFERROR(VLOOKUP(A13,'Gruber Tabelle'!$A$6:$W$359,18,0),0) -> 0 | U13: =IFERROR(VLOOKUP(A13,'Gruber Tabelle'!$A$6:$W$359,19,0),0) -> 0 | V13: =IFERROR(VLOOKUP(A13,'Gruber Tabelle'!$A$6:$W$359,20,0),0) -> 0 | W13: =IFERROR(VLOOKUP(A13,'Gruber Tabelle'!$A$6:$W$359,21,0),0) -> 0 | X13: =IFERROR(VLOOKUP(A13,'Gruber Tabelle'!$A$6:$W$359,22,0),0) -> 0 | Y13: =IFERROR(VLOOKUP(A13,'Gruber Tabelle'!$A$6:$W$359,23,0),0) -> 0 | Z13: =IFERROR(VLOOKUP(A13,'Gruber Tabelle'!$A$6:$AE$359,25,0),0) -> 0 | AA13: =IFERROR(VLOOKUP(A13,'Gruber Tabelle'!$A$6:$AE$359,26,0),0) -> 0 | AB13: =IFERROR(VLOOKUP(A13,'Gruber Tabelle'!$A$6:$AE$359,27,0),0) -> 0 | AC13: =IFERROR(VLOOKUP(A13,'Gruber Tabelle'!$A$6:$AE$359,28,0),0) -> 0 | AD13: =IFERROR(VLOOKUP(A13,'Gruber Tabelle'!$A$6:$AE$359,29,0),0) -> 0 | AE13: =IFERROR(VLOOKUP(A13,'Gruber Tabelle'!$A$6:$AE$359,30,0),0) -> 0 | AF13: =IFERROR(VLOOKUP(A13,'Gruber Tabelle'!$A$6:$AE$359,31,0),0) -> 0
A14: Nr | B14: Futterart | C14: Anteil in % | D14: TS % | E14: TM kg | F14: FM kg | G14: XF g | H14: aNDFom | I14: CP g | J14: nxP g | K14: UDP % | L14: RNB | M14: Nel MJ | N14: ME MJ | O14: ST+ZU | P14: bST | Q14: CL | R14: Ca | S14: P | T14: Mg | U14: Na | V14: K | W14: Cl | X14: S | Y14: Preis | Z14: Fe | AA14: Cu | AB14: Zn | AC14: Mn | AD14: Co | AE14: J | AF14: Se
A15: =A4 -> 0 | B15: 0 | D15: =IFERROR(VLOOKUP(A4,'Gruber Tabelle'!$A$6:$W$359,3,0)/1000,0) -> 0 | E15: =IF(F15>0,F15*D15,0) -> 0 | F15: =IF(C15>0,(1*C15),0) -> 0 | G15: =IF(G4>0,(G4*C15)*D15,0) -> 0 | H15: =IF(H4>0,(H4*C15)*D15,0) -> 0 | I15: =IF(I4>0,(I4*C15)*D15,0) -> 0 | J15: =IF(J4>0,(J4*C15)*D15,0) -> 0 | K15: =IF(K4>0,(I4*K4)*E15,0) -> 0 | L15: =IFERROR(SUM((I15-J15)/6.25),0) -> 0 | M15: =IF(M4>0,(M4*C15)*D15,0) -> 0 | N15: =IF(N4>0,(N4*C15)*D15,0) -> 0 | O15: =IF(O4>0,(O4*C15)*D15,0) -> 0 | P15: =IF(P4>0,(P4*C15)*D15,0) -> 0 | Q15: =IF(Q4>0,(Q4*C15)*D15,0) -> 0 | R15: =IF(R4>0,(R4*C15)*D15,0) -> 0 | S15: =IF(S4>0,(S4*C15)*D15,0) -> 0 | T15: =IF(T4>0,(T4*C15)*D15,0) -> 0 | U15: =IF(U4>0,(U4*C15)*D15,0) -> 0 | V15: =IF(V4>0,(V4*C15)*D15,0) -> 0 | W15: =IF(W4>0,(W4*C15)*D15,0) -> 0 | X15: =IF(X4>0,(X4*C15)*D15,0) -> 0 | Y15: =IF(C15>0,Y4*F15/100,0) -> 0 | Z15: =IF(Z4>0,(Z4*C15)*D15,0) -> 0 | AA15: =IF(AA4>0,(AA4*C15)*D15,0) -> 0 | AB15: =IF(AB4>0,(AB4*C15)*D15,0) -> 0 | AC15: =IF(AC4>0,(AC4*C15)*D15,0) -> 0 | AD15: =IF(AD4>0,(AD4*C15)*D15,0) -> 0 | AE15: =IF(AE4>0,(AE4*C15)*D15,0) -> 0 | AF15: =IF(AF4>0,(AF4*C15)*D15,0) -> 0
A16: 0 | B16: 0 | D16: =IFERROR(VLOOKUP(A5,'Gruber Tabelle'!$A$6:$W$359,3,0)/1000,0) -> 0 | E16: =IF(F16>0,F16*D16,0) -> 0 | F16: =IF(C16>0,(1*C16),0) -> 0 | G16: =IF(G5>0,(G5*C16)*D16,0) -> 0 | H16: =IF(H5>0,(H5*C16)*D16,0) -> 0 | I16: =IF(I5>0,(I5*C16)*D16,0) -> 0 | J16: =IF(J5>0,(J5*C16)*D16,0) -> 0 | K16: =IF(K5>0,(I5*K5)*E16,0) -> 0 | L16: 0 | M16: =IF(M5>0,(M5*C16)*D16,0) -> 0 | N16: =IF(N5>0,(N5*C16)*D16,0) -> 0 | O16: =IF(O5>0,(O5*C16)*D16,0) -> 0 | P16: =IF(P5>0,(P5*C16)*D16,0) -> 0 | Q16: =IF(Q5>0,(Q5*C16)*D16,0) -> 0 | R16: =IF(R5>0,(R5*C16)*D16,0) -> 0 | S16: =IF(S5>0,(S5*C16)*D16,0) -> 0 | T16: =IF(T5>0,(T5*C16)*D16,0) -> 0 | U16: =IF(U5>0,(U5*C16)*D16,0) -> 0 | V16: =IF(V5>0,(V5*C16)*D16,0) -> 0 | W16: =IF(W5>0,(W5*C16)*D16,0) -> 0 | X16: =IF(X5>0,(X5*C16)*D16,0) -> 0 | Y16: 0 | Z16: =IF(Z5>0,(Z5*C16)*D16,0) -> 0 | AA16: =IF(AA5>0,(AA5*C16)*D16,0) -> 0 | AB16: =IF(AB5>0,(AB5*C16)*D16,0) -> 0 | AC16: =IF(AC5>0,(AC5*C16)*D16,0) -> 0 | AD16: =IF(AD5>0,(AD5*C16)*D16,0) -> 0 | AE16: =IF(AE5>0,(AE5*C16)*D16,0) -> 0 | AF16: =IF(AF5>0,(AF5*C16)*D16,0) -> 0
A17: 0 | B17: 0 | D17: =IFERROR(VLOOKUP(A6,'Gruber Tabelle'!$A$6:$W$359,3,0)/1000,0) -> 0 | E17: 0 | F17: 0 | G17: 0 | H17: 0 | I17: 0 | J17: 0 | K17: 0 | L17: 0 | M17: 0 | N17: 0 | O17: 0 | P17: 0 | Q17: 0 | R17: 0 | S17: 0 | T17: 0 | U17: 0 | V17: 0 | W17: 0 | X17: 0 | Y17: 0 | Z17: 0 | AA17: 0 | AB17: 0 | AC17: 0 | AD17: 0 | AE17: 0 | AF17: 0
A18: 0 | B18: 0 | D18: =IFERROR(VLOOKUP(A7,'Gruber Tabelle'!$A$6:$W$359,3,0)/1000,0) -> 0 | E18: 0 | F18: 0 | G18: 0 | H18: 0 | I18: 0 | J18: 0 | K18: 0 | L18: 0 | M18: 0 | N18: 0 | O18: 0 | P18: 0 | Q18: 0 | R18: 0 | S18: 0 | T18: 0 | U18: 0 | V18: 0 | W18: 0 | X18: 0 | Y18: 0 | Z18: 0 | AA18: 0 | AB18: 0 | AC18: 0 | AD18: 0 | AE18: 0 | AF18: 0
A19: 0 | B19: 0 | D19: =IFERROR(VLOOKUP(A8,'Gruber Tabelle'!$A$6:$W$359,3,0)/1000,0) -> 0 | E19: 0 | F19: 0 | G19: 0 | H19: 0 | I19: 0 | J19: 0 | K19: 0 | L19: 0 | M19: 0 | N19: 0 | O19: 0 | P19: 0 | Q19: 0 | R19: 0 | S19: 0 | T19: 0 | U19: 0 | V19: 0 | W19: 0 | X19: 0 | Y19: 0 | Z19: 0 | AA19: 0 | AB19: 0 | AC19: 0 | AD19: 0 | AE19: 0 | AF19: 0
A20: 0 | B20: 0 | D20: =IFERROR(VLOOKUP(A9,'Gruber Tabelle'!$A$6:$W$359,3,0)/1000,0) -> 0 | E20: 0 | F20: 0 | G20: 0 | H20: 0 | I20: 0 | J20: 0 | K20: 0 | L20: 0 | M20: 0 | N20: 0 | O20: 0 | P20: 0 | Q20: 0 | R20: 0 | S20: 0 | T20: 0 | U20: 0 | V20: 0 | W20: 0 | X20: 0 | Y20: 0 | Z20: 0 | AA20: 0 | AB20: 0 | AC20: 0 | AD20: 0 | AE20: 0 | AF20: 0
A21: 0 | B21: 0 | D21: =IFERROR(VLOOKUP(A10,'Gruber Tabelle'!$A$6:$W$359,3,0)/1000,0) -> 0 | E21: 0 | F21: 0 | G21: 0 | H21: 0 | I21: 0 | J21: 0 | K21: 0 | L21: 0 | M21: 0 | N21: 0 | O21: 0 | P21: 0 | Q21: 0 | R21: 0 | S21: 0 | T21: 0 | U21: 0 | V21: 0 | W21: 0 | X21: 0 | Y21: 0 | Z21: 0 | AA21: 0 | AB21: 0 | AC21: 0 | AD21: 0 | AE21: 0 | AF21: 0
A22: 0 | B22: 0 | D22: =IFERROR(VLOOKUP(A11,'Gruber Tabelle'!$A$6:$W$359,3,0)/1000,0) -> 0 | E22: 0 | F22: 0 | G22: 0 | H22: 0 | I22: 0 | J22: 0 | K22: 0 | L22: 0 | M22: 0 | N22: 0 | O22: 0 | P22: 0 | Q22: 0 | R22: 0 | S22: 0 | T22: 0 | U22: 0 | V22: 0 | W22: 0 | X22: 0 | Y22: 0 | Z22: 0 | AA22: 0 | AB22: 0 | AC22: 0 | AD22: 0 | AE22: 0 | AF22: 0
A23: 0 | B23: 0 | D23: =IFERROR(VLOOKUP(A12,'Gruber Tabelle'!$A$6:$W$359,3,0)/1000,0) -> 0 | E23: 0 | F23: 0 | G23: 0 | H23: 0 | I23: 0 | J23: 0 | K23: 0 | L23: 0 | M23: 0 | N23: 0 | O23: 0 | P23: 0 | Q23: 0 | R23: 0 | S23: 0 | T23: 0 | U23: 0 | V23: 0 | W23: 0 | X23: 0 | Y23: 0 | Z23: 0 | AA23: 0 | AB23: 0 | AC23: 0 | AD23: 0 | AE23: 0 | AF23: 0
A24: 0 | B24: 0 | D24: =IFERROR(VLOOKUP(A13,'Gruber Tabelle'!$A$6:$W$359,3,0)/1000,0) -> 0 | E24: 0 | F24: 0 | G24: 0 | H24: 0 | I24: 0 | J24: 0 | K24: 0 | L24: 0 | M24: 0 | N24: 0 | O24: 0 | P24: 0 | Q24: 0 | R24: 0 | S24: 0 | T24: 0 | U24: 0 | V24: 0 | W24: 0 | X24: 0 | Y24: 0 | Z24: 0 | AA24: 0 | AB24: 0 | AC24: 0 | AD24: 0 | AE24: 0 | AF24: 0
B25: Summe je kg FM: | C25: =SUM(C15:C24) -> 0 | E25: =SUM(E15:E24) -> 0 | F25: =SUM(F15:F24) -> 0 | G25: 0 | H25: 0 | I25: 0 | J25: 0 | K25: 0 | L25: 0 | M25: 0 | N25: 0 | O25: 0 | P25: 0 | Q25: 0 | R25: 0 | S25: 0 | T25: 0 | U25: 0 | V25: 0 | W25: 0 | X25: 0 | Y25: 0 | Z25: =SUM(Z15:Z24) -> 0 | AA25: =SUM(AA15:AA24) -> 0 | AB25: 0 | AC25: 0 | AD25: 0 | AE25: 0 | AF25: 0
A26: Milcherzeugungswerte / Kennzahlen | H26: =IF(C25=100%,H25/1000,0) -> 0 | I26: =IFERROR(I25/Einstellung!E16,0) -> 0 | J26: =IFERROR(J25/Einstellung!E16,0) -> 0 | K26: =IF(K25>0,K25/I25,0) -> 0 | L26: =IF(C25=100%,(I25-J25)/6.25,0) -> 0 | M26: =IFERROR(M25/Einstellung!F15,0) -> 0 | N26: Mengenelem. f. kg Milch: | R26: =IF(R25>0,R25/Einstellung!D23,0) -> 0 | S26: =IF(S25>0,S25/Einstellung!E23,0) -> 0 | T26: =IF(T25>0,T25/Einstellung!F23,0) -> 0 | U26: =IF(U25>0,U25/Einstellung!G23,0) -> 0 | Y26: =IFERROR(Y25/M26,0) -> 0

Sheet Gruber Tabelle
A1: Ration
C2: www.LfL.bayern.de | H2: Gruber Tabelle zur Fütterung der Milchkühe – Zuchtrinder – Mastrinder – Schafe – Ziegen
C3: TM | D3: in 1000 g Trockenmasse ( TM ) | W3: Preis | X3: Typ | Y3: Spurenelemente mg / kg TM
D4: XF | E4: aNDF | F4: ADF | G4: CP | H4: nxP | I4: UDP | J4: RNB | K4: NEL | L4: ME | M4: ST+ZU | N4: bST | O4: CL | P4: Ca | Q4: P | R4: Mg | S4: Na | T4: K | U4: Cl | V4: S | W4: FM | Y4: Fe | Z4: Cu | AA4: Zn | AB4: Mn | AC4: Co | AD4: J | AE4: Se
C5: g | D5: g | E5: om g | F5: om g | G5: g | H5: g | I5: % | J5: g | K5: MJ | L5: MJ | M5: g | N5: g | O5: g | P5: g | Q5: g | R5: g | S5: g | T5: g | U5: g | V5: g | W5: € / dt | Y5: mg | Z5: mg | AA5: mg | AB5: mg | AC5: mg | AD5: mg | AE5: mg
B6: 10.1 Grünfutter | J6: =(G6-H6)/6.25 -> 0
B7: Wiesengras 1. Schnitt | J7: =(G7-H7)/6.25 -> 0
A8: 1013 | B8: Blattstadium | C8: 150 | D8: 170 | E8: 380 | F8: 204 | G8: 215 | H8: 152 | I8: 10 | J8: =(G8-H8)/6.25 -> 10.08 | K8: 7.06 | L8: 11.52 | M8: 100 | O8: 38 | P8: 5.5 | Q8: 3.6 | R8: 2 | S8: 1.3 | T8: 26 | U8: 7 | V8: 2.2 | X8: GF
A9: 1014 | B9: Schossen | C9: 160 | D9: 205 | E9: 430 | F9: 224 | G9: 195 | H9: 144 | I9: 10 | J9: 8.16 | K9: 6.7 | L9: 11.05 | M9: 100 | O9: 39 | P9: 5.5 | Q9: 3.6 | R9: 2 | S9: 1.3 | T9: 26 | U9: 7 | V9: 2.2 | X9: GF | Y9: 200 | Z9: 8.5 | AA9: 40 | AB9: 70 | AC9: 0.1 | AD9: 0.4 | AE9: 0.02
A10: 1015 | B10: Rispenschieben | C10: 180 | D10: 240 | E10: 490 | F10: 272 | G10: 175 | H10: 142 | I10: 15 | J10: 5.28 | K10: 6.33 | L10: 10.55 | M10: 100 | O10: 35 | P10: 5.5 | Q10: 3.6 | R10: 2.1 | S10: 0.7 | T10: 26 | U10: 9 | V10: 2.2 | W10: 0 | X10: GF
A11: 1016 | B11: Beginn Blüte | C11: 200 | D11: 278 | E11: 550 | F11: 291 | G11: 155 | H11: 133 | I11: 15 | J11: 3.52 | K11: 5.93 | L11: 9.99 | M11: 70 | O11: 31 | P11: 4.8 | Q11: 3.5 | R11: 1.9 | S11: 0.7 | T11: 27 | U11: 10.5 | V11: 2.2 | W11: 0 | X11: GF | Y11: 200 | Z11: 7 | AA11: 35 | AB11: 75 | AC11: 0.1 | AD11: 0.4 | AE11: 0.02
A12: 1017 | B12: Ende Blüte | C12: 220 | D12: 312 | E12: 600 | F12: 306 | G12: 140 | H12: 127 | I12: 15 | J12: 2.08 | K12: 5.67 | L12: 9.63 | M12: 60 | O12: 29 | P12: 3.8 | Q12: 3.3 | R12: 1.8 | S12: 0.7 | T12: 27 | U12: 4 | V12: 1.3 | W12: 0 | X12: GF | Y12: 200 | Z12: 6.5 | AA12: 23 | AB12: 85 | AC12: 0.1 | AD12: 0.4 | AE12: 0.01
A13: 1018 | J13: 0 | X13: GF
B14: Wiesengras 2. u. folg. Schnitte | J14: 0
A15: 1023 | B15: Blattstadium | C15: 160 | D15: 165 | E15: 380 | F15: 221 | G15: 235 | H15: 149 | I15: 10 | J15: 13.76 | K15: 6.74 | L15: 11.12 | M15: 100 | O15: 37 | P15: 11 | Q15: 4 | R15: 3.5 | S15: 0.6 | T15: 26 | U15: 5 | V15: 2 | X15: GF | Y15: 200 | Z15: 9 | AA15: 40 | AB15: 80 | AC15: 0.1 | AD15: 0.4 | AE15: 0.04
A16: 1024 | B16: Schossen | C16: 170 | D16: 205 | E16: 435 | F16: 245 | G16: 180 | H16: 136 | I16: 10 | J16: 7.04 | K16: 6.28 | L16: 10.47 | M16: 100 | O16: 38 | P16: 10 | Q16: 3.1 | R16: 3.2 | S16: 0.8 | T16: 23 | U16: 5 | V16: 2.5 | X16: GF | Y16: 200 | Z16: 10 | AA16: 40 | AB16: 80 | AC16: 0.1 | AD16: 0.4 | AE16: 0.04
A17: 1025 | B17: Rispenschieben | C17: 180 | D17: 240 | E17: 490 | F17: 259 | G17: 172 | H17: 137 | I17: 15 | J17: 5.6 | K17: 6.02 | L17: 10.11 | M17: 100 | O17: 35 | P17: 8.1 | Q17: 3.5 | R17: 2.8 | S17: 0.9 | T17: 24 | U17: 5 | V17: 1.8 | X17: GF | Y17: 200 | Z17: 7.5 | AA17: 40 | AB17: 75 | AC17: 0.1 | AD17: 0.4 | AE17: 0.03
A18: 1026 | B18: Beginn Blüte | C18: 200 | D18: 275 | E18: 545 | F18: 281 | G18: 150 | H18: 130 | I18: 15 | J18: 3.2 | K18: 5.78 | L18: 9.78 | M18: 100 | O18: 32 | P18: 6.2 | Q18: 3.6 | R18: 2.2 | S18: 0.9 | T18: 24 | U18: 5 | V18: 2.4 | X18: GF | Y18: 200 | Z18: 7 | AA18: 40 | AB18: 70 | AC18: 0.1 | AD18: 0.4 | AE18: 0.02
A19: 1027 | J19: 0 | X19: GF
B20: Rotklee 1. Schnitt | J20: 0
A21: 1614 | B21: vor der Knospe | C21: 150 | D21: 192 | E21: 420 | F21: 245 | G21: 210 | H21: 155 | I21: 20 | J21: 8.8 | K21: 6.37 | L21: 10.57 | M21: 70 | O21: 40 | P21: 16 | Q21: 2.9 | R21: 3.6 | S21: 0.4 | T21: 32 | U21: 6 | V21: 2.6 | X21: GF | Y21: 150 | Z21: 11 | AA21: 40 | AB21: 42 | AC21: 0.1 | AD21: 0.4 | AE21: 0.1
A22: 1615 | B22: in der Knospe | C22: 180 | D22: 240 | E22: 490 | F22: 285 | G22: 180 | H22: 142 | I22: 20 | J22: 6.08 | K22: 5.89 | L22: 9.91 | M22: 80 | O22: 35 | P22: 15 | Q22: 2.5 | R22: 3.6 | S22: 0.4 | T22: 24 | U22: 6 | V22: 2.5 | X22: GF | Y22: 150 | Z22: 11 | AA22: 44 | AB22: 40 | AC22: 0.1 | AD22: 0.4 | AE22: 0.1
A23: 1616 | B23: Mitte der Blüte | C23: 200 | D23: 282 | E23: 555 | F23: 325 | G23: 160 | H23: 131 | I23: 20 | J23: 4.64 | K23: 5.47 | L23: 9.31 | M23: 80 | O23: 29 | P23: 13 | Q23: 2.5 | R23: 3.6 | S23: 0.3 | T23: 22 | U23: 6 | V23: 2.5 | X23: GF | Y23: 150 | Z23: 10 | AA23: 44 | AB23: 40 | AC23: 0.4 | AD23: 0.1 | AE23: 0.1
A24: 1617 | J24: 0 | X24: GF
B25: Rotklee 2. u. folg. Schnitte | J25: 0
A26: 1624 | B26: vor der Knospe | C26: 140 | D26: 201 | E26: 430 | F26: 255 | G26: 219 | H26: 152 | I26: 20 | J26: 10.72 | K26: 6.03 | L26: 10.11 | M26: 80 | O26: 38 | P26: 17 | Q26: 2.8 | R26: 3.6 | S26: 1.4 | T26: 24 | U26: 7.6 | V26: 1.8 | X26: GF | Y26: 150 | Z26: 10 | AA26: 47 | AB26: 45 | AC26: 0.1 | AD26: 0.4 | AE26: 0.1
A27: 1625 | B27: in der Knospe | C27: 160 | D27: 238 | E27: 485 | F27: 285 | G27: 190 | H27: 140 | I27: 20 | J27: 8 | K27: 5.65 | L27: 9.59 | M27: 70 | O27: 34 | P27: 17 | Q27: 3 | R27: 4 | S27: 1.5 | T27: 29 | U27: 5.4 | V27: 3.7 | X27: GF | Y27: 150 | Z27: 12 | AA27: 44 | AB27: 42 | AC27: 0.1 | AD27: 0.4 | AE27: 0.1
A28: 1626 | B28: Mitte der Blüte | C28: 180 | D28: 274 | E28: 540 | F28: 315 | G28: 165 | H28: 130 | I28: 20 | J28: 5.6 | K28: 5.31 | L28: 9.11 | M28: 80 | O28: 33 | P28: 15 | Q28: 3 | R28: 3 | S28: 1.2 | T28: 28 | U28: 5 | V28: 2 | X28: GF | Y28: 150 | Z28: 10 | AA28: 44 | AB28: 40 | AC28: 0.1 | AD28: 0.4 | AE28: 0.1
A29: 1627 | J29: 0 | X29: GF
B30: Kleegras 1. Schnitt | J30: 0
A31: 1633 | B31: vor der Knospe | C31: 150 | D31: 185 | E31: 405 | F31: 240 | G31: 230 | H31: 156 | I31: 15 | J31: 11.84 | K31: 6.73 | L31: 11.05 | M31: 80 | O31: 34 | P31: 13 | Q31: 4.5 | R31: 2.4 | S31: 0.3 | T31: 36 | U31: 5 | V31: 2 | X31: GF | Y31: 200 | Z31: 9 | AA31: 50 | AB31: 60 | AC31: 0.1 | AD31: 0.4 | AE31: 0.02
A32: 1634 | B32: in der Knospe | C32: 160 | D32: 222 | E32: 460 | F32: 270 | G32: 215 | H32: 149 | I32: 15 | J32: 10.56 | K32: 6.37 | L32: 10.58 | M32: 80 | O32: 31 | P32: 10 | Q32: 4.4 | R32: 2.3 | S32: 0.5 | T32: 35 | U32: 5 | V32: 2 | X32: GF | Y32: 200 | Z32: 9 | AA32: 50 | AB32: 60 | AC32: 0.1 | AD32: 0.4 | AE32: 0.02
A33: 1636 | B33: Mitte der Blüte | C33: 200 | D33: 295 | E33: 575 | F33: 335 | G33: 170 | H33: 136 | I33: 20 | J33: 5.44 | K33: 5.63 | L33: 9.56 | M33: 80 | O33: 26 | P33: 7 | Q33: 3.5 | R33: 2 | S33: 0.3 | T33: 30 | U33: 4 | V33: 2 | X33: GF | Y33: 200 | Z33: 8 | AA33: 50 | AB33: 70 | AC33: 0.1 | AD33: 0.4 | AE33: 0.02
A34: 1637 | J34: 0 | X34: GF
B35: Kleegras 2. u. folg. Schnitte | J35: 0
A36: 1644 | B36: vor der Knospe | C36: 160 | D36: 205 | E36: 430 | F36: 255 | G36: 215 | H36: 146 | I36: 15 | J36: 11.04 | K36: 6.18 | L36: 10.32 | M36: 70 | O36: 33 | P36: 12 | Q36: 4.1 | R36: 3.1 | S36: 0.7 | T36: 35 | U36: 2 | V36: 2 | X36: GF | Y36: 200 | Z36: 9 | AA36: 55 | AB36: 60 | AC36: 0.1 | AD36: 0.4 | AE36: 0.02
A37: 1645 | B37: Knospe | C37: 170 | D37: 240 | E37: 490 | F37: 285 | G37: 205 | H37: 140 | I37: 15 | J37: 10.4 | K37: 5.9 | L37: 9.94 | M37: 70 | O37: 32 | P37: 11 | Q37: 3.8 | R37: 2.5 | S37: 0.4 | T37: 33 | U37: 2 | V37: 2 | X37: GF | Y37: 200 | Z37: 9 | AA37: 55 | AB37: 55 | AC37: 0.1 | AD37: 0.4 | AE37: 0.02
A38: 1646 | B38: Mitte der Blüte | C38: 180 | D38: 280 | E38: 550 | F38: 320 | G38: 170 | H38: 134 | I38: 20 | J38: 5.76 | K38: 5.47 | L38: 9.33 | M38: 70 | O38: 31 | P38: 8 | Q38: 4 | R38: 2 | S38: 0.3 | T38: 35 | U38: 5 | V38: 2 | X38: GF | Y38: 200 | Z38: 8 | AA38: 55 | AB38: 50 | AC38: 0.1 | AD38: 0.4 | AE38: 0.02
A39: 1647 | J39: 0 | X39: GF
A40: 1655 | B40: Jurakleegras 1.Schn.Beg.Blü. | C40: 170 | D40: 245 | E40: 500 | F40: 290 | G40: 185 | H40: 139 | I40: 15 | J40: =(G40-H40)/6.25 -> 7.36 | K40: 6.03 | L40: 10.1 | M40: 50 | O40: 30 | P40: 10 | Q40: 3.7 | R40: 1.9 | S40: 0.8 | T40: 35 | U40: 6 | V40: 2 | X40: GF | Y40: 200 | Z40: 9 | AA40: 50 | AB40: 60 | AC40: 0.1 | AD40: 0.4 | AE40: 0.1
A41: 1656 | J41: 0 | X41: GF
B42: Luzerne 1.Schnitt | J42: 0
A43: 1714 | B43: Knospe | C43: 180 | D43: 228 | E43: 470 | F43: 275 | G43: 216 | H43: 139 | I43: 15 | J43: 12.32 | K43: 5.74 | L43: 9.69 | M43: 15 | O43: 31 | P43: 18 | Q43: 3 | R43: 3.2 | S43: 0.5 | T43: 30 | U43: 6 | V43: 4.6 | X43: GF | Y43: 150 | Z43: 10 | AA43: 33 | AB43: 34 | AC43: 0.2 | AD43: 0.3 | AE43: 0.1
A44: 1715 | B44: Beginn Blüte | C44: 200 | D44: 276 | E44: 545 | F44: 315 | G44: 188 | H44: 137 | I44: 20 | J44: 8.16 | K44: 5.45 | L44: 9.31 | M44: 25 | O44: 30 | P44: 20 | Q44: 2.8 | R44: 2.7 | S44: 1 | T44: 26 | U44: 6.7 | V44: 4.5 | X44: GF | Y44: 150 | Z44: 11 | AA44: 24 | AB44: 37 | AC44: 0.2 | AD44: 0.3 | AE44: 0.1
A45: 1716 | B45: Ende Blüte | C45: 210 | D45: 325 | E45: 620 | F45: 360 | G45: 169 | H45: 132 | I45: 25 | J45: 5.92 | K45: 5 | L45: 8.66 | M45: 54 | O45: 28 | P45: 17 | Q45: 2.7 | R45: 2.5 | S45: 1 | T45: 28 | U45: 6 | V45: 3 | X45: GF | Y45: 150 | Z45: 10 | AA45: 30 | AB45: 35 | AC45: 0.2 | AD45: 0.3 | AE45: 0.1
A46: 1717 | J46: 0 | X46: GF
B47: Luzerne 2. u. folg. Schnitte | J47: 0
A48: 1724 | B48: Knospe | C48: 180 | D48: 231 | E48: 475 | F48: 280 | G48: 222 | H48: 141 | I48: 15 | J48: 12.96 | K48: 5.79 | L48: 9.8 | M48: 40 | O48: 40 | P48: 18 | Q48: 3.1 | R48: 2.8 | S48: 0.5 | T48: 28 | U48: 3 | V48: 2 | X48: GF | Y48: 150 | Z48: 12 | AA48: 20 | AB48: 36 | AC48: 0.2 | AD48: 0.3 | AE48: 0.1
A49: 1725 | B49: Beginn Blüte | C49: 200 | D49: 277 | E49: 545 | F49: 320 | G49: 198 | H49: 139 | I49: 20 | J49: 9.44 | K49: 5.44 | L49: 9.31 | M49: 35 | O49: 31 | P49: 18 | Q49: 2.8 | R49: 2.7 | S49: 0.7 | T49: 24 | U49: 3.6 | V49: 3.3 | X49: GF | Y49: 150 | Z49: 12 | AA49: 24 | AB49: 45 | AC49: 0.2 | AD49: 0.3 | AE49: 0.1
A50: 1726 | B50: Ende Blüte | C50: 200 | D50: 331 | E50: 625 | F50: 365 | G50: 189 | H50: 130 | I50: 20 | J50: 9.44 | K50: 4.97 | L50: 8.65 | M50: 35 | O50: 31 | P50: 16 | Q50: 2.4 | R50: 2.2 | S50: 0.4 | T50: 21 | U50: 4 | V50: 3 | X50: GF | Y50: 150 | Z50: 10 | AA50: 30 | AB50: 40 | AC50: 0.2 | AD50: 0.3 | AE50: 0.1
A51: 1727 | J51: 0 | X51: GF
B52: Luzernegras 1. Schnitt | J52: 0
A53: 1734 | B53: vor der Knospe | C53: 150 | D53: 225 | E53: 455 | F53: 265 | G53: 205 | H53: 144 | I53: 15 | J53: 9.76 | K53: 6.17 | L53: 10.31 | M53: 9 | O53: 35 | P53: 9 | Q53: 3.5 | R53: 2.2 | S53: 0.3 | T53: 34 | U53: 2 | V53: 2 | X53: GF | Y53: 200 | Z53: 8 | AA53: 40 | AB53: 60 | AC53: 0.1 | AD53: 0.4 | AE53: 0.05
A54: 1735 | B54: Knospe | C54: 170 | D54: 265 | E54: 515 | F54: 300 | G54: 180 | H54: 135 | I54: 15 | J54: 7.2 | K54: 5.83 | L54: 9.85 | M54: 29 | O54: 32 | P54: 9 | Q54: 3.3 | R54: 2.1 | S54: 0.3 | T54: 30 | U54: 2 | V54: 2 | X54: GF | Y54: 200 | Z54: 8 | AA54: 40 | AB54: 60 | AC54: 0.1 | AD54: 0.4 | AE54: 0.05
A55: 1736 | B55: Mitte der Blüte | C55: 200 | D55: 305 | E55: 590 | F55: 345 | G55: 160 | H55: 125 | I55: 15 | J55: 5.6 | K55: 5.39 | L55: 9.21 | M55: 70 | O55: 28 | P55: 7 | Q55: 3.2 | R55: 2 | S55: 0.3 | T55: 30 | U55: 2 | V55: 2 | X55: GF | Y55: 200 | Z55: 8 | AA55: 40 | AB55: 60 | AC55: 0.1 | AD55: 0.4 | AE55: 0.05
A56: 1737 | J56: 0 | X56: GF
B57: Luzernegras 2. u. folg. Schnitte | J57: 0
A58: 1744 | B58: vor der Knospe | C58: 170 | D58: 225 | E58: 460 | F58: 270 | G58: 215 | H58: 142 | I58: 15 | J58: 11.68 | K58: 5.92 | L58: 9.95 | M58: 9 | O58: 36 | P58: 12 | Q58: 3.7 | R58: 2 | S58: 0.3 | T58: 35 | U58: 2 | V58: 2.5 | X58: GF | Y58: 200 | Z58: 9 | AA58: 40 | AB58: 50 | AC58: 0.1 | AD58: 0.4 | AE58: 0.08
A59: 1745 | B59: Knospe | C59: 180 | D59: 260 | E59: 520 | F59: 305 | G59: 195 | H59: 136 | I59: 15 | J59: 9.44 | K59: 5.7 | L59: 9.67 | M59: 29 | O59: 34 | P59: 12 | Q59: 3.4 | R59: 2.5 | S59: 0.3 | T59: 32 | U59: 2 | V59: 2 | X59: GF | Y59: 200 | Z59: 8 | AA59: 40 | AB59: 50 | AC59: 0.1 | AD59: 0.4 | AE59: 0.08
A60: 1746 | B60: Mitte der Blüte | C60: 200 | D60: 300 | E60: 580 | F60: 340 | G60: 180 | H60: 128 | I60: 15 | J60: 8.32 | K60: 5.39 | L60: 9.23 | M60: 70 | O60: 32 | P60: 11 | Q60: 3.2 | R60: 2.1 | S60: 0.3 | T60: 30 | U60: 2 | V60: 2 | X60: GF | Y60: 200 | Z60: 7 | AA60: 40 | AB60: 50 | AC60: 0.1 | AD60: 0.4 | AE60: 0.08
A61: 1747 | J61: =(G61-H61)/6.25 -> 0 | X61: GF
A62: 1665 | B62: Alexandrinerklee gr. Beg. Blüte | C62: 125 | D62: 237 | E62: 485 | F62: 285 | G62: 200 | H62: 149 | I62: 25 | J62: =(G62-H62)/6.25 -> 8.16 | K62: 5.65 | L62: 9.56 | M62: 80 | O62: 43 | P62: 16 | Q62: 3.9 | R62: 3.2 | S62: 1.3 | T62: 33 | U62: 6 | V62: 2 | X62: GF | Y62: 150 | Z62: 9 | AA62: 55 | AB62: 60 | AC62: 0.1 | AD62: 0.4 | AE62: 0.1
A63: 1685 | B63: Perserklee | C63: 118 | D63: 218 | E63: 455 | F63: 265 | G63: 203 | H63: 143 | I63: 20 | J63: 9.6 | K63: 5.71 | L63: 9.6 | M63: 80 | O63: 24 | P63: 16 | Q63: 3.5 | R63: 2 | S63: 1.4 | T63: 28 | U63: 6 | V63: 2 | X63: GF | Y63: 150 | Z63: 9 | AA63: 50 | AB63: 60 | AC63: 0.1 | AD63: 0.4 | AE63: 0.1
B64: Weidelgras 1. Schnitt | J64: 0
A65: 1814 | B65: Schossen | C65: 150 | D65: 200 | E65: 425 | F65: 222 | G65: 195 | H65: 151 | I65: 15 | J65: 7.04 | K65: 6.77 | L65: 11.11 | M65: 150 | O65: 41 | P65: 6 | Q65: 3.5 | R65: 1.6 | S65: 1.8 | T65: 27 | U65: 6 | V65: 1.5 | X65: GF | Y65: 150 | Z65: 9 | AA65: 40 | AB65: 80 | AC65: 0.1 | AD65: 0.4 | AE65: 0.1
A66: 1815 | B66: Ährenschieben | C66: 170 | D66: 235 | E66: 490 | F66: 241 | G66: 165 | H66: 140 | I66: 15 | J66: 4 | K66: 6.33 | L66: 10.5 | M66: 150 | O66: 37 | P66: 5 | Q66: 3.2 | R66: 1.6 | S66: 2.5 | T66: 19 | U66: 6 | V66: 2 | X66: GF | Y66: 150 | Z66: 80 | AA66: 40 | AB66: 60 | AC66: 0.1 | AD66: 0.4 | AE66: 0.1
A67: 1816 | B67: Beginn Blüte | C67: 180 | D67: 290 | E67: 550 | F67: 300 | G67: 125 | H67: 123 | I67: 15 | J67: 0.32 | K67: 5.63 | L67: 9.53 | M67: 150 | O67: 31 | P67: 4.5 | Q67: 2.1 | R67: 1.5 | S67: 1.5 | T67: 12 | U67: 6 | V67: 2 | X67: GF | Y67: 150 | Z67: 80 | AA67: 40 | AB67: 60 | AC67: 0.1 | AD67: 0.4 | AE67: 0.1
A68: 1817 | J68: 0 | X68: GF
B69: Weidelgras 2. u. folg. Schnitte | J69: 0
A70: 1824 | B70: Schossen | C70: 160 | D70: 200 | E70: 430 | F70: 236 | G70: 195 | H70: 141 | I70: 15 | J70: 8.64 | K70: 6.09 | L70: 10.16 | M70: 150 | O70: 33 | P70: 6 | Q70: 3.7 | R70: 2.1 | S70: 1.3 | T70: 31 | U70: 5 | V70: 2 | X70: GF | Y70: 150 | Z70: 9 | AA70: 60 | AB70: 70 | AC70: 0.1 | AD70: 0.4 | AE70: 0.1
A71: 1825 | B71: Ährenschieben | C71: 170 | D71: 240 | E71: 500 | F71: 265 | G71: 175 | H71: 135 | I71: 15 | J71: 6.4 | K71: 5.88 | L71: 9.9 | M71: 150 | O71: 36 | P71: 5.5 | Q71: 3.5 | R71: 2 | S71: 1.3 | T71: 28 | U71: 5 | V71: 2 | X71: GF | Y71: 150 | Z71: 8 | AA71: 50 | AB71: 60 | AC71: 0.1 | AD71: 0.4 | AE71: 0.1
A72: 1826 | B72: Beginn Blüte | C72: 180 | D72: 285 | E72: 560 | F72: 279 | G72: 140 | H72: 125 | I72: 15 | J72: 2.4 | K72: 5.56 | L72: 9.45 | M72: 150 | O72: 27 | P72: 5 | Q72: 3 | R72: 1.5 | S72: 1.3 | T72: 25 | U72: 5 | V72: 2 | X72: GF | Y72: 150 | Z72: 8 | AA72: 50 | AB72: 60 | AC72: 0.1 | AD72: 0.4 | AE72: 0.1
A73: 1827 | J73: =(G73-H73)/6.25 -> 0 | X73: GF
A74: 1865 | B74: Landsb.Gemenge Beg.Ähren. | C74: 170 | D74: 220 | E74: 460 | F74: 270 | G74: 194 | H74: 140 | I74: 15 | J74: 8.64 | K74: 6.01 | L74: 10.09 | M74: 80 | O74: 30 | P74: 8.5 | Q74: 3 | R74: 1.8 | S74: 0.5 | T74: 27 | U74: 5 | V74: 2 | X74: GF | Y74: 150 | Z74: 8 | AA74: 50 | AB74: 80 | AC74: 0.1 | AD74: 0.4 | AE74: 0.1
A75: 1866 | B75: Landsb.Gemenge Beg.Blüte | C75: 190 | D75: 271 | E75: 535 | F75: 315 | G75: 161 | H75: 127 | I75: 15 | J75: 5.44 | K75: 5.52 | L75: 9.38 | M75: 80 | O75: 28 | P75: 6 | Q75: 3 | R75: 1.6 | S75: 0.5 | T75: 25 | U75: 5 | V75: 2 | X75: GF | Y75: 150 | Z75: 8 | AA75: 40 | AB75: 60 | AC75: 0.1 | AD75: 0.4 | AE75: 0.1
A76: 1867 | J76: 0 | X76: GF
A77: 1125 | B77: Gerste im Ährenschieben | C77: 240 | D77: 260 | E77: 520 | F77: 305 | G77: 143 | H77: 146 | I77: 20 | J77: -0.48 | K77: 6.65 | L77: 11 | M77: 197 | N77: 10 | O77: 47 | P77: 3.3 | Q77: 2.9 | R77: 1.5 | S77: 0.2 | T77: 18 | U77: 9 | V77: 2 | X77: GF | Y77: 200 | Z77: 8 | AA77: 40 | AB77: 50 | AC77: 0.1 | AD77: 0.4 | AE77: 0.02
B78: Grünhafer | J78: 0
A79: 1144 | J79: 0 | X79: GF
A80: 1145 | B80: Rispenschieben | C80: 220 | D80: 260 | E80: 520 | F80: 305 | G80: 142 | H80: 135 | I80: 15 | J80: 1.12 | K80: 6.26 | L80: 10.4 | M80: 150 | O80: 31 | P80: 3.9 | Q80: 4.2 | R80: 1.7 | S80: 1.7 | T80: 28 | U80: 9 | V80: 2 | X80: GF | Y80: 200 | Z80: 8 | AA80: 40 | AB80: 50 | AC80: 0.1 | AD80: 0.4 | AE80: 0.02
A81: 1146 | J81: 0 | X81: GF
A82: 1164 | B82: Grünroggen im Schossen | C82: 220 | D82: 230 | E82: 460 | F82: 270 | G82: 185 | H82: 152 | I82: 15 | J82: 5.28 | K82: 6.94 | L82: 11.33 | M82: 120 | O82: 41 | P82: 7.5 | Q82: 6.6 | R82: 1.6 | S82: 1 | T82: 28 | U82: 9 | V82: 2 | X82: GF
A83: 1165 | B83: Grünroggen im Ährenschieben | C83: 220 | D83: 285 | E83: 555 | F83: 325 | G83: 150 | H83: 138 | I83: 15 | J83: 1.92 | K83: 6.34 | L83: 10.53 | M83: 120 | O83: 35 | P83: 3.4 | Q83: 4.3 | R83: 1.3 | S83: 0.5 | T83: 28 | U83: 9 | V83: 2 | X83: GF | Y83: 200 | Z83: 8 | AA83: 40 | AB83: 50 | AC83: 0.1 | AD83: 0.4 | AE83: 0.02
A84: 1166 | J84: 0 | X84: GF
A85: 1305 | B85: Ackerbohnen | C85: 180 | D85: 306 | E85: 590 | F85: 345 | G85: 174 | H85: 121 | I85: 10 | J85: 8.48 | K85: 5.34 | L85: 9.19 | M85: 40 | O85: 33 | P85: 15.5 | Q85: 3.5 | R85: 3.3 | S85: 2 | T85: 23 | U85: 2 | V85: 2 | X85: GF | Y85: 200 | Z85: 9 | AA85: 50 | AB85: 60 | AC85: 0.1 | AD85: 0.4 | AE85: 0.1
B86: Hülsenfruchtgemenge | J86: 0
A87: 1314 | B87: Knospe | C87: 120 | D87: 217 | E87: 455 | F87: 265 | G87: 204 | H87: 141 | I87: 15 | J87: 10.08 | K87: 6 | L87: 10.03 | M87: 40 | O87: 40 | P87: 7 | Q87: 4 | R87: 1.8 | S87: 0.4 | T87: 30 | U87: 2 | V87: 2 | X87: GF | Y87: 200 | Z87: 9 | AA87: 50 | AB87: 60 | AC87: 0.1 | AD87: 0.4 | AE87: 0.1
A88: 1315 | B88: Beginn der Blüte | C88: 140 | D88: 260 | E88: 510 | F88: 300 | G88: 180 | H88: 133 | I88: 15 | J88: 7.52 | K88: 5.72 | L88: 9.67 | M88: 40 | O88: 33 | P88: 7 | Q88: 4 | R88: 1.8 | S88: 0.4 | T88: 30 | U88: 2 | V88: 3 | X88: GF | Y88: 200 | Z88: 9 | AA88: 50 | AB88: 60 | AC88: 0.1 | AD88: 0.4 | AE88: 0.1
A89: 1316 | B89: Ende der Blüte | C89: 200 | D89: 300 | E89: 610 | F89: 355 | G89: 160 | H89: 124 | I89: 15 | J89: 5.76 | K89: 5.28 | L89: 9.06 | M89: 40 | O89: 30 | P89: 7 | Q89: 4 | R89: 2 | S89: 0.3 | T89: 28 | U89: 2 | V89: 2 | X89: GF | Y89: 200 | Z89: 9 | AA89: 50 | AB89: 60 | AC89: 0.1 | AD89: 0.4 | AE89: 0.1
A90: 1317 | J90: 0 | X90: GF
B91: Erbs-Wick-Gemenge | J91: 0
A92: 1334 | B92: Knospe | C92: 120 | D92: 205 | E92: 425 | F92: 250 | G92: 200 | H92: 146 | I92: 15 | J92: 8.64 | K92: 6.36 | L92: 10.54 | M92: 40 | O92: 40 | P92: 9.5 | Q92: 5 | R92: 2.3 | S92: 0.3 | T92: 30 | U92: 2 | V92: 3 | X92: GF | Y92: 200 | Z92: 9 | AA92: 50 | AB92: 60 | AC92: 0.1 | AD92: 0.4 | AE92: 0.1
A93: 1335 | B93: Beginn der Blüte | C93: 150 | D93: 245 | E93: 490 | F93: 285 | G93: 175 | H93: 138 | I93: 15 | J93: 5.92 | K93: 6.06 | L93: 10.15 | M93: 40 | O93: 33 | P93: 11 | Q93: 4.6 | R93: 2.6 | S93: 0.5 | T93: 30 | U93: 2 | V93: 2 | X93: GF | Y93: 200 | Z93: 9 | AA93: 50 | AB93: 60 | AC93: 0.1 | AD93: 0.4 | AE93: 0.1
A94: 1336 | B94: Ende der Blüte | C94: 180 | D94: 280 | E94: 550 | F94: 320 | G94: 165 | H94: 130 | I94: 15 | J94: 5.6 | K94: 5.64 | L94: 9.57 | M94: 40 | O94: 30 | P94: 8 | Q94: 4 | R94: 1.4 | S94: 0.3 | T94: 30 | U94: 2 | V94: 2 | X94: GF | Y94: 200 | Z94: 9 | AA94: 50 | AB94: 60 | AC94: 0.1 | AD94: 0.4 | AE94: 0.1
A95: 1337 | J95: 0 | X95: GF
A96: 1355 | B96: Hülsenfr.-Sonnenbl.gem. | C96: 180 | D96: 250 | E96: 515 | F96: 300 | G96: 160 | H96: 133 | I96: 15 | J96: 4.32 | K96: 5.89 | L96: 9.93 | M96: 30 | O96: 38 | P96: 12 | Q96: 3 | R96: 2.2 | S96: 0.3 | T96: 28 | U96: 1.6 | V96: 2.3 | X96: GF | Y96: 200 | Z96: 9 | AA96: 35 | AB96: 60 | AC96: 0.1 | AD96: 0.4 | AE96: 0.1
A97: 1455 | B97: Sonnenblumen Beg. Blüte | C97: 180 | D97: 220 | E97: 450 | F97: 260 | G97: 135 | H97: 122 | I97: 15 | J97: 2.08 | K97: 5.45 | L97: 9.23 | M97: 126 | O97: 25 | P97: 14 | Q97: 4.4 | R97: 2.3 | S97: 0 | T97: 30 | U97: 9 | V97: 4 | X97: GF | Y97: 200 | Z97: 8 | AA97: 50 | AB97: 60 | AC97: 0.1 | AD97: 0.4 | AE97: 0.1
A98: 1424 | B98: Raps jung, blattreich | C98: 120 | D98: 130 | E98: 315 | F98: 185 | G98: 210 | H98: 153 | I98: 15 | J98: 9.12 | K98: 6.76 | L98: 11.02 | M98: 110 | O98: 37 | P98: 17 | Q98: 4.5 | R98: 2.6 | S98: 1.3 | T98: 32 | U98: 11 | V98: 7 | X98: 7 | Y98: 200 | Z98: 7 | AA98: 22 | AB98: 95 | AC98: 0.1 | AD98: 0.4 | AE98: 0.1
A99: 1425 | B99: Raps alt, stengelreich | C99: 140 | D99: 160 | E99: 375 | F99: 220 | G99: 190 | H99: 143 | I99: 15 | J99: 7.52 | K99: 6.31 | L99: 10.39 | M99: 80 | O99: 38 | P99: 19 | Q99: 5 | R99: 2.6 | S99: 1.4 | T99: 32 | U99: 11 | V99: 7 | X99: GF | Y99: 200 | Z99: 0.7 | AA99: 22 | AB99: 95 | AC99: 0.1 | AD99: 0.4 | AE99: 0.1
A100: 1435 | B100: Perko | C100: 100 | D100: 127 | E100: 320 | F100: 190 | G100: 216 | H100: 145 | I100: 15 | J100: 11.36 | K100: 6.27 | L100: 10.23 | M100: 110 | O100: 38 | P100: 13 | Q100: 6 | R100: 1.2 | S100: 1.1 | T100: 30 | U100: 9 | V100: 4 | X100: GF | Y100: 200 | Z100: 8 | AA100: 50 | AB100: 60 | AC100: 0.1 | AD100: 0.4 | AE100: 0.1
A101: 1436 | J101: 0 | X101: GF
A102: 1444 | B102: Rübsen jung, blattreich | C102: 110 | D102: 107 | E102: 290 | F102: 170 | G102: 180 | H102: 148 | I102: 15 | J102: 5.12 | K102: 6.84 | L102: 11.02 | M102: 90 | O102: 42 | P102: 16 | Q102: 3.6 | R102: 2.4 | S102: 0.9 | T102: 30 | U102: 9 | V102: 4 | X102: GF | Y102: 200 | Z102: 8 | AA102: 50 | AB102: 60 | AC102: 0.1 | AD102: 0.4 | AE102: 0.1
A103: 1445 | B103: Rübsen alt, stengelreich | C103: 120 | D103: 146 | E103: 350 | F103: 205 | G103: 189 | H103: 146 | I103: 15 | J103: 6.88 | K103: 6.62 | L103: 10.74 | M103: 70 | O103: 37 | P103: 16 | Q103: 4.6 | R103: 2.7 | S103: 1.4 | T103: 30 | U103: 9 | V103: 4 | X103: GF | Y103: 200 | Z103: 8 | AA103: 50 | AB103: 60 | AC103: 0.1 | AD103: 0.4 | AE103: 0.1
A104: 1465 | B104: Senf vor der Blüte | C104: 140 | D104: 210 | E104: 430 | F104: 250 | G104: 215 | H104: 138 | I104: 15 | J104: 12.32 | K104: 5.74 | L104: 9.62 | M104: 110 | O104: 26 | P104: 15.5 | Q104: 4 | R104: 3.4 | S104: 0 | T104: 25 | U104: 9 | V104: 4 | X104: GF | Y104: 200 | Z104: 8 | AA104: 50 | AB104: 60 | AC104: 0.1 | AD104: 0.4 | AE104: 0.1
A105: 1505 | B105: Zuckerrübenblatt | C105: 160 | D105: 109 | E105: 295 | F105: 175 | G105: 160 | H105: 139 | I105: 15 | J105: 3.36 | K105: 6.44 | L105: 10.46 | M105: 220 | O105: 21 | P105: 12.4 | Q105: 2.5 | R105: 4.8 | S105: 9.5 | T105: 35 | U105: 15 | V105: 5.2 | X105: GF | Y105: 250 | Z105: 11.5 | AA105: 72 | AB105: 179 | AC105: 0.4 | AD105: 0.8 | AE105: 0.1
A106: 1555 | B106: Futterrübenblatt | C106: 120 | D106: 114 | E106: 300 | F106: 180 | G106: 138 | H106: 126 | I106: 15 | J106: 1.92 | K106: 5.86 | L106: 9.63 | M106: 100 | O106: 22 | P106: 20 | Q106: 2.5 | R106: 6.1 | S106: 6.1 | T106: 45 | U106: 13.3 | V106: 6.2 | X106: GF | Y106: 250 | Z106: 8.3 | AA106: 50 | AB106: 130 | AC106: 0.3 | AD106: 0.8 | AE106: 0.1
A107: 1885 | B107: Sudangras/Zuckerhirse grün | C107: 200 | D107: 280 | E107: 600 | F107: 350 | G107: 105 | H107: 116 | I107: 15 | J107: -1.76 | K107: 5.36 | L107: 9.13 | M107: 60 | O107: 27 | P107: 5 | Q107: 2 | R107: 4 | S107: 0.8 | T107: 25 | U107: 4 | V107: 1.5 | X107: GF | Y107: 200 | Z107: 6.5 | AA107: 25 | AB107: 85 | AC107: 0.1 | AD107: 0.4 | AE107: 0.01
B108: Grünmais | J108: 0
A109: 1203 | B109: Kolbenbildung | C109: 240 | D109: 265 | E109: 460 | F109: 300 | G109: 85 | H109: 130 | I109: 25 | J109: -7.2 | K109: 6.35 | L109: 10.54 | M109: 210 | N109: 9 | O109: 23 | P109: 2.8 | Q109: 2.6 | R109: 1.5 | S109: 0.2 | T109: 15 | U109: 1 | V109: 1 | X109: GF
A110: 1204 | B110: Milchreife | C110: 260 | D110: 230 | E110: 410 | F110: 275 | G110: 82 | H110: 132 | I110: 25 | J110: -8 | K110: 6.54 | L110: 10.8 | M110: 260 | N110: 28 | O110: 23 | P110: 2.2 | Q110: 2.4 | R110: 1.2 | S110: 0.3 | T110: 12 | U110: 1.2 | V110: 1 | X110: GF | Y110: 150 | Z110: 4.5 | AA110: 30 | AB110: 22 | AC110: 0.1 | AD110: 0.3 | AE110: 0.02
A111: 1205 | B111: Teigreife | C111: 300 | D111: 205 | E111: 413 | F111: 260 | G111: 81 | H111: 135 | I111: 25 | J111: -8.64 | K111: 6.77 | L111: 11.13 | M111: 320 | N111: 46 | O111: 30 | P111: 2.1 | Q111: 2.3 | R111: 1.3 | S111: 0.3 | T111: 12 | U111: 1.2 | V111: 1 | X111: GF | Y111: 100 | Z111: 4 | AA111: 35 | AB111: 30 | AC111: 0.1 | AD111: 0.3 | AE111: 0.02
A112: 1206 | B112: Wachsreife | C112: 340 | D112: 180 | E112: 390 | F112: 235 | G112: 80 | H112: 135 | I112: 25 | J112: =(G112-H112)/6.25 -> -8.8 | K112: 6.83 | L112: 11.21 | M112: 390 | N112: 69 | O112: 28 | P112: 1.9 | Q112: 2.6 | R112: 1.3 | S112: 0.4 | T112: 12 | U112: 1.2 | V112: 1 | X112: GF | Y112: 100 | Z112: 4 | AA112: 22 | AB112: 30 | AC112: 0.1 | AD112: 0.3 | AE112: 0.02
B113: 10.2 Silagen | J113: 0
B114: Grassilage angewelkt 1. Schnitt | J114: 0
A115: 2013 | B115: Beginn Schossen | C115: 350 | D115: 192 | E115: 410 | F115: 225 | G115: 190 | H115: 149 | I115: 15 | J115: 6.56 | K115: 6.65 | L115: 10.95 | M115: 40 | O115: 40 | P115: 7 | Q115: 4 | R115: 2.5 | S115: 0.6 | T115: 30 | U115: 5.5 | V115: 2.2 | X115: GF
A116: 2014 | B116: Beginn Rispenschieben | C116: 350 | D116: 224 | E116: 465 | F116: 251 | G116: 180 | H116: 143 | I116: 15 | J116: 5.92 | K116: 6.36 | L116: 10.57 | M116: 25 | O116: 40 | P116: 6.5 | Q116: 4 | R116: 2.4 | S116: 0.7 | T116: 31 | U116: 7 | V116: 2.2 | W116: 0 | X116: GF | Y116: 200 | Z116: 9 | AA116: 45 | AB116: 80 | AC116: 0.1 | AD116: 0.4 | AE116: 0.03
A117: 2015 | B117: Rispenspreizen | C117: 350 | D117: 256 | E117: 515 | F117: 281 | G117: 165 | H117: 136 | I117: 15 | J117: 4.64 | K117: 6.04 | L117: 10.12 | M117: 15 | O117: 38 | P117: 6.3 | Q117: 3.8 | R117: 2.3 | S117: 0.8 | T117: 30 | U117: 7 | V117: 2.2 | X117: GF | Y117: 200 | Z117: 8.5 | AA117: 50 | AB117: 85 | AC117: 0.1 | AD117: 0.4 | AE117: 0.03
A118: 2016 | B118: Mitte der Blüte | C118: 350 | D118: 295 | E118: 570 | F118: 307 | G118: 145 | H118: 128 | I118: 15 | J118: 2.72 | K118: 5.71 | L118: 9.66 | M118: 10 | O118: 36 | P118: 5.8 | Q118: 3.7 | R118: 2.2 | S118: 0.8 | T118: 29 | U118: 8 | V118: 2.2 | X118: GF | Y118: 200 | Z118: 8 | AA118: 50 | AB118: 90 | AC118: 0.1 | AD118: 0.4 | AE118: 0.03
A119: 2017 | J119: 0 | X119: GF
A120: 2018 | J120: 0 | X120: GF
B121: Grassilage angew. 2. u. f. Schnitte | J121: 0
A122: 2024 | B122: Beginn Schossen | C122: 350 | D122: 190 | E122: 410 | F122: 247 | G122: 188 | H122: 141 | I122: 15 | J122: =(G122-H122)/6.25 -> 7.52 | K122: 6.2 | L122: 10.29 | M122: 20 | O122: 42 | P122: 9 | Q122: 3.8 | R122: 3.2 | S122: 1 | T122: 27 | U122: 6 | V122: 2.2 | X122: GF | Y122: 200 | Z122: 9 | AA122: 50 | AB122: 100 | AC122: 0.1 | AD122: 0.4 | AE122: 0.04
A123: 2025 | B123: Beginn Rispenschieben | C123: 350 | D123: 225 | E123: 460 | F123: 272 | G123: 174 | H123: 136 | I123: 15 | J123: 6.08 | K123: 5.96 | L123: 10.01 | M123: 20 | O123: 40 | P123: 8.5 | Q123: 3.7 | R123: 3.1 | S123: 1 | T123: 25 | U123: 7 | V123: 2.4 | X123: GF | Y123: 200 | Z123: 9 | AA123: 50 | AB123: 100 | AC123: 0.1 | AD123: 0.4 | AE123: 0.04
A124: 2026 | B124: Rispenspreizen | C124: 350 | D124: 258 | E124: 510 | F124: 296 | G124: 160 | H124: 129 | I124: 15 | J124: 4.96 | K124: 5.66 | L124: 9.6 | M124: 15 | O124: 37 | P124: 7.5 | Q124: 3.6 | R124: 2.7 | S124: 1 | T124: 25 | U124: 7 | V124: 2.3 | X124: GF | Y124: 200 | Z124: 8.5 | AA124: 50 | AB124: 100 | AC124: 0.1 | AD124: 0.4 | AE124: 0.04
A125: 2027 | J125: 0 | X125: GF
B126: Kleegrassilage 1. Schnitt | J126: 0
A127: 2634 | B127: Beginn Knospe | C127: 350 | D127: 225 | E127: 455 | F127: 265 | G127: 195 | H127: 144 | I127: 15 | J127: 8.16 | K127: 6.3 | L127: 10.48 | M127: 25 | O127: 38 | P127: 8 | Q127: 3.8 | R127: 2.4 | S127: 0.5 | T127: 33 | U127: 6 | V127: 2 | X127: GF | Y127: 200 | Z127: 8 | AA127: 45 | AB127: 75 | AC127: 0.1 | AD127: 0.4 | AE127: 0.03
A128: 2635 | B128: Knospenöffnen | C128: 350 | D128: 260 | E128: 520 | F128: 305 | G128: 175 | H128: 135 | I128: 15 | J128: 6.4 | K128: 5.91 | L128: 9.94 | M128: 20 | O128: 38 | P128: 7.9 | Q128: 3.7 | R128: 2.3 | S128: 0.6 | T128: 33 | U128: 6 | V128: 2 | X128: GF | Y128: 200 | Z128: 8 | AA128: 40 | AB128: 80 | AC128: 0.1 | AD128: 0.4 | AE128: 0
A129: 2636 | B129: Mitte der Blüte | C129: 350 | D129: 300 | E129: 585 | F129: 340 | G129: 154 | H129: 132 | I129: 20 | J129: =(G129-H129)/6.25 -> 3.52 | K129: 5.59 | L129: 9.51 | M129: 10 | O129: 40 | P129: 8 | Q129: 3.7 | R129: 2.2 | S129: 0.6 | T129: 30 | U129: 8 | V129: 2.5 | X129: GF | Y129: 200 | Z129: 8 | AA129: 45 | AB129: 90 | AC129: 0.1 | AD129: 0.4 | AE129: 0.03
A130: 2637 | J130: 0 | X130: GF
B131: Kleegrassilage 2.u.folg. Schnitt | J131: 0
A132: 2644 | B132: vor der Knospe | C132: 350 | D132: 210 | E132: 430 | F132: 250 | G132: 190 | H132: 138 | I132: 15 | J132: 8.32 | K132: 5.98 | L132: 10 | M132: 20 | O132: 40 | P132: 7 | Q132: 4.3 | R132: 2.8 | S132: 0.8 | T132: 30 | U132: 6 | V132: 2 | X132: GF | Y132: 200 | Z132: 10 | AA132: 40 | AB132: 80 | AC132: 0.1 | AD132: 0.4 | AE132: 0.03
A133: 2645 | B133: in der Knospe | C133: 350 | D133: 245 | E133: 490 | F133: 285 | G133: 180 | H133: 133 | I133: 15 | J133: 7.52 | K133: 5.68 | L133: 9.61 | M133: 20 | O133: 36 | P133: 8 | Q133: 3.7 | R133: 2.7 | S133: 0.8 | T133: 28 | U133: 6 | V133: 2 | X133: GF | Y133: 200 | Z133: 10 | AA133: 40 | AB133: 80 | AC133: 0.1 | AD133: 0.4 | AE133: 0.03
A134: 2646 | B134: Beginn der Blüte | C134: 350 | D134: 282 | E134: 550 | F134: 320 | G134: 160 | H134: 124 | I134: 15 | J134: 5.76 | K134: 5.28 | L134: 9.07 | M134: 15 | O134: 38 | P134: 8 | Q134: 3.5 | R134: 2.2 | S134: 0.6 | T134: 28 | U134: 6 | V134: 2 | X134: GF | Y134: 200 | Z134: 8 | AA134: 40 | AB134: 75 | AC134: 0.1 | AD134: 0.4 | AE134: 0.03
A135: 2647 | J135: 0 | X135: GF
B136: Luzernesilage | J136: 0
A137: 2714 | B137: 1. Schnitt in der Knospe | C137: 350 | D137: 240 | E137: 485 | F137: 280 | G137: 190 | H137: 130 | I137: 15 | J137: =(G137-H137)/6.25 -> 9.6 | K137: 5.45 | L137: 9.27 | M137: 20 | O137: 38 | P137: 12 | Q137: 3.7 | R137: 2.6 | S137: 0.5 | T137: 32 | U137: 3 | V137: 2 | X137: GF | Y137: 150 | Z137: 8 | AA137: 40 | AB137: 80 | AC137: 0.2 | AD137: 0.3 | AE137: 0.03
A138: 2715 | B138: 1. Schnitt Beginn Blüte | C138: 350 | D138: 280 | E138: 550 | F138: 320 | G138: 175 | H138: 130 | I138: 20 | J138: 7.2 | K138: 5.15 | L138: 8.86 | M138: 15 | O138: 38 | P138: 13 | Q138: 3.5 | R138: 2.2 | S138: 0.5 | T138: 29 | U138: 3 | V138: 2 | X138: GF | Y138: 150 | Z138: 8 | AA138: 40 | AB138: 70 | AC138: 0.2 | AD138: 0.3 | AE138: 0.03
A139: 2716 | B139: 1. Schnitt Ende der Blüte | C139: 350 | D139: 325 | E139: 620 | F139: 360 | G139: 165 | H139: 128 | I139: 25 | J139: 5.92 | K139: 4.81 | L139: 8.39 | M139: 15 | O139: 38 | P139: 12 | Q139: 3.1 | R139: 1.9 | S139: 0.5 | T139: 28 | U139: 3 | V139: 2 | X139: GF | Y139: 150 | Z139: 8 | AA139: 40 | AB139: 70 | AC139: 0.2 | AD139: 0.3 | AE139: 0.03
A140: 2725 | B140: ab 2. Schnitt | C140: 250 | D140: 300 | E140: 570 | F140: 330 | G140: 178 | H140: 130 | I140: 20 | J140: 7.68 | K140: 5.1 | L140: 8.81 | M140: 15 | O140: 36 | P140: 12 | Q140: 3 | R140: 2.3 | S140: 0.3 | T140: 28 | U140: 3 | V140: 2 | X140: GF | Y140: 150 | Z140: 8 | AA140: 40 | AB140: 80 | AC140: 0.2 | AD140: 0.3 | AE140: 0.03
B141: Luzernegrassilage | J141: 0
A142: 2734 | B142: 1. Schnitt Beginn Knospe | C142: 350 | D142: 220 | E142: 445 | F142: 260 | G142: 192 | H142: 138 | I142: 15 | J142: 8.64 | K142: 5.95 | L142: 9.95 | M142: 20 | O142: 27 | P142: 11 | Q142: 3.5 | R142: 2.8 | S142: 0.5 | T142: 30 | U142: 4 | V142: 2 | X142: GF | Y142: 200 | Z142: 8 | AA142: 50 | AB142: 80 | AC142: 0.1 | AD142: 0.4 | AE142: 0.03
A143: 2735 | B143: 1. Schnitt Knospenöffnen | C143: 350 | D143: 265 | E143: 515 | F143: 300 | G143: 175 | H143: 129 | I143: 15 | J143: 7.36 | K143: 5.54 | L143: 9.39 | M143: 15 | O143: 29 | P143: 11 | Q143: 3.5 | R143: 2.8 | S143: 0.5 | T143: 30 | U143: 4 | V143: 2 | X143: GF | Y143: 200 | Z143: 8 | AA143: 50 | AB143: 80 | AC143: 0.1 | AD143: 0.4 | AE143: 0.03
A144: 2736 | B144: 1. Schnitt in der Blüte | C144: 350 | D144: 300 | E144: 595 | F144: 345 | G144: 165 | H144: 124 | I144: 15 | J144: 6.56 | K144: 5.3 | L144: 9.06 | M144: 10 | O144: 31 | P144: 10 | Q144: 3.4 | R144: 2.3 | S144: 0.5 | T144: 30 | U144: 4 | V144: 2 | X144: GF | Y144: 200 | Z144: 8 | AA144: 40 | AB144: 70 | AC144: 0.1 | AD144: 0.4 | AE144: 0.03
A145: 2745 | B145: ab 2. Schnitt | C145: 350 | D145: 290 | E145: 525 | F145: 305 | G145: 170 | H145: 125 | I145: 15 | J145: 7.2 | K145: 5.28 | L145: 9.05 | M145: 15 | O145: 35 | P145: 10 | Q145: 3.4 | R145: 2.3 | S145: 0.5 | T145: 27 | U145: 4 | V145: 2 | X145: GF | Y145: 200 | Z145: 7 | AA145: 30 | AB145: 70 | AC145: 0.1 | AD145: 0.4 | AE145: 0.03
B146: Weidelgrassilage | J146: 0
A147: 2814 | B147: im Schossen | C147: 350 | D147: 200 | E147: 430 | F147: 219 | G147: 175 | H147: 143 | I147: 15 | J147: 5.12 | K147: 6.48 | L147: 10.6 | M147: 40 | O147: 40 | P147: 6 | Q147: 4.5 | R147: 2.1 | S147: 0.6 | T147: 35 | U147: 6 | V147: 2 | X147: GF | Y147: 150 | Z147: 9 | AA147: 45 | AB147: 80 | AC147: 0.1 | AD147: 0.4 | AE147: 0.03
A148: 2815 | B148: im Ährenschieben | C148: 350 | D148: 250 | E148: 505 | F148: 264 | G148: 162 | H148: 136 | I148: 15 | J148: 4.16 | K148: 6.13 | L148: 10.21 | M148: 35 | O148: 50 | P148: 6 | Q148: 4.5 | R148: 2.1 | S148: 0.6 | T148: 35 | U148: 6 | V148: 2 | X148: GF | Y148: 150 | Z148: 9 | AA148: 45 | AB148: 80 | AC148: 0.1 | AD148: 0.4 | AE148: 0.03
A149: 2816 | B149: in der Blüte | C149: 350 | D149: 300 | E149: 585 | F149: 320 | G149: 135 | H149: 125 | I149: 15 | J149: 1.6 | K149: 5.62 | L149: 9.54 | M149: 30 | O149: 47 | P149: 5 | Q149: 4 | R149: 1.6 | S149: 0.4 | T149: 34 | U149: 6 | V149: 2 | X149: GF | Y149: 150 | Z149: 9 | AA149: 45 | AB149: 80 | AC149: 0.1 | AD149: 0.4 | AE149: 0.03
A150: 2817 | J150: 0 | X150: GF
A151: 2865 | B151: Landsb. Gem. Ährensch. | C151: 350 | D151: 260 | E151: 520 | F151: 305 | G151: 165 | H151: 130 | I151: 15 | J151: 5.6 | K151: 5.7 | L151: 9.6 | M151: 30 | O151: 31 | P151: 8.5 | Q151: 3 | R151: 1.8 | S151: 0.5 | T151: 30 | U151: 5 | V151: 2 | X151: GF | Y151: 150 | Z151: 8 | AA151: 50 | AB151: 80 | AC151: 0.1 | AD151: 0.4 | AE151: 0.1
A152: 2866 | B152: Landsb. Gemenge Blüte | C152: 350 | D152: 305 | E152: 585 | F152: 340 | G152: 135 | H152: 126 | I152: 15 | J152: 1.44 | K152: 5.68 | L152: 9.65 | M152: 25 | O152: 45 | P152: 6 | Q152: 3 | R152: 1.6 | S152: 0.5 | T152: 28 | U152: 5 | V152: 2 | X152: GF | Y152: 150 | Z152: 8 | AA152: 40 | AB152: 60 | AC152: 0.1 | AD152: 0.4 | AE152: 0.1
A153: 2424 | B153: Rapssilage jung, blattreich | C153: 150 | D153: 142 | E153: 340 | F153: 200 | G153: 195 | H153: 148 | I153: 15 | J153: =(G153-H153)/6.25 -> 7.52 | K153: 6.69 | L153: 10.83 | M153: 5 | O153: 52 | P153: 17 | Q153: 4.5 | R153: 2.6 | S153: 1.3 | T153: 32 | U153: 11 | V153: 7 | X153: GF | Y153: 200 | Z153: 7 | AA153: 22 | AB153: 95 | AC153: 0.1 | AD153: 0.4 | AE153: 0.1
A154: 2425 | B154: Rapssilage alt stängelreich | C154: 160 | D154: 180 | E154: 410 | F154: 240 | G154: 185 | H154: 147 | I154: 15 | J154: 6.08 | K154: 6.69 | L154: 10.87 | M154: 5 | O154: 52 | P154: 19 | Q154: 5 | R154: 2.6 | S154: 1.4 | T154: 32 | U154: 11 | V154: 7 | X154: GF | Y154: 200 | Z154: 7 | AA154: 22 | AB154: 95 | AC154: 0.1 | AD154: 0.4 | AE154: 0.1
A155: 2445 | B155: Rübsensilage | C155: 150 | D155: 140 | E155: 335 | F155: 200 | G155: 130 | H155: 143 | I155: 15 | J155: -2.08 | K155: 7.01 | L155: 11.26 | M155: 5 | O155: 41 | P155: 16 | Q155: 4.6 | R155: 2.7 | S155: 1.4 | T155: 30 | U155: 9 | V155: 4 | X155: GF | Y155: 200 | Z155: 8 | AA155: 50 | AB155: 60 | AC155: 0.1 | AD155: 0.4 | AE155: 0.1
A156: 2446 | J156: 0 | X156: GF
B157: Grünhafersilage | J157: 0
A158: 2144 | B158: Rispenschieben | C158: 350 | D158: 260 | E158: 525 | F158: 305 | G158: 112 | H158: 132 | I158: 15 | J158: -3.2 | K158: 6.34 | L158: 10.52 | M158: 2 | O158: 38 | P158: 5.7 | Q158: 4 | R158: 2 | S158: 1 | T158: 22 | U158: 6 | V158: 2 | X158: GF | Y158: 200 | Z158: 8 | AA158: 45 | AB158: 90 | AC158: 0.1 | AD158: 0.4 | AE158: 0.06
A159: 2145 | B159: Mitte der Blüte | C159: 350 | D159: 295 | E159: 575 | F159: 335 | G159: 105 | H159: 124 | I159: 15 | J159: -3.04 | K159: 5.84 | L159: 9.84 | M159: 2 | O159: 38 | P159: 4 | Q159: 3 | R159: 1.6 | S159: 1 | T159: 20 | U159: 6 | V159: 2 | X159: GF | Y159: 200 | Z159: 8 | AA159: 45 | AB159: 90 | AC159: 0.1 | AD159: 0.4 | AE159: 0.06
A160: 2146 | B160: abgeblüht | C160: 350 | D160: 340 | E160: 650 | F160: 380 | G160: 100 | H160: 117 | I160: 20 | J160: -2.72 | K160: 5.3 | L160: 9.09 | M160: 2 | O160: 36 | P160: 4 | Q160: 3 | R160: 1.6 | S160: 1 | T160: 20 | U160: 6 | V160: 2 | X160: GF | Y160: 200 | Z160: 8 | AA160: 45 | AB160: 90 | AC160: 0.1 | AD160: 0.4 | AE160: 0.06
B161: Grünroggensilage | J161: 0
A162: 2164 | B162: Ährenschieben | C162: 250 | D162: 260 | E162: 530 | F162: 310 | G162: 150 | H162: 139 | I162: 15 | J162: 1.76 | K162: 6.42 | L162: 10.62 | M162: 2 | O162: 45 | P162: 4.5 | Q162: 4.2 | R162: 1.6 | S162: 0.4 | T162: 30 | U162: 6 | V162: 2 | X162: GF | Y162: 200 | Z162: 8 | AA162: 50 | AB162: 60 | AC162: 0.1 | AD162: 0.4 | AE162: 0.03
A163: 2165 | B163: Mitte der Blüte | C163: 250 | D163: 298 | E163: 575 | F163: 335 | G163: 140 | H163: 133 | I163: 15 | J163: 1.12 | K163: 6.11 | L163: 10.21 | M163: 2 | O163: 37 | P163: 4.5 | Q163: 4.2 | R163: 1.6 | S163: 0.4 | T163: 30 | U163: 6 | V163: 2 | X163: GF | Y163: 200 | Z163: 8 | AA163: 50 | AB163: 60 | AC163: 0.1 | AD163: 0.4 | AE163: 0.03
A164: 2166 | B164: abgeblüht | C164: 250 | D164: 340 | E164: 645 | F164: 375 | G164: 120 | H164: 125 | I164: 15 | J164: -0.8 | K164: 5.8 | L164: 9.79 | M164: 2 | O164: 38 | P164: 4.5 | Q164: 4.2 | R164: 1.6 | S164: 0.4 | T164: 30 | U164: 6 | V164: 2 | X164: GF | Y164: 200 | Z164: 8 | AA164: 50 | AB164: 60 | AC164: 0.1 | AD164: 0.4 | AE164: 0.03
A165: 2167 | J165: 0 | X165: GF
B166: GPS Gerste/Weizen | J166: 0
A167: 2134 | B167: körnerarm | C167: 380 | D167: 283 | E167: 555 | F167: 325 | G167: 100 | H167: 113 | I167: 15 | J167: -2.08 | K167: 5.16 | L167: 8.91 | M167: 170 | N167: 15 | O167: 23 | P167: 4 | Q167: 2.8 | R167: 1.2 | S167: 0.4 | T167: 15 | U167: 2 | V167: 1.3 | X167: GF | Y167: 100 | Z167: 5 | AA167: 45 | AB167: 35 | AC167: 0.1 | AD167: 0.4 | AE167: 0.01
A168: 2135 | B168: mittlerer Körneranteil | C168: 400 | D168: 245 | E168: 490 | F168: 285 | G168: 98 | H168: 117 | I168: 15 | J168: -3.04 | K168: 5.46 | L168: 9.32 | M168: 220 | N168: 20 | O168: 23 | P168: 2 | Q168: 2.5 | R168: 1 | S168: 0.3 | T168: 12 | U168: 1.6 | V168: 1.3 | X168: GF | Y168: 100 | Z168: 6 | AA168: 50 | AB168: 35 | AC168: 0.1 | AD168: 0.4 | AE168: 0.01
A169: 2136 | B169: körnerreich | C169: 420 | D169: 215 | E169: 430 | F169: 255 | G169: 100 | H169: 121 | I169: 15 | J169: -3.36 | K169: 5.71 | L169: 9.66 | M169: 270 | N169: 25 | O169: 20 | P169: 2.6 | Q169: 2.8 | R169: 1.2 | S169: 0.4 | T169: 13 | U169: 3 | V169: 1.3 | X169: GF | Y169: 100 | Z169: 5 | AA169: 40 | AB169: 40 | AC169: 0.1 | AD169: 0.4 | AE169: 0.01
A170: 2305 | B170: GPS Ackerbohnen | C170: 350 | D170: 280 | E170: 535 | F170: 310 | G170: 180 | H170: 133 | I170: 15 | J170: =(G170-H170)/6.25 -> 7.52 | K170: 5.69 | L170: 9.67 | M170: 150 | N170: 24 | O170: 20 | P170: 10 | Q170: 3.6 | R170: 3.3 | S170: 2 | T170: 20 | U170: 8 | V170: 2 | X170: GF | Y170: 200 | Z170: 11 | AA170: 70 | AB170: 40 | AC170: 0.1 | AD170: 0.4 | AE170: 0.02
A171: 2885 | B171: Zuckerhirse/Sudangras siliert | C171: 350 | D171: 310 | E171: 570 | F171: 330 | G171: 100 | H171: 113 | I171: 15 | J171: -2.08 | K171: 5.16 | L171: 8.91 | M171: 10 | O171: 32 | P171: 5 | Q171: 2 | R171: 4 | S171: 0.8 | T171: 25 | U171: 4 | V171: 1.3 | X171: GF | Y171: 200 | Z171: 6.5 | AA171: 25 | AB171: 85 | AC171: 0.1 | AD171: 0.4 | AE171: 0.01
B172: Maissilage | J172: 0
A173: 2203 | B173: Kolbenbildung | C173: 190 | D173: 292 | E173: 590 | F173: 315 | G173: 100 | H173: 132 | I173: 25 | J173: -5.12 | K173: 6.22 | L173: 10.42 | M173: 62 | N173: 5 | O173: 34 | P173: 2.5 | Q173: 3 | R173: 1.7 | S173: 0.2 | T173: 13 | U173: 1 | V173: 1 | X173: GF | Y173: 150 | Z173: 5 | AA173: 40 | AB173: 30 | AC173: 0.1 | AD173: 0.3 | AE173: 0.01
A174: 2204 | B174: Milchreife | C174: 240 | D174: 235 | E174: 540 | F174: 280 | G174: 90 | H174: 131 | I174: 25 | J174: -6.56 | K174: 6.34 | L174: 10.56 | M174: 190 | N174: 18 | O174: 30 | P174: 2.3 | Q174: 2.2 | R174: 1.3 | S174: 0.3 | T174: 12 | U174: 1 | V174: 1 | X174: GF | Y174: 100 | Z174: 5 | AA174: 40 | AB174: 30 | AC174: 0.1 | AD174: 0.3 | AE174: 0.01
A175: 2205 | B175: Teigreife, mittl. Körneranteil | C175: 300 | D175: 205 | E175: 465 | F175: 260 | G175: 84 | H175: 133 | I175: 25 | J175: -7.84 | K175: 6.55 | L175: 10.85 | M175: 280 | N175: 41 | O175: 28 | P175: 2.1 | Q175: 2.2 | R175: 1.3 | S175: 0.3 | T175: 11 | U175: 1 | V175: 1 | X175: GF | Y175: 100 | Z175: 5 | AA175: 40 | AB175: 30 | AC175: 0.1 | AD175: 0.3 | AE175: 0.01
A176: 2206 | B176: Wachsreife, mittl. Körnerant. | C176: 350 | D176: 195 | E176: 485 | F176: 250 | G176: 82 | H176: 134 | I176: 25 | J176: -8.32 | K176: 6.69 | L176: 11.04 | M176: 305 | N176: 44 | O176: 33 | P176: 2 | Q176: 2.2 | R176: 1.3 | S176: 0.3 | T176: 11 | U176: 1 | V176: 1 | W176: 0 | X176: GF | Y176: 100 | Z176: 5 | AA176: 40 | AB176: 30 | AC176: 0.1 | AD176: 0.3 | AE176: 0.01
A177: 2215 | B177: Teigreife, körnerarm | C177: 280 | D177: 230 | E177: 520 | F177: 280 | G177: 84 | H177: 130 | I177: 25 | J177: -7.36 | K177: 6.36 | L177: 10.58 | M177: 230 | N177: 33 | O177: 28 | P177: 2.3 | Q177: 2.2 | R177: 1.4 | S177: 0.3 | T177: 12 | U177: 1 | V177: 1 | X177: GF | Y177: 100 | Z177: 5 | AA177: 40 | AB177: 30 | AC177: 0.1 | AD177: 0.3 | AE177: 0.01
A178: 2216 | B178: Wachsreife, körnerarm | C178: 340 | D178: 220 | E178: 510 | F178: 270 | G178: 84 | H178: 132 | I178: 25 | J178: -7.68 | K178: 6.5 | L178: 10.79 | M178: 250 | N178: 36 | O178: 31 | P178: 2.3 | Q178: 2.2 | R178: 1.4 | S178: 0.3 | T178: 12 | U178: 1 | V178: 1 | X178: GF | Y178: 100 | Z178: 5 | AA178: 40 | AB178: 30 | AC178: 0.1 | AD178: 0.3 | AE178: 0.01
A179: 2225 | B179: Teigreife, körnerreich | C179: 330 | D179: 185 | E179: 458 | F179: 245 | G179: 82 | H179: 136 | I179: 25 | J179: -8.64 | K179: 6.81 | L179: 11.2 | M179: 325 | N179: 47 | O179: 35 | P179: 2 | Q179: 2.2 | R179: 1.3 | S179: 0.3 | T179: 10 | U179: 1 | V179: 1 | X179: GF | Y179: 100 | Z179: 5 | AA179: 40 | AB179: 25 | AC179: 0.1 | AD179: 0.3 | AE179: 0.01
A180: 2226 | B180: Wachsreife, körnerreich | C180: 360 | D180: 172 | E180: 440 | F180: 235 | G180: 82 | H180: 137 | I180: 25 | J180: -8.8 | K180: 6.94 | L180: 11.38 | M180: 345 | N180: 50 | O180: 36 | P180: 1.9 | Q180: 2.2 | R180: 1.2 | S180: 0.3 | T180: 9 | U180: 1 | V180: 1 | X180: GF | Y180: 100 | Z180: 4.5 | AA180: 40 | AB180: 25 | AC180: 0.1 | AD180: 0.3 | AE180: 0.01
A181: 2227 | J181: 0 | X181: GF
A182: 2245 | B182: Maissilage Pflückhäcksel 2+4 | C182: 350 | D182: 170 | E182: 388 | F182: 225 | G182: 84 | H182: 140 | I182: 25 | J182: =(G182-H182)/6.25 -> -8.96 | K182: 7.07 | L182: 11.54 | M182: 345 | N182: 50 | O182: 34 | P182: 1.8 | Q182: 2.3 | R182: 1.2 | S182: 0.3 | T182: 8 | U182: 1 | V182: 1 | X182: SF | Y182: 100 | Z182: 4.5 | AA182: 40 | AB182: 20 | AC182: 0.1 | AD182: 0.3 | AE182: 0.01
A183: 2246 | B183: Maissilage Pflückhäcksel 2+2 | C183: 400 | D183: 155 | E183: 353 | F183: 215 | G183: 83 | H183: 142 | I183: 25 | J183: =(G183-H183)/6.25 -> -9.44 | K183: 7.25 | L183: 11.79 | M183: 395 | N183: 57 | O183: 35 | P183: 1.6 | Q183: 2.4 | R183: 1.2 | S183: 0.3 | T183: 8 | U183: 1 | V183: 1 | X183: SF | Y183: 100 | Z183: 4.5 | AA183: 40 | AB183: 20 | AC183: 0.1 | AD183: 0.3 | AE183: 0.01
A184: 2235 | B184: Lieschkolbensilage LKS | C184: 480 | D184: 140 | E184: 321 | F184: 215 | G184: 95 | H184: 149 | I184: 35 | J184: =(G184-H184)/6.25 -> -8.64 | K184: 7.44 | L184: 12.05 | M184: 455 | N184: 68 | O184: 36 | P184: 1 | Q184: 2.5 | R184: 1.2 | S184: 0.3 | T184: 6 | U184: 1 | V184: 1 | X184: SF | Y184: 100 | Z184: 4 | AA184: 40 | AB184: 15 | AC184: 0.1 | AD184: 0.3 | AE184: 0.01
A185: 5206 | B185: Maiskornsilage Schrot | C185: 650 | D185: 25 | E185: 170 | F185: 100 | G185: 100 | H185: 166 | I185: 40 | J185: =(G185-H185)/6.25 -> -10.56 | K185: 8.65 | L185: 13.6 | M185: 655 | N185: 162 | O185: 42 | P185: 0.4 | Q185: 3.5 | R185: 1.3 | S185: 0.2 | T185: 4 | U185: 1 | V185: 1.5 | X185: SF | Y185: 32 | Z185: 4 | AA185: 30 | AB185: 9 | AC185: 0.1 | AD185: 0.2 | AE185: 0
A186: 5225 | B186: CCM Kornspind.gem. | C186: 600 | D186: 53 | E186: 210 | F186: 125 | G186: 100 | H186: 158 | I186: 35 | J186: -9.28 | K186: 7.99 | L186: 12.78 | M186: 631 | N186: 156 | O186: 43 | P186: 0.4 | Q186: 3.5 | R186: 1.3 | S186: 0.2 | T186: 4 | U186: 1 | V186: 1.5 | X186: SF | Y186: 50 | Z186: 4 | AA186: 30 | AB186: 9 | AC186: 0.1 | AD186: 0.2 | AE186: 0
A187: 2505 | B187: Zuckerrübenblattsilage | C187: 180 | D187: 145 | E187: 350 | F187: 205 | G187: 150 | H187: 130 | I187: 15 | J187: 3.2 | K187: 5.98 | L187: 9.83 | M187: 16 | O187: 32 | P187: 10 | Q187: 2.4 | R187: 4 | S187: 7 | T187: 27 | U187: 15 | V187: 5 | X187: GF | Y187: 250 | Z187: 15 | AA187: 59 | AB187: 157 | AC187: 0.4 | AD187: 0.8 | AE187: 0.1
A188: 2555 | B188: Futterrübenblattsilage | C188: 180 | D188: 145 | E188: 335 | F188: 195 | G188: 145 | H188: 123 | I188: 15 | J188: 3.52 | K188: 5.57 | L188: 9.21 | M188: 20 | O188: 29 | P188: 20 | Q188: 2.4 | R188: 5 | S188: 3.5 | T188: 33 | U188: 13 | V188: 6 | X188: GF | Y188: 250 | Z188: 9 | AA188: 50 | AB188: 130 | AC188: 0.3 | AD188: 0.8 | AE188: 0.1
B189: 10.3 Heu, Cobs, Grünmehl, Stroh | J189: 0
B190: Wiesenheu 1.Schnitt | J190: 0
A191: 3014 | B191: Rispenschieben | C191: 860 | D191: 245 | E191: 500 | F191: 261 | G191: 132 | H191: 135 | I191: 20 | J191: -0.48 | K191: 6.08 | L191: 10.16 | M191: 120 | O191: 30 | P191: 5.2 | Q191: 3.4 | R191: 2 | S191: 0.4 | T191: 25 | U191: 6 | V191: 2 | X191: GF
A192: 3015 | B192: Rispenspreizen | C192: 860 | D192: 282 | E192: 555 | F192: 296 | G192: 115 | H192: 125 | I192: 20 | J192: -1.6 | K192: 5.65 | L192: 9.59 | M192: 110 | O192: 30 | P192: 4.4 | Q192: 2.9 | R192: 1.8 | S192: 0.4 | T192: 22 | U192: 6 | V192: 2 | X192: GF | Y192: 200 | Z192: 6 | AA192: 40 | AB192: 80 | AC192: 0.1 | AD192: 0.4 | AE192: 0.02
A193: 3016 | B193: Mitte der Blüte | C193: 860 | D193: 315 | E193: 605 | F193: 329 | G193: 98 | H193: 118 | I193: 25 | J193: -3.2 | K193: 5.27 | L193: 9.05 | M193: 105 | O193: 23 | P193: 4 | Q193: 2.5 | R193: 1.6 | S193: 0.4 | T193: 20 | U193: 6 | V193: 2 | W193: 0 | X193: GF | Y193: 200 | Z193: 6 | AA193: 40 | AB193: 80 | AC193: 0.1 | AD193: 0.4 | AE193: 0.02
A194: 3017 | B194: abgeblüht | C194: 860 | D194: 350 | E194: 655 | F194: 361 | G194: 82 | H194: 107 | I194: 25 | J194: -4 | K194: 4.84 | L194: 8.43 | M194: 100 | O194: 20 | P194: 3.8 | Q194: 2 | R194: 1.5 | S194: 0.4 | T194: 16 | U194: 6 | V194: 2 | X194: GF | Y194: 200 | Z194: 5 | AA194: 40 | AB194: 80 | AC194: 0.1 | AD194: 0.4 | AE194: 0.02
A195: 3018 | J195: 0 | X195: GF
B196: Wiesenheu 2. u. folg. Schnitte | J196: 0
A197: 3024 | B197: Schossen | C197: 860 | D197: 225 | E197: 470 | F197: 245 | G197: 155 | H197: 137 | I197: 20 | J197: 2.88 | K197: 5.92 | L197: 9.94 | M197: 120 | O197: 30 | P197: 7.2 | Q197: 3.5 | R197: 2.6 | S197: 0.4 | T197: 26 | U197: 6 | V197: 2 | X197: GF | Y197: 200 | Z197: 5 | AA197: 40 | AB197: 80 | AC197: 0.1 | AD197: 0.4 | AE197: 0.02
A198: 3025 | B198: Rispenspreizen | C198: 860 | D198: 260 | E198: 520 | F198: 276 | G198: 140 | H198: 129 | I198: 20 | J198: 1.76 | K198: 5.61 | L198: 9.53 | M198: 110 | O198: 28 | P198: 5.8 | Q198: 3.4 | R198: 2.1 | S198: 0.4 | T198: 24 | U198: 6 | V198: 2 | X198: GF | Y198: 200 | Z198: 5 | AA198: 40 | AB198: 80 | AC198: 0.1 | AD198: 0.4 | AE198: 0.02
A199: 3026 | B199: Mitte der Blüte | C199: 860 | D199: 295 | E199: 575 | F199: 301 | G199: 120 | H199: 121 | I199: 20 | J199: -0.16 | K199: 5.31 | L199: 9.1 | M199: 100 | O199: 29 | P199: 4.5 | Q199: 2.9 | R199: 1.8 | S199: 0.6 | T199: 22 | U199: 6 | V199: 2 | X199: GF | Y199: 200 | Z199: 6 | AA199: 35 | AB199: 80 | AC199: 0.1 | AD199: 0.4 | AE199: 0.01
B200: Heu U-Dachtr. 1. Schnitt | J200: 0
... 153 more rows

Sheet Zielwerte
A3: Die bereits eingetragenen Werte können überschrieben werden. | B3: Kenn | C3: TM | E3: XF | G3: aNDFom | I3: S-Index | K3: CP | M3: nxP | O3: RNB | Q3: NEL | S3: ST+ZU | U3: bST | W3: CL | Y3: Ca | AA3: P | AC3: Mg | AE3: Na | AG3: K | AI3: DCAB | AK3: Fe | AM3: Cu | AO3: Zn | AQ3: Mg | AS3: Co | AU3: J | AW3: Se
B4: Nr. | C4: kg | E4: %/kg TM | G4: %/TM | K4: %/kg TM | M4: %/kg TM | O4: g | Q4: MJ/kg TM | S4: %/kg TM | U4: %/kg TM | W4: %/kg TM | Y4: g/kg TM | AA4: g/kg TM | AC4: g/kg TM | AE4: g/kg TM | AG4: g/kg TM | AI4: mEq/kg TM | AK4: mg/kg TM | AM4: mg/kg TM | AO4: mg/kg TM | AQ4: mg/kg TM | AS4: mg/kg TM | AU4: mg/kg TM | AW4: mg/kg TM
C5: min | D5: max | E5: min | F5: max | G5: min | H5: max | I5: min | J5: max | K5: min | L5: max | M5: min | N5: max | O5: min | P5: max | Q5: min | R5: max | S5: min | T5: max | U5: min | V5: max | W5: min | X5: max | Y5: min | Z5: max | AA5: min | AB5: max | AC5: min | AD5: max | AE5: min | AF5: max | AG5: min | AH5: max | AI5: min | AJ5: max | AK5: min | AL5: max | AM5: min | AN5: max | AO5: min | AP5: max | AQ5: min | AR5: max | AS5: min | AT5: max | AU5: min | AV5: max | AW5: min | AX5: max
A6: Trockensteher | B6: 1 | C6: 10 | D6: 14 | E6: 0 | F6: 0 | G6: 28 | I6: 50 | K6: 10 | L6: 13 | M6: 10 | N6: 13 | O6: -5 | P6: 15 | Q6: 5.5 | R6: 6 | S6: 12 | T6: 15 | Y6: 4 | Z6: 6 | AA6: 2 | AB6: 3.5 | AC6: 1 | AD6: 2 | AE6: 1.5 | AF6: 2.5 | AG6: 10 | AH6: 20 | AI6: 100 | AJ6: 300 | AK6: 50 | AL6: 450 | AM6: 10 | AN6: 30 | AO6: 50 | AP6: 120 | AQ6: 50 | AR6: 150 | AS6: 0.2 | AT6: 1 | AU6: 0.5 | AV6: 5 | AW6: 0.2 | AX6: 0.5
A7: Transit | B7: 2 | C7: 11 | D7: 15 | E7: 0 | F7: 0 | G7: 28 | I7: 50 | K7: 13 | L7: 15 | M7: 13 | N7: 15 | O7: -5 | P7: 10 | Q7: 6.3 | R7: 6.8 | S7: 14 | T7: 20 | Y7: 3 | Z7: 5 | AA7: 2 | AB7: 3.5 | AC7: 2 | AD7: 4 | AE7: 1.5 | AF7: 2 | AG7: 10 | AH7: 15 | AI7: 0 | AJ7: 200 | AK7: 50 | AL7: 450 | AM7: 10 | AN7: 30 | AO7: 50 | AP7: 120 | AQ7: 50 | AR7: 150 | AS7: 0.2 | AT7: 1 | AU7: 0.5 | AV7: 5 | AW7: 0.2 | AX7: 0.5
A8: Hochleistung | B8: 3 | C8: 20 | D8: 26 | E8: 0 | F8: 0 | G8: 28 | I8: 50 | K8: 15.5 | L8: 17.5 | M8: 15.5 | N8: 17.5 | O8: -10 | P8: 10 | Q8: 6.8 | R8: 7.5 | S8: 22 | T8: 30 | U8: 3.5 | V8: 5.5 | W8: 3 | X8: 5 | Y8: 5.5 | Z8: 7.5 | AA8: 3.5 | AB8: 4.2 | AC8: 1 | AD8: 2.5 | AE8: 1.5 | AF8: 2 | AG8: 10 | AH8: 20 | AI8: 150 | AJ8: 350 | AK8: 50 | AL8: 450 | AM8: 10 | AN8: 30 | AO8: 50 | AP8: 120 | AQ8: 50 | AR8: 150 | AS8: 0.2 | AT8: 1 | AU8: 0.5 | AV8: 5 | AW8: 0.2 | AX8: 0.5
A9: Altmelker | B9: 4 | C9: 16 | D9: 20 | E9: 0 | F9: 0 | G9: 28 | I9: 50 | K9: 15 | L9: 17 | M9: 15 | N9: 17 | O9: -5 | P9: 15 | Q9: 6.3 | R9: 7 | S9: 20 | T9: 28 | U9: 1 | V9: 3.5 | Y9: 5 | Z9: 7 | AA9: 3.5 | AB9: 4 | AC9: 1 | AD9: 2.5 | AE9: 1.5 | AF9: 2 | AG9: 10 | AH9: 20 | AI9: 150 | AJ9: 350 | AK9: 50 | AL9: 450 | AM9: 10 | AN9: 30 | AO9: 50 | AP9: 120 | AQ9: 50 | AR9: 150 | AS9: 0.2 | AT9: 1 | AU9: 0.5 | AV9: 5 | AW9: 0.2 | AX9: 0.5
B10: 5
B11: 6
B12: 7
B13: 8
B14: 9
B15: 10
A16: Bitte Gruppe auswählen! | B16: 11

Sheet Mengenberechnung
B2: Grundfutter – Ration für | G2: 10 | H2: Tiere | I2: Die Tabelle zur Mengenberechnung zeigt die Gewichte der einzelnen Futtermittel für die Beladung des Mischwagens oder bei der Kraftfuttermischung den Gewichtsanteil der einzelnen Komponenten. Geben Sie in das Eingabefeld die Anzahl der Tiere ein, für welche eine Ration gemischt werden soll (Anzeige = Tagesmenge).
B3: Nr. | C3: Futtermittel | F3: kg.
B4: =Ration!A15 -> 0 | C4: =Ration!B15 -> 0 | F4: =Ration!E4*G2 -> 0 | G4: Gesamt GF und KF in kg:
B5: =Ration!A16 -> 0 | C5: =Ration!B16 -> 0 | F5: =Ration!E5*G2 -> 0
B6: =Ration!A17 -> 0 | C6: =Ration!B17 -> 0 | F6: =Ration!E6*G2 -> 0
B7: =Ration!A18 -> 0 | C7: =Ration!B18 -> 0 | F7: =Ration!E7*G2 -> 0
B8: =Ration!A19 -> 0 | C8: =Ration!B19 -> 0 | F8: =Ration!E8*G2 -> 0
B9: =Ration!A20 -> 0 | C9: =Ration!B20 -> 0 | F9: =Ration!E9*G2 -> 0
B10: =Ration!A21 -> 0 | C10: =Ration!B21 -> 0 | F10: =Ration!E10*G2 -> 0
B11: =Ration!A22 -> 0 | C11: =Ration!B22 -> 0 | F11: =Ration!E11*G2 -> 0 | G11: =SUM(F4:F16) -> 0
B12: =Ration!A23 -> 0 | C12: =Ration!B23 -> 0 | F12: =Ration!E12*G2 -> 0
B13: =Ration!A24 -> 0 | C13: =Ration!B24 -> 0 | F13: =Ration!E13*G2 -> 0
B14: KF 1 | C14: Mischung 1 | F14: =Ration!E27*G2 -> 0
B15: KF 2 | C15: Mischung 2 | F15: =Ration!E28*G2 -> 0
C16: Zugabe Liter / kg Wasser | F16: =Ration!E29*G2 -> 0
B17: Kraftfutter – Mischung 1 Mischergröße: | G17: 1000 | H17: kg | I17: Bitte die Gesamtmenge einer Mischung ins Eingabefeld eintragen. Die Tabelle darunter zeigt die Komponenten der Kraftfutter – Mischung 1 in kg Frischmasse an. Mittels der Tierzahl sowie der geplanten Futtermengemenge pro Tag wird die Anzahl Tage berechnet, bis wieder gemischt werden muss.
B18: Nr. | C18: Futtermittel | F18: kg.
B19: ='Mischung 1'!A15 -> 0 | C19: ='Mischung 1'!B15 -> 0 | F19: =$G$17*'Mischung 1'!F15 -> 0 | G19: Tiere gesamt: | H19: 10
B20: ='Mischung 1'!A16 -> 0 | C20: ='Mischung 1'!B16 -> 0 | F20: =$G$17*'Mischung 1'!F16 -> 0 | G20: kg je Tier/Tag: | H20: =Ration!E27 -> 0
B21: ='Mischung 1'!A17 -> 0 | C21: ='Mischung 1'!B17 -> 0 | F21: =$G$17*'Mischung 1'!F17 -> 0 | G21: 1 Mischung reicht für eine Anzahl an Futtertagen von:
B22: ='Mischung 1'!A18 -> 0 | C22: ='Mischung 1'!B18 -> 0 | F22: =$G$17*'Mischung 1'!F18 -> 0
B23: ='Mischung 1'!A19 -> 0 | C23: ='Mischung 1'!B19 -> 0 | F23: =$G$17*'Mischung 1'!F19 -> 0
B24: ='Mischung 1'!A20 -> 0 | C24: ='Mischung 1'!B20 -> 0 | F24: =$G$17*'Mischung 1'!F20 -> 0
B25: ='Mischung 1'!A21 -> 0 | C25: ='Mischung 1'!B21 -> 0 | F25: =$G$17*'Mischung 1'!F21 -> 0 | G25: =IFERROR(G17/(H19*H20)," ") -> 
B26: ='Mischung 1'!A22 -> 0 | C26: ='Mischung 1'!B22 -> 0 | F26: =$G$17*'Mischung 1'!F22 -> 0
B27: ='Mischung 1'!A23 -> 0 | C27: ='Mischung 1'!B23 -> 0 | F27: =$G$17*'Mischung 1'!F23 -> 0
B28: ='Mischung 1'!A24 -> 0 | C28: ='Mischung 1'!B24 -> 0 | F28: =$G$17*'Mischung 1'!F24 -> 0
B29: Kraftfutter – Mischung 2 Mischergröße: | G29: 1000 | H29: kg
B30: Nr. | C30: Futtermittel | F30: kg.
B31: ='Mischung 2'!A15 -> 0 | C31: ='Mischung 2'!B15 -> 0 | F31: =$G$29*'Mischung 2'!F15 -> 0 | G31: Tiere gesamt: | H31: 10
B32: ='Mischung 2'!A16 -> 0 | C32: ='Mischung 2'!B16 -> 0 | F32: =$G$29*'Mischung 2'!F16 -> 0 | G32: kg je Tier/Tag: | H32: =Ration!E28 -> 0
B33: ='Mischung 2'!A17 -> 0 | C33: ='Mischung 2'!B17 -> 0 | F33: =$G$29*'Mischung 2'!F17 -> 0 | G33: 1 Mischung reicht für eine Anzahl an Futtertagen von:
B34: ='Mischung 2'!A18 -> 0 | C34: ='Mischung 2'!B18 -> 0 | F34: =$G$29*'Mischung 2'!F18 -> 0
B35: ='Mischung 2'!A19 -> 0 | C35: ='Mischung 2'!B19 -> 0 | F35: =$G$29*'Mischung 2'!F19 -> 0
B36: ='Mischung 2'!A20 -> 0 | C36: ='Mischung 2'!B20 -> 0 | F36: =$G$29*'Mischung 2'!F20 -> 0
B37: ='Mischung 2'!A21 -> 0 | C37: ='Mischung 2'!B21 -> 0 | F37: =$G$29*'Mischung 2'!F21 -> 0 | G37: =IFERROR(G29/(H31*H32)," ") -> 
B38: ='Mischung 2'!A22 -> 0 | C38: ='Mischung 2'!B22 -> 0 | F38: =$G$29*'Mischung 2'!F22 -> 0
B39: ='Mischung 2'!A23 -> 0 | C39: ='Mischung 2'!B23 -> 0 | F39: =$G$29*'Mischung 2'!F23 -> 0
B40: ='Mischung 2'!A24 -> 0 | C40: ='Mischung 2'!B24 -> 0 | F40: =$G$29*'Mischung 2'!F24 -> 0

Sheet Ausdruck
B2: Betriebs - Nr. | D2: =Einstellung!F6 -> 09 000 000 0000 | G2: Basis - Ration | J2: =Ration!A2 -> Bitte Gruppe auswählen!
B3: =Einstellung!C5 -> Tierhaltungsschule | E3: =Einstellung!F5 -> Triesdorf | G3: FM gesamt Grundfutter + KF kg | M3: =Ration!E30 -> 0
B4: =Einstellung!C6 -> Markgrafenstraße 1 | G4: TM gesamt Grundfutter + KF kg | M4: =Ration!F30 -> 0
B5: =Einstellung!C7 -> 91746 | D5: =Einstellung!E7 -> Weidenbach | G5: KF 1 kg | H5: =Ration!E27 -> 0 | I5: KF 2 kg | J5: =Ration!E28 -> 0 | L5: Wasser l. | N5: =Ration!E29 -> 0
B7: Nr. | C7: Futtermittel | F7: FM kg | G7: TM | H7: TM kg | I7: aNDFom | J7: CP g | K7: nxP g | L7: NEL MJ | M7: CL g | N7: Preis €
B8: =Ration!A4 -> 0 | C8: =Ration!B4 -> 0 | F8: =Ration!E4 -> 0 | G8: =Ration!C15 -> 0 | H8: =Ration!F15 -> 0 | I8: =Ration!G15 -> 0 | J8: =Ration!H15 -> 0 | K8: =Ration!I15 -> 0 | L8: =Ration!L15 -> 0 | M8: =Ration!P15 -> 0 | N8: =Ration!X15 -> 0
B9: =Ration!A5 -> 0 | C9: =Ration!B5 -> 0 | F9: =Ration!E5 -> 0 | G9: =Ration!C16 -> 0 | H9: =Ration!F16 -> 0 | I9: =Ration!G16 -> 0 | J9: =Ration!H16 -> 0 | K9: =Ration!I16 -> 0 | L9: =Ration!L16 -> 0 | M9: =Ration!P16 -> 0 | N9: =Ration!X16 -> 0
B10: =Ration!A6 -> 0 | C10: =Ration!B6 -> 0 | F10: =Ration!E6 -> 0 | G10: =Ration!C17 -> 0 | H10: =Ration!F17 -> 0 | I10: =Ration!G17 -> 0 | J10: =Ration!H17 -> 0 | K10: =Ration!I17 -> 0 | L10: =Ration!L17 -> 0 | M10: =Ration!P17 -> 0 | N10: =Ration!X17 -> 0
B11: =Ration!A7 -> 0 | C11: =Ration!B7 -> 0 | F11: =Ration!E7 -> 0 | G11: =Ration!C18 -> 0 | H11: =Ration!F18 -> 0 | I11: =Ration!G18 -> 0 | J11: =Ration!H18 -> 0 | K11: =Ration!I18 -> 0 | L11: =Ration!L18 -> 0 | M11: =Ration!P18 -> 0 | N11: =Ration!X18 -> 0
B12: =Ration!A8 -> 0 | C12: =Ration!B8 -> 0 | F12: =Ration!E8 -> 0 | G12: =Ration!C19 -> 0 | H12: =Ration!F19 -> 0 | I12: =Ration!G19 -> 0 | J12: =Ration!H19 -> 0 | K12: =Ration!I19 -> 0 | L12: =Ration!L19 -> 0 | M12: =Ration!P19 -> 0 | N12: =Ration!X19 -> 0
B13: =Ration!A9 -> 0 | C13: =Ration!B9 -> 0 | F13: =Ration!E9 -> 0 | G13: =Ration!C20 -> 0 | H13: =Ration!F20 -> 0 | I13: =Ration!G20 -> 0 | J13: =Ration!H20 -> 0 | K13: =Ration!I20 -> 0 | L13: =Ration!L20 -> 0 | M13: =Ration!P20 -> 0 | N13: =Ration!X20 -> 0
B14: =Ration!A10 -> 0 | C14: =Ration!B10 -> 0 | F14: =Ration!E10 -> 0 | G14: =Ration!C21 -> 0 | H14: =Ration!F21 -> 0 | I14: =Ration!G21 -> 0 | J14: =Ration!H21 -> 0 | K14: =Ration!I21 -> 0 | L14: =Ration!L21 -> 0 | M14: =Ration!P21 -> 0 | N14: =Ration!X21 -> 0
B15: =Ration!A11 -> 0 | C15: =Ration!B11 -> 0 | F15: =Ration!E11 -> 0 | G15: =Ration!C22 -> 0 | H15: =Ration!F22 -> 0 | I15: =Ration!G22 -> 0 | J15: =Ration!H22 -> 0 | K15: =Ration!I22 -> 0 | L15: =Ration!L22 -> 0 | M15: =Ration!P22 -> 0 | N15: =Ration!X22 -> 0
B16: =Ration!A12 -> 0 | C16: =Ration!B12 -> 0 | F16: =Ration!E12 -> 0 | G16: =Ration!C23 -> 0 | H16: =Ration!F23 -> 0 | I16: =Ration!G23 -> 0 | J16: =Ration!H23 -> 0 | K16: =Ration!I23 -> 0 | L16: =Ration!L23 -> 0 | M16: =Ration!P23 -> 0 | N16: =Ration!X23 -> 0
B17: =Ration!A13 -> 0 | C17: =Ration!B13 -> 0 | F17: =Ration!E13 -> 0 | G17: =Ration!C24 -> 0 | H17: =Ration!F24 -> 0 | I17: =Ration!G24 -> 0 | J17: =Ration!H24 -> 0 | K17: =Ration!I24 -> 0 | L17: =Ration!L24 -> 0 | M17: =Ration!P24 -> 0 | N17: =Ration!X24 -> 0
B19: Kennzahlen der Ration und Vergleich mit Zielwerten
B21: Wert | D21: Ist | F21: min | G21: max | I21: Wert | K21: Ist | M21: min | N21: max
B22: TM kg | D22: =Ration!F30 -> 0 | F22: =Ration!F38 -> 0 | G22: =Ration!F39 -> 0 | I22: bST % / kg TM | K22: =Ration!O31 -> 0 | M22: =Ration!O38 -> 0 | N22: =Ration!O39 -> 0
B23: aNDFom % | D23: =Ration!G31 -> 0 | F23: =Ration!G38 -> 0 | G23: =Ration!G39 -> 0 | I23: CL % / kg TM | K23: =Ration!P31 -> 0 | M23: =Ration!P38 -> 0 | N23: =Ration!P39 -> 0
B24: Struktur - Index | D24: =Ration!G32 -> 0 | F24: 50 | I24: Ca g / kg TM | K24: =Ration!Q31 -> 0 | M24: =Ration!Q38 -> 0 | N24: =Ration!Q39 -> 0
B25: CP % / kg TM | D25: =Ration!H31 -> 0 | F25: =Ration!H38 -> 0 | G25: =Ration!H39 -> 0 | I25: P g / kg TM | K25: =Ration!R31 -> 0 | M25: =Ration!R38 -> 0 | N25: =Ration!R39 -> 0
B26: nxP % / kg TM | D26: =Ration!I31 -> 0 | F26: =Ration!I38 -> 0 | G26: =Ration!I39 -> 0 | I26: Mg g / kg TM | K26: =Ration!S31 -> 0 | M26: =Ration!S38 -> 0 | N26: =Ration!S39 -> 0
B27: RNB | D27: =Ration!K31 -> 0 | F27: =Ration!K38 -> 0 | G27: =Ration!K39 -> 0 | I27: Na g / kg TM | K27: =Ration!T31 -> 0 | M27: =Ration!T38 -> 0 | N27: =Ration!T39 -> 0
B28: NEL MJ / kg TM | D28: =Ration!L31 -> 0 | F28: =Ration!L38 -> 0 | G28: =Ration!L39 -> 0 | I28: K g /kg TM | K28: =Ration!U31 -> 0 | M28: =Ration!U38 -> 0 | N28: =Ration!U39 -> 0
B29: ST+ZU % / kg TM | D29: =Ration!N31 -> 0 | F29: =Ration!N38 -> 0 | G29: =Ration!N39 -> 0 | I29: DCAB mEq/kgTM | K29: =Ration!V32 -> 0 | M29: =Ration!X38 -> 0 | N29: =Ration!X39 -> 0
B31: Weitere Kennzahlen, Futterkosten und Milcherzeugungswerte (MEW)
B33: TM % Gesamtration | E33: =Ration!F31 -> 0 | H33: Mengenelem. für kg Milch
B34: Wasser Zusatz / l | E34: =Ration!E29 -> 0
B35: Ration reicht für kg Milch | H35: Ca | I35: =Ration!Q34 -> 0
B36: CP MEW kg | E36: =Ration!H34 -> -5.402298851 | H36: P | I36: =Ration!R34 -> 0
B37: nxP MEW kg | E37: =Ration!I34 -> -5.402298851 | H37: Mg | I37: =Ration!S34 -> 0
B38: NEL MEW kg | E38: =Ration!L34 -> -12.09090909 | H38: Na | I38: =Ration!T34 -> 0
B40: Futterkosten Kuh / Tag | E40: =Ration!X30 -> 0
B41: Futterkosten je kg Milch | E41: =Ration!X34 -> 0
B43: Betriebs - Nr. | D43: =Einstellung!F6 -> 09 000 000 0000 | G43: KF - Mischung 1
B44: =Einstellung!C5 -> Tierhaltungsschule | E44: =Einstellung!F5 -> Triesdorf
B45: =Einstellung!C6 -> Markgrafenstraße 1
B46: =Einstellung!C7 -> 91746 | D46: =Einstellung!E7 -> Weidenbach
B48: Nr. | C48: Futtermittel | F48: % Ant. | G48: FM kg | H48: TM kg | I48: XF g | J48: CP g | K48: nxP g | L48: NEL MJ | M48: CL g | N48: Preis €
B49: ='Mischung 1'!A15 -> 0 | C49: ='Mischung 1'!B15 -> 0 | F49: ='Mischung 1'!C15 -> 0 | G49: ='Mischung 1'!F15 -> 0 | H49: ='Mischung 1'!E15 -> 0 | I49: ='Mischung 1'!G15 -> 0 | J49: ='Mischung 1'!I15 -> 0 | K49: ='Mischung 1'!J15 -> 0 | L49: ='Mischung 1'!M15 -> 0 | M49: ='Mischung 1'!Q15 -> 0 | N49: ='Mischung 1'!Y15 -> 0
B50: ='Mischung 1'!A16 -> 0 | C50: ='Mischung 1'!B16 -> 0 | F50: ='Mischung 1'!C16 -> 0 | G50: ='Mischung 1'!F16 -> 0 | H50: ='Mischung 1'!E16 -> 0 | I50: ='Mischung 1'!G16 -> 0 | J50: ='Mischung 1'!I16 -> 0 | K50: ='Mischung 1'!J16 -> 0 | L50: ='Mischung 1'!M16 -> 0 | M50: ='Mischung 1'!Q16 -> 0 | N50: ='Mischung 1'!Y16 -> 0
B51: ='Mischung 1'!A17 -> 0 | C51: ='Mischung 1'!B17 -> 0 | F51: ='Mischung 1'!C17 -> 0 | G51: ='Mischung 1'!F17 -> 0 | H51: ='Mischung 1'!E17 -> 0 | I51: ='Mischung 1'!G17 -> 0 | J51: ='Mischung 1'!I17 -> 0 | K51: ='Mischung 1'!J17 -> 0 | L51: ='Mischung 1'!M17 -> 0 | M51: ='Mischung 1'!Q17 -> 0 | N51: ='Mischung 1'!Y17 -> 0
B52: ='Mischung 1'!A18 -> 0 | C52: ='Mischung 1'!B18 -> 0 | F52: ='Mischung 1'!C18 -> 0 | G52: ='Mischung 1'!F18 -> 0 | H52: ='Mischung 1'!E18 -> 0 | I52: ='Mischung 1'!G18 -> 0 | J52: ='Mischung 1'!I18 -> 0 | K52: ='Mischung 1'!J18 -> 0 | L52: ='Mischung 1'!M18 -> 0 | M52: ='Mischung 1'!Q18 -> 0 | N52: ='Mischung 1'!Y18 -> 0
B53: ='Mischung 1'!A19 -> 0 | C53: ='Mischung 1'!B19 -> 0 | F53: ='Mischung 1'!C19 -> 0 | G53: ='Mischung 1'!F19 -> 0 | H53: ='Mischung 1'!E19 -> 0 | I53: ='Mischung 1'!G19 -> 0 | J53: ='Mischung 1'!I19 -> 0 | K53: ='Mischung 1'!J19 -> 0 | L53: ='Mischung 1'!M19 -> 0 | M53: ='Mischung 1'!Q19 -> 0 | N53: ='Mischung 1'!Y19 -> 0
B54: ='Mischung 1'!A20 -> 0 | C54: ='Mischung 1'!B20 -> 0 | F54: ='Mischung 1'!C20 -> 0 | G54: ='Mischung 1'!F20 -> 0 | H54: ='Mischung 1'!E20 -> 0 | I54: ='Mischung 1'!G20 -> 0 | J54: ='Mischung 1'!I20 -> 0 | K54: ='Mischung 1'!J20 -> 0 | L54: ='Mischung 1'!M20 -> 0 | M54: ='Mischung 1'!Q20 -> 0 | N54: ='Mischung 1'!Y20 -> 0
B55: ='Mischung 1'!A21 -> 0 | C55: ='Mischung 1'!B21 -> 0 | F55: ='Mischung 1'!C21 -> 0 | G55: ='Mischung 1'!F21 -> 0 | H55: ='Mischung 1'!E21 -> 0 | I55: ='Mischung 1'!G21 -> 0 | J55: ='Mischung 1'!I21 -> 0 | K55: ='Mischung 1'!J21 -> 0 | L55: ='Mischung 1'!M21 -> 0 | M55: ='Mischung 1'!Q21 -> 0 | N55: ='Mischung 1'!Y21 -> 0
B56: ='Mischung 1'!A22 -> 0 | C56: ='Mischung 1'!B22 -> 0 | F56: ='Mischung 1'!C22 -> 0 | G56: ='Mischung 1'!F22 -> 0 | H56: ='Mischung 1'!E22 -> 0 | I56: ='Mischung 1'!G22 -> 0 | J56: ='Mischung 1'!I22 -> 0 | K56: ='Mischung 1'!J22 -> 0 | L56: ='Mischung 1'!M22 -> 0 | M56: ='Mischung 1'!Q22 -> 0 | N56: ='Mischung 1'!Y22 -> 0
B57: ='Mischung 1'!A23 -> 0 | C57: ='Mischung 1'!B23 -> 0 | F57: ='Mischung 1'!C23 -> 0 | G57: ='Mischung 1'!F23 -> 0 | H57: ='Mischung 1'!E23 -> 0 | I57: ='Mischung 1'!G23 -> 0 | J57: ='Mischung 1'!I23 -> 0 | K57: ='Mischung 1'!J23 -> 0 | L57: ='Mischung 1'!M23 -> 0 | M57: ='Mischung 1'!Q23 -> 0 | N57: ='Mischung 1'!Y23 -> 0
B58: ='Mischung 1'!A24 -> 0 | C58: ='Mischung 1'!B24 -> 0 | F58: ='Mischung 1'!C24 -> 0 | G58: ='Mischung 1'!F24 -> 0 | H58: ='Mischung 1'!E24 -> 0 | I58: ='Mischung 1'!G24 -> 0 | J58: ='Mischung 1'!I24 -> 0 | K58: ='Mischung 1'!J24 -> 0 | L58: ='Mischung 1'!M24 -> 0 | M58: ='Mischung 1'!Q24 -> 0 | N58: ='Mischung 1'!Y24 -> 0
B59: Summe | E59: ='Mischung 1'!C25 -> 0 | G59: ='Mischung 1'!F25 -> 0 | H59: ='Mischung 1'!E25 -> 0 | I59: ='Mischung 1'!G25 -> 0 | J59: ='Mischung 1'!I25 -> 0 | K59: ='Mischung 1'!J25 -> 0 | L59: ='Mischung 1'!M25 -> 0 | M59: ='Mischung 1'!Q25 -> 0 | N59: ='Mischung 1'!Y25 -> 0
B63: Milcherzeugungswerte (MEW) in kg
B64: CP | C64: ='Mischung 1'!I26 -> 0 | E64: Ca | F64: ='Mischung 1'!R26 -> 0
B65: nxP g | C65: ='Mischung 1'!J26 -> 0 | E65: P | F65: ='Mischung 1'!S26 -> 0
B66: NEL | C66: ='Mischung 1'!M26 -> 0 | E66: Mg | F66: ='Mischung 1'!T26 -> 0
E67: Na | F67: ='Mischung 1'!U26 -> 0
B69: Zusammensetzung einer KF 1 - Mischung bei Mischergröße in kg | L69: =Mengenberechnung!G17 -> 1000
G72: =Mengenberechnung!C19 -> 0 | M72: =Mengenberechnung!F19 -> 0
G73: =Mengenberechnung!C20 -> 0 | M73: =Mengenberechnung!F20 -> 0
G74: =Mengenberechnung!C21 -> 0 | M74: =Mengenberechnung!F21 -> 0
G75: =Mengenberechnung!C22 -> 0 | M75: =Mengenberechnung!F22 -> 0
G76: =Mengenberechnung!C23 -> 0 | M76: =Mengenberechnung!F23 -> 0
G77: =Mengenberechnung!C24 -> 0 | M77: =Mengenberechnung!F24 -> 0
G78: =Mengenberechnung!C25 -> 0 | M78: =Mengenberechnung!F25 -> 0
G79: =Mengenberechnung!C26 -> 0 | M79: =Mengenberechnung!F26 -> 0
G80: =Mengenberechnung!C27 -> 0 | M80: =Mengenberechnung!F27 -> 0
G81: =Mengenberechnung!C28 -> 0 | M81: =Mengenberechnung!F28 -> 0
B83: Betriebs - Nr. | D83: =Einstellung!F6 -> 09 000 000 0000 | G83: KF - Mischung 2
B84: =Einstellung!C5 -> Tierhaltungsschule | E84: =Einstellung!F5 -> Triesdorf
B85: =Einstellung!C6 -> Markgrafenstraße 1
B86: =Einstellung!C7 -> 91746 | D86: =Einstellung!E7 -> Weidenbach
B88: Nr. | C88: Futtermittel | F88: % Ant. | G88: FM kg | H88: TM kg | I88: XF g | J88: CP g | K88: nxP g | L88: NEL MJ | M88: CL g | N88: Preis €
B89: ='Mischung 2'!A15 -> 0 | C89: ='Mischung 2'!B15 -> 0 | F89: ='Mischung 2'!C15 -> 0 | G89: ='Mischung 2'!F15 -> 0 | H89: ='Mischung 2'!E15 -> 0 | I89: ='Mischung 2'!G15 -> 0 | J89: ='Mischung 2'!I15 -> 0 | K89: ='Mischung 2'!J15 -> 0 | L89: ='Mischung 2'!M15 -> 0 | M89: ='Mischung 2'!Q15 -> 0 | N89: ='Mischung 2'!Y15 -> 0
B90: ='Mischung 2'!A16 -> 0 | C90: ='Mischung 2'!B16 -> 0 | F90: ='Mischung 2'!C16 -> 0 | G90: ='Mischung 2'!F16 -> 0 | H90: ='Mischung 2'!E16 -> 0 | I90: ='Mischung 2'!G16 -> 0 | J90: ='Mischung 2'!I16 -> 0 | K90: ='Mischung 2'!J16 -> 0 | L90: ='Mischung 2'!M16 -> 0 | M90: ='Mischung 2'!Q16 -> 0 | N90: ='Mischung 2'!Y16 -> 0
B91: ='Mischung 2'!A17 -> 0 | C91: ='Mischung 2'!B17 -> 0 | F91: ='Mischung 2'!C17 -> 0 | G91: ='Mischung 2'!F17 -> 0 | H91: ='Mischung 2'!E17 -> 0 | I91: ='Mischung 2'!G17 -> 0 | J91: ='Mischung 2'!I17 -> 0 | K91: ='Mischung 2'!J17 -> 0 | L91: ='Mischung 2'!M17 -> 0 | M91: ='Mischung 2'!Q17 -> 0 | N91: ='Mischung 2'!Y17 -> 0
B92: ='Mischung 2'!A18 -> 0 | C92: ='Mischung 2'!B18 -> 0 | F92: ='Mischung 2'!C18 -> 0 | G92: ='Mischung 2'!F18 -> 0 | H92: ='Mischung 2'!E18 -> 0 | I92: ='Mischung 2'!G18 -> 0 | J92: ='Mischung 2'!I18 -> 0 | K92: ='Mischung 2'!J18 -> 0 | L92: ='Mischung 2'!M18 -> 0 | M92: ='Mischung 2'!Q18 -> 0 | N92: ='Mischung 2'!Y18 -> 0
B93: ='Mischung 2'!A19 -> 0 | C93: ='Mischung 2'!B19 -> 0 | F93: ='Mischung 2'!C19 -> 0 | G93: ='Mischung 2'!F19 -> 0 | H93: ='Mischung 2'!E19 -> 0 | I93: ='Mischung 2'!G19 -> 0 | J93: ='Mischung 2'!I19 -> 0 | K93: ='Mischung 2'!J19 -> 0 | L93: ='Mischung 2'!M19 -> 0 | M93: ='Mischung 2'!Q19 -> 0 | N93: ='Mischung 2'!Y19 -> 0
B94: ='Mischung 2'!A20 -> 0 | C94: ='Mischung 2'!B20 -> 0 | F94: ='Mischung 2'!C20 -> 0 | G94: ='Mischung 2'!F20 -> 0 | H94: ='Mischung 2'!E20 -> 0 | I94: ='Mischung 2'!G20 -> 0 | J94: ='Mischung 2'!I20 -> 0 | K94: ='Mischung 2'!J20 -> 0 | L94: ='Mischung 2'!M20 -> 0 | M94: ='Mischung 2'!Q20 -> 0 | N94: ='Mischung 2'!Y20 -> 0
B95: ='Mischung 2'!A21 -> 0 | C95: ='Mischung 2'!B21 -> 0 | F95: ='Mischung 2'!C21 -> 0 | G95: ='Mischung 2'!F21 -> 0 | H95: ='Mischung 2'!E21 -> 0 | I95: ='Mischung 2'!G21 -> 0 | J95: ='Mischung 2'!I21 -> 0 | K95: ='Mischung 2'!J21 -> 0 | L95: ='Mischung 2'!M21 -> 0 | M95: ='Mischung 2'!Q21 -> 0 | N95: ='Mischung 2'!Y21 -> 0
B96: ='Mischung 2'!A22 -> 0 | C96: ='Mischung 2'!B22 -> 0 | F96: ='Mischung 2'!C22 -> 0 | G96: ='Mischung 2'!F22 -> 0 | H96: ='Mischung 2'!E22 -> 0 | I96: ='Mischung 2'!G22 -> 0 | J96: ='Mischung 2'!I22 -> 0 | K96: ='Mischung 2'!J22 -> 0 | L96: ='Mischung 2'!M22 -> 0 | M96: ='Mischung 2'!Q22 -> 0 | N96: ='Mischung 2'!Y22 -> 0
B97: ='Mischung 2'!A23 -> 0 | C97: ='Mischung 2'!B23 -> 0 | F97: ='Mischung 2'!C23 -> 0 | G97: ='Mischung 2'!F23 -> 0 | H97: ='Mischung 2'!E23 -> 0 | I97: ='Mischung 2'!G23 -> 0 | J97: ='Mischung 2'!I23 -> 0 | K97: ='Mischung 2'!J23 -> 0 | L97: ='Mischung 2'!M23 -> 0 | M97: ='Mischung 2'!Q23 -> 0 | N97: ='Mischung 2'!Y23 -> 0
B98: ='Mischung 2'!A24 -> 0 | C98: ='Mischung 2'!B24 -> 0 | F98: ='Mischung 2'!C24 -> 0 | G98: ='Mischung 2'!F24 -> 0 | H98: ='Mischung 2'!E24 -> 0 | I98: ='Mischung 2'!G24 -> 0 | J98: ='Mischung 2'!I24 -> 0 | K98: ='Mischung 2'!J24 -> 0 | L98: ='Mischung 2'!M24 -> 0 | M98: ='Mischung 2'!Q24 -> 0 | N98: ='Mischung 2'!Y24 -> 0
B99: Summe | E99: ='Mischung 2'!C25 -> 0 | G99: ='Mischung 2'!F25 -> 0 | H99: ='Mischung 2'!E25 -> 0 | I99: ='Mischung 2'!G25 -> 0 | J99: ='Mischung 2'!I25 -> 0 | K99: ='Mischung 2'!J25 -> 0 | L99: ='Mischung 2'!M25 -> 0 | M99: ='Mischung 2'!Q25 -> 0 | N99: ='Mischung 2'!Y25 -> 0
B103: Milcherzeugungswerte (MEW) in kg
B104: CP | C104: ='Mischung 2'!I26 -> 0 | E104: Ca | F104: ='Mischung 2'!R26 -> 0
B105: nxP g | C105: ='Mischung 2'!J26 -> 0 | E105: P | F105: ='Mischung 2'!S26 -> 0
B106: NEL | C106: ='Mischung 2'!M26 -> 0 | E106: Mg | F106: ='Mischung 2'!T26 -> 0
E107: Na | F107: ='Mischung 2'!U26 -> 0
B109: Zusammensetzung einer KF 2 - Mischung bei Mischergröße in kg | L109: =Mengenberechnung!G29 -> 1000
G112: =Mengenberechnung!C31 -> 0 | M112: =Mengenberechnung!F31 -> 0
G113: =Mengenberechnung!C32 -> 0 | M113: =Mengenberechnung!F32 -> 0
G114: =Mengenberechnung!C33 -> 0 | M114: =Mengenberechnung!F33 -> 0
G115: =Mengenberechnung!C34 -> 0 | M115: =Mengenberechnung!F34 -> 0
G116: =Mengenberechnung!C35 -> 0 | M116: =Mengenberechnung!F35 -> 0
G117: =Mengenberechnung!C36 -> 0 | M117: =Mengenberechnung!F36 -> 0
G118: =Mengenberechnung!C37 -> 0 | M118: =Mengenberechnung!F37 -> 0
G119: =Mengenberechnung!C38 -> 0 | M119: =Mengenberechnung!F38 -> 0
G120: =Mengenberechnung!C39 -> 0 | M120: =Mengenberechnung!F39 -> 0
G121: =Mengenberechnung!C40 -> 0 | M121: =Mengenberechnung!F40 -> 0
B123: Betriebs - Nr. | D123: =Einstellung!F6 -> 09 000 000 0000 | G123: Ladeliste Mischwagen
B124: =Einstellung!C5 -> Tierhaltungsschule | E124: =Einstellung!F5 -> Triesdorf
B125: =Einstellung!C6 -> Markgrafenstraße 1
B126: =Einstellung!C7 -> 91746 | D126: =Einstellung!E7 -> Weidenbach
B128: Tagesration für Anzahl Kühe | L128: =Mengenberechnung!G2 -> 10
B130: =Mengenberechnung!B4 -> 0 | D130: =Mengenberechnung!C4 -> 0 | L130: =Mengenberechnung!F4 -> 0
B131: =Mengenberechnung!B5 -> 0 | D131: =Mengenberechnung!C5 -> 0 | L131: =Mengenberechnung!F5 -> 0
B132: =Mengenberechnung!B6 -> 0 | D132: =Mengenberechnung!C6 -> 0 | L132: =Mengenberechnung!F6 -> 0
B133: =Mengenberechnung!B7 -> 0 | D133: =Mengenberechnung!C7 -> 0 | L133: =Mengenberechnung!F7 -> 0
B134: =Mengenberechnung!B8 -> 0 | D134: =Mengenberechnung!C8 -> 0 | L134: =Mengenberechnung!F8 -> 0
B135: =Mengenberechnung!B9 -> 0 | D135: =Mengenberechnung!C9 -> 0 | L135: =Mengenberechnung!F9 -> 0
B136: =Mengenberechnung!B10 -> 0 | D136: =Mengenberechnung!C10 -> 0 | L136: =Mengenberechnung!F10 -> 0
B137: =Mengenberechnung!B11 -> 0 | D137: =Mengenberechnung!C11 -> 0 | L137: =Mengenberechnung!F11 -> 0
B138: =Mengenberechnung!B12 -> 0 | D138: =Mengenberechnung!C12 -> 0 | L138: =Mengenberechnung!F12 -> 0
B139: =Mengenberechnung!B13 -> 0 | D139: =Mengenberechnung!C13 -> 0 | L139: =Mengenberechnung!F13 -> 0
B141: =Mengenberechnung!B14 -> KF 1 | D141: =Mengenberechnung!C14 -> Mischung 1 | L141: =Mengenberechnung!F14 -> 0
B142: =Mengenberechnung!B15 -> KF 2 | D142: =Mengenberechnung!C15 -> Mischung 2 | L142: =Mengenberechnung!F15 -> 0
D143: Wasser zugeben l / kg | L143: =Mengenberechnung!F16 -> 0
D144: Gesamtgewicht aller Komponenten in kg | L144: =Mengenberechnung!G11 -> 0
